Workbook

Sheet Profit & Loss
A1: ='Data Sheet'!B1 -> SHIVALIK BIMETAL CONTROLS LTD | H1: =UPDATE ->  | M1: SCREENER.IN
A3: Narration | B3: ='Data Sheet'!B16 -> 2014-03-31 | C3: ='Data Sheet'!C16 -> 2015-03-31 | D3: ='Data Sheet'!D16 -> 2016-03-31 | E3: ='Data Sheet'!E16 -> 2017-03-31 | F3: ='Data Sheet'!F16 -> 2018-03-31 | G3: ='Data Sheet'!G16 -> 2019-03-31 | H3: ='Data Sheet'!H16 -> 2020-03-31 | I3: ='Data Sheet'!I16 -> 2021-03-31 | J3: ='Data Sheet'!J16 -> 2022-03-31 | K3: ='Data Sheet'!K16 -> 2023-03-31 | L3: Trailing | M3: Best Case | N3: Worst Case
A4: Sales | B4: ='Data Sheet'!B17 -> 80.7 | C4: ='Data Sheet'!C17 -> 95.22 | D4: ='Data Sheet'!D17 -> 98.85 | E4: ='Data Sheet'!E17 -> 118.66 | F4: ='Data Sheet'!F17 -> 157.86 | G4: ='Data Sheet'!G17 -> 193.39 | H4: ='Data Sheet'!H17 -> 187.22 | I4: ='Data Sheet'!I17 -> 203.72 | J4: ='Data Sheet'!J17 -> 323.99 | K4: ='Data Sheet'!K17 -> 420.23 | L4: =SUM(Quarters!H4:K4) -> 435.61 | M4: =$K4+M27*K4 -> 550.2144485 | N4: =$K4+N27*L4 -> 507.8848536
A5: Expenses | B5: =SUM('Data Sheet'!B18,'Data Sheet'!B20:B24, -1*'Data Sheet'!B19) -> 69.7 | C5: =SUM('Data Sheet'!C18,'Data Sheet'!C20:C24, -1*'Data Sheet'!C19) -> 79.87 | D5: =SUM('Data Sheet'!D18,'Data Sheet'!D20:D24, -1*'Data Sheet'!D19) -> 85.33 | E5: =SUM('Data Sheet'!E18,'Data Sheet'!E20:E24, -1*'Data Sheet'!E19) -> 99.68 | F5: =SUM('Data Sheet'!F18,'Data Sheet'!F20:F24, -1*'Data Sheet'!F19) -> 132.22 | G5: =SUM('Data Sheet'!G18,'Data Sheet'!G20:G24, -1*'Data Sheet'!G19) -> 157.81 | H5: =SUM('Data Sheet'!H18,'Data Sheet'!H20:H24, -1*'Data Sheet'!H19) -> 166.45 | I5: =SUM('Data Sheet'!I18,'Data Sheet'!I20:I24, -1*'Data Sheet'!I19) -> 167.59 | J5: =SUM('Data Sheet'!J18,'Data Sheet'!J20:J24, -1*'Data Sheet'!J19) -> 250.52 | K5: =SUM('Data Sheet'!K18,'Data Sheet'!K20:K24, -1*'Data Sheet'!K19) -> 315.46 | L5: =SUM(Quarters!H5:K5) -> 326.09 | M5: =M4-M6 -> 411.8808786 | N5: 411.9161654
A6: Operating Profit | B6: =B4-B5 -> 11 | C6: =C4-C5 -> 15.35 | D6: 13.52 | E6: 18.98 | F6: 25.64 | G6: 35.58 | H6: 20.77 | I6: 36.13 | J6: 73.47 | K6: 104.77 | L6: =SUM(Quarters!H6:K6) -> 109.52 | M6: =M4*M28 -> 138.3335699 | N6: =N4*N28 -> 95.96868822
A7: Other Income | B7: ='Data Sheet'!B25 -> -1.35 | C7: ='Data Sheet'!C25 -> -0.55 | D7: ='Data Sheet'!D25 -> 0.57 | E7: ='Data Sheet'!E25 -> 2.04 | F7: ='Data Sheet'!F25 -> 4.15 | G7: ='Data Sheet'!G25 -> 5.35 | H7: ='Data Sheet'!H25 -> 4.65 | I7: ='Data Sheet'!I25 -> 4.05 | J7: ='Data Sheet'!J25 -> 5.45 | K7: ='Data Sheet'!K25 -> 7.93 | L7: =SUM(Quarters!H7:K7) -> 7.03 | M7: 0 | N7: 0
A8: Depreciation | B8: ='Data Sheet'!B26 -> 2.35 | C8: ='Data Sheet'!C26 -> 3.17 | D8: ='Data Sheet'!D26 -> 3.69 | E8: ='Data Sheet'!E26 -> 4.54 | F8: ='Data Sheet'!F26 -> 4.62 | G8: ='Data Sheet'!G26 -> 4.85 | H8: ='Data Sheet'!H26 -> 6.01 | I8: ='Data Sheet'!I26 -> 5.9 | J8: ='Data Sheet'!J26 -> 6.38 | K8: ='Data Sheet'!K26 -> 8.47 | L8: =SUM(Quarters!H8:K8) -> 8.97 | M8: =+$L8 -> 8.97 | N8: =+$L8 -> 8.97
A9: Interest | B9: ='Data Sheet'!B27 -> 3.17 | C9: ='Data Sheet'!C27 -> 3.2 | D9: ='Data Sheet'!D27 -> 3.9 | E9: ='Data Sheet'!E27 -> 2.54 | F9: ='Data Sheet'!F27 -> 3.31 | G9: ='Data Sheet'!G27 -> 3.58 | H9: ='Data Sheet'!H27 -> 2.94 | I9: ='Data Sheet'!I27 -> 1.63 | J9: ='Data Sheet'!J27 -> 2.76 | K9: ='Data Sheet'!K27 -> 6.64 | L9: =SUM(Quarters!H9:K9) -> 6.25 | M9: =+$L9 -> 6.25 | N9: =+$L9 -> 6.25
A10: Profit before tax | B10: ='Data Sheet'!B28 -> 4.13 | C10: ='Data Sheet'!C28 -> 8.43 | D10: ='Data Sheet'!D28 -> 6.5 | E10: ='Data Sheet'!E28 -> 13.94 | F10: ='Data Sheet'!F28 -> 21.86 | G10: ='Data Sheet'!G28 -> 32.5 | H10: ='Data Sheet'!H28 -> 16.47 | I10: ='Data Sheet'!I28 -> 32.65 | J10: ='Data Sheet'!J28 -> 69.78 | K10: ='Data Sheet'!K28 -> 97.59 | L10: =SUM(Quarters!H10:K10) -> 101.33 | M10: =M6+M7-SUM(M8:M9) -> 123.1135699 | N10: =N6+N7-SUM(N8:N9) -> 80.74868822
A11: Tax | B11: ='Data Sheet'!B29 -> 0.61 | C11: ='Data Sheet'!C29 -> 3.49 | D11: ='Data Sheet'!D29 -> 2.38 | E11: ='Data Sheet'!E29 -> 5.33 | F11: ='Data Sheet'!F29 -> 5.87 | G11: ='Data Sheet'!G29 -> 9.42 | H11: ='Data Sheet'!H29 -> 3.71 | I11: ='Data Sheet'!I29 -> 8.5 | J11: ='Data Sheet'!J29 -> 17.81 | K11: ='Data Sheet'!K29 -> 24.56 | L11: =SUM(Quarters!H11:K11) -> 25.2 | M11: =IF($L10>0,$L11/$L10,0) -> 0.2486923912 | N11: =IF($L10>0,$L11/$L10,0) -> 0.2486923912
A12: Net profit | B12: ='Data Sheet'!B30 -> 3.53 | C12: ='Data Sheet'!C30 -> 4.94 | D12: ='Data Sheet'!D30 -> 4.11 | E12: ='Data Sheet'!E30 -> 8.62 | F12: ='Data Sheet'!F30 -> 15.99 | G12: ='Data Sheet'!G30 -> 23.08 | H12: ='Data Sheet'!H30 -> 12.76 | I12: ='Data Sheet'!I30 -> 24.15 | J12: ='Data Sheet'!J30 -> 51.98 | K12: ='Data Sheet'!K30 -> 73.03 | L12: =SUM(Quarters!H12:K12) -> 76.14 | M12: =M10-M11*M10 -> 92.49616184 | N12: =N10-N11*N10 -> 60.66710386
A13: EPS | B13: =IF('Data Sheet'!B93>0,B12/'Data Sheet'!B93,0) -> 0.6128472222 | C13: =IF('Data Sheet'!C93>0,C12/'Data Sheet'!C93,0) -> 0.8576388889 | D13: =IF('Data Sheet'!D93>0,D12/'Data Sheet'!D93,0) -> 0.7135416667 | E13: =IF('Data Sheet'!E93>0,E12/'Data Sheet'!E93,0) -> 1.496527778 | F13: =IF('Data Sheet'!F93>0,F12/'Data Sheet'!F93,0) -> 2.776041667 | G13: =IF('Data Sheet'!G93>0,G12/'Data Sheet'!G93,0) -> 4.006944444 | H13: =IF('Data Sheet'!H93>0,H12/'Data Sheet'!H93,0) -> 2.215277778 | I13: =IF('Data Sheet'!I93>0,I12/'Data Sheet'!I93,0) -> 4.192708333 | J13: =IF('Data Sheet'!J93>0,J12/'Data Sheet'!J93,0) -> 9.024305556 | K13: =IF('Data Sheet'!K93>0,K12/'Data Sheet'!K93,0) -> 12.67881944 | L13: =IF('Data Sheet'!$B6>0,'Profit & Loss'!L12/'Data Sheet'!$B6,0) -> 13.21778434 | M13: =IF('Data Sheet'!$B6>0,'Profit & Loss'!M12/'Data Sheet'!$B6,0) -> 16.05718833 | N13: =IF('Data Sheet'!$B6>0,'Profit & Loss'!N12/'Data Sheet'!$B6,0) -> 10.53171388
A14: Price to earning | B14: =IF(B15>0,B15/B13,"") -> 4.487252125 | C14: =IF(C15>0,C15/C13,"") -> 11.3334413 | D14: 9.585985401 | E14: 14.14607889 | F14: 27.06371482 | G14: 23.01005199 | H14: 6.441630094 | I14: 13.54732919 | J14: 37.94197768 | K14: 40.4966726 | L14: =IF(L13>0,L15/L13,0) -> 39.91213554 | M14: =M29 -> 39.91213554 | N14: =N29 -> 20.72420633
A15: Price | B15: ='Data Sheet'!B90 -> 2.75 | C15: ='Data Sheet'!C90 -> 9.72 | D15: ='Data Sheet'!D90 -> 6.84 | E15: ='Data Sheet'!E90 -> 21.17 | F15: ='Data Sheet'!F90 -> 75.13 | G15: ='Data Sheet'!G90 -> 92.2 | H15: ='Data Sheet'!H90 -> 14.27 | I15: ='Data Sheet'!I90 -> 56.8 | J15: ='Data Sheet'!J90 -> 342.4 | K15: ='Data Sheet'!K90 -> 513.45 | L15: ='Data Sheet'!B8 -> 527.55 | M15: =M13*M14 -> 640.8766769 | N15: =N13*N14 -> 218.2614116
A17: EBIT | B17: =B10+B9 -> 7.3 | C17: =C10+C9 -> 11.63 | D17: 10.4 | E17: 16.48 | F17: 25.17 | G17: 36.08 | H17: 19.41 | I17: 34.28 | J17: 72.54 | K17: 104.23 | L17: 107.58
A18: EBITDA | B18: =B17+B8 -> 9.65 | C18: =C17+C8 -> 14.8 | D18: 14.09 | E18: 21.02 | F18: 29.79 | G18: 40.93 | H18: 25.42 | I18: 40.18 | J18: 78.92 | K18: 112.7 | L18: 116.55
A19: Operating Profit (excl Other Income) | B19: =B18-B7 -> 11 | C19: =C18-C7 -> 15.35 | D19: 13.52 | E19: 18.98 | F19: 25.64 | G19: 35.58 | H19: 20.77 | I19: 36.13 | J19: 73.47 | K19: 104.77 | L19: 109.52
A21: RATIOS:
A22: DPS | B22: =IF('Data Sheet'!B93>0,'Data Sheet'!B31/'Data Sheet'!B93,0) -> 0 | C22: =IF('Data Sheet'!C93>0,'Data Sheet'!C31/'Data Sheet'!C93,0) -> 0 | D22: =IF('Data Sheet'!D93>0,'Data Sheet'!D31/'Data Sheet'!D93,0) -> 0 | E22: =IF('Data Sheet'!E93>0,'Data Sheet'!E31/'Data Sheet'!E93,0) -> 0.1666666667 | F22: =IF('Data Sheet'!F93>0,'Data Sheet'!F31/'Data Sheet'!F93,0) -> 0.3993055556 | G22: =IF('Data Sheet'!G93>0,'Data Sheet'!G31/'Data Sheet'!G93,0) -> 0.3993055556 | H22: =IF('Data Sheet'!H93>0,'Data Sheet'!H31/'Data Sheet'!H93,0) -> 0.1996527778 | I22: =IF('Data Sheet'!I93>0,'Data Sheet'!I31/'Data Sheet'!I93,0) -> 0.3993055556 | J22: =IF('Data Sheet'!J93>0,'Data Sheet'!J31/'Data Sheet'!J93,0) -> 0.6666666667 | K22: =IF('Data Sheet'!K93>0,'Data Sheet'!K31/'Data Sheet'!K93,0) -> 1.199652778
A23: Dividend Payout | B23: =IF('Data Sheet'!B30>0, 'Data Sheet'!B31/'Data Sheet'!B30, 0) -> 0 | C23: =IF('Data Sheet'!C30>0, 'Data Sheet'!C31/'Data Sheet'!C30, 0) -> 0 | D23: =IF('Data Sheet'!D30>0, 'Data Sheet'!D31/'Data Sheet'!D30, 0) -> 0 | E23: =IF('Data Sheet'!E30>0, 'Data Sheet'!E31/'Data Sheet'!E30, 0) -> 0.1113689095 | F23: =IF('Data Sheet'!F30>0, 'Data Sheet'!F31/'Data Sheet'!F30, 0) -> 0.1438398999 | G23: =IF('Data Sheet'!G30>0, 'Data Sheet'!G31/'Data Sheet'!G30, 0) -> 0.09965337955 | H23: =IF('Data Sheet'!H30>0, 'Data Sheet'!H31/'Data Sheet'!H30, 0) -> 0.09012539185 | I23: =IF('Data Sheet'!I30>0, 'Data Sheet'!I31/'Data Sheet'!I30, 0) -> 0.09523809524 | J23: =IF('Data Sheet'!J30>0, 'Data Sheet'!J31/'Data Sheet'!J30, 0) -> 0.07387456714 | K23: =IF('Data Sheet'!K30>0, 'Data Sheet'!K31/'Data Sheet'!K30, 0) -> 0.09461864987
A24: OPM | B24: =IF(B6>0,B6/B4,0) -> 0.136307311 | C24: =IF(C6>0,C6/C4,0) -> 0.1612056291 | D24: 0.1367728882 | E24: 0.1599528063 | F24: 0.1624223996 | G24: 0.1839805574 | H24: 0.1109390022 | I24: 0.1773512664 | J24: 0.2267662582 | K24: 0.2493158508 | L24: 0.2514175524
G26: TRENDS: | H26: 10 YEARS | I26: 7 YEARS | J26: 5 YEARS | K26: 3 YEARS | L26: RECENT | M26: BEST | N26: WORST
G27: Sales Growth | H27: =IF(B4=0,"",POWER($K4/B4,1/9)-1) -> 0.2012232356 | I27: =IF(D4=0,"",POWER($K4/D4,1/7)-1) -> 0.2296660907 | J27: =IF(F4=0,"",POWER($K4/F4,1/5)-1) -> 0.2163063973 | K27: =IF(H4=0,"",POWER($K4/H4, 1/3)-1) -> 0.3093173941 | L27: =IF(ISERROR(MAX(IF(J4=0,"",(K4-J4)/J4),IF(K4=0,"",(L4-K4)/K4))),"",MAX(IF(J4=0,"",(K4-J4)/J4),IF(K4=0,"",(L4-K4)/K4))) -> 0.2970462051 | M27: =MAX(K27:L27) -> 0.3093173941 | N27: =MIN(H27:L27) -> 0.2012232356
G28: OPM | H28: =IF(SUM(B4:$K$4)=0,"",SUMPRODUCT(B24:$K$24,B4:$K$4)/SUM(B4:$K$4)) -> 0.1889575709 | I28: =IF(SUM(E4:$K$4)=0,"",SUMPRODUCT(E24:$K$24,E4:$K$4)/SUM(E4:$K$4)) -> 0.1964649517 | J28: =IF(SUM(G4:$K$4)=0,"",SUMPRODUCT(G24:$K$24,G4:$K$4)/SUM(G4:$K$4)) -> 0.2037710286 | K28: =IF(SUM(I4:$K$4)=0, "", SUMPRODUCT(I24:$K$24,I4:$K$4)/SUM(I4:$K$4)) -> 0.2261430048 | L28: =L24 -> 0.2514175524 | M28: =MAX(K28:L28) -> 0.2514175524 | N28: =MIN(H28:L28) -> 0.1889575709
G29: Price to Earning | H29: =IF(ISERROR(AVERAGEIF(B14:$L14,">0")),"",AVERAGEIF(B14:$L14,">0")) -> 20.72420633 | I29: =IF(ISERROR(AVERAGEIF(E14:$L14,">0")),"",AVERAGEIF(E14:$L14,">0")) -> 25.31994885 | J29: =IF(ISERROR(AVERAGEIF(G14:$L14,">0")),"",AVERAGEIF(G14:$L14,">0")) -> 26.89163285 | K29: =IF(ISERROR(AVERAGEIF(I14:$L14,">0")),"",AVERAGEIF(I14:$L14,">0")) -> 32.97452875 | L29: =L14 -> 39.91213554 | M29: =MAX(K29:L29) -> 39.91213554 | N29: =MIN(H29:L29) -> 20.72420633

Sheet Quarters
A1: ='Profit & Loss'!A1 -> SHIVALIK BIMETAL CONTROLS LTD | E1: =UPDATE ->  | J1: SCREENER.IN
A3: Narration | B3: ='Data Sheet'!B41 -> 2021-03-31 | C3: ='Data Sheet'!C41 -> 2021-06-30 | D3: ='Data Sheet'!D41 -> 2021-09-30 | E3: ='Data Sheet'!E41 -> 2021-12-31 | F3: ='Data Sheet'!F41 -> 2022-03-31 | G3: ='Data Sheet'!G41 -> 2022-06-30 | H3: ='Data Sheet'!H41 -> 2022-09-30 | I3: ='Data Sheet'!I41 -> 2022-12-31 | J3: ='Data Sheet'!J41 -> 2023-03-31 | K3: ='Data Sheet'!K41 -> 2023-06-30
A4: Sales | B4: ='Data Sheet'!B42 -> 66.86 | C4: ='Data Sheet'!C42 -> 70.31 | D4: ='Data Sheet'!D42 -> 76.23 | E4: ='Data Sheet'!E42 -> 88.13 | F4: ='Data Sheet'!F42 -> 89.32 | G4: ='Data Sheet'!G42 -> 97.69 | H4: ='Data Sheet'!H42 -> 104.87 | I4: ='Data Sheet'!I42 -> 107.54 | J4: ='Data Sheet'!J42 -> 110.13 | K4: ='Data Sheet'!K42 -> 113.07
A5: Expenses | B5: ='Data Sheet'!B43 -> 54.2 | C5: ='Data Sheet'!C43 -> 54.45 | D5: ='Data Sheet'!D43 -> 58.4 | E5: ='Data Sheet'!E43 -> 67.57 | F5: ='Data Sheet'!F43 -> 70.09 | G5: ='Data Sheet'!G43 -> 73.44 | H5: ='Data Sheet'!H43 -> 79.16 | I5: ='Data Sheet'!I43 -> 79.75 | J5: ='Data Sheet'!J43 -> 83.11 | K5: ='Data Sheet'!K43 -> 84.07
A6: Operating Profit | B6: ='Data Sheet'!B50 -> 12.66 | C6: ='Data Sheet'!C50 -> 15.86 | D6: ='Data Sheet'!D50 -> 17.83 | E6: ='Data Sheet'!E50 -> 20.56 | F6: ='Data Sheet'!F50 -> 19.23 | G6: ='Data Sheet'!G50 -> 24.25 | H6: ='Data Sheet'!H50 -> 25.71 | I6: ='Data Sheet'!I50 -> 27.79 | J6: ='Data Sheet'!J50 -> 27.02 | K6: ='Data Sheet'!K50 -> 29
A7: Other Income | B7: ='Data Sheet'!B44 -> 1.16 | C7: ='Data Sheet'!C44 -> 0.85 | D7: ='Data Sheet'!D44 -> 1.22 | E7: ='Data Sheet'!E44 -> 1.85 | F7: ='Data Sheet'!F44 -> 1.53 | G7: ='Data Sheet'!G44 -> 2.24 | H7: ='Data Sheet'!H44 -> 3.37 | I7: ='Data Sheet'!I44 -> 0.7 | J7: ='Data Sheet'!J44 -> 1.62 | K7: ='Data Sheet'!K44 -> 1.34
A8: Depreciation | B8: ='Data Sheet'!B45 -> 1.56 | C8: ='Data Sheet'!C45 -> 1.42 | D8: ='Data Sheet'!D45 -> 1.49 | E8: ='Data Sheet'!E45 -> 1.6 | F8: ='Data Sheet'!F45 -> 1.86 | G8: ='Data Sheet'!G45 -> 1.95 | H8: ='Data Sheet'!H45 -> 2.07 | I8: ='Data Sheet'!I45 -> 2.22 | J8: ='Data Sheet'!J45 -> 2.24 | K8: ='Data Sheet'!K45 -> 2.44
A9: Interest | B9: ='Data Sheet'!B46 -> 0.49 | C9: ='Data Sheet'!C46 -> 0.44 | D9: ='Data Sheet'!D46 -> 0.37 | E9: ='Data Sheet'!E46 -> 0.76 | F9: ='Data Sheet'!F46 -> 1.2 | G9: ='Data Sheet'!G46 -> 1.52 | H9: ='Data Sheet'!H46 -> 1.72 | I9: ='Data Sheet'!I46 -> 1.81 | J9: ='Data Sheet'!J46 -> 1.59 | K9: ='Data Sheet'!K46 -> 1.13
A10: Profit before tax | B10: ='Data Sheet'!B47 -> 11.77 | C10: ='Data Sheet'!C47 -> 14.85 | D10: ='Data Sheet'!D47 -> 17.19 | E10: ='Data Sheet'!E47 -> 20.05 | F10: ='Data Sheet'!F47 -> 17.7 | G10: ='Data Sheet'!G47 -> 23.02 | H10: ='Data Sheet'!H47 -> 25.29 | I10: ='Data Sheet'!I47 -> 24.46 | J10: ='Data Sheet'!J47 -> 24.81 | K10: ='Data Sheet'!K47 -> 26.77
A11: Tax | B11: ='Data Sheet'!B48 -> 3.2 | C11: ='Data Sheet'!C48 -> 3.66 | D11: ='Data Sheet'!D48 -> 4.37 | E11: ='Data Sheet'!E48 -> 5.36 | F11: ='Data Sheet'!F48 -> 4.43 | G11: ='Data Sheet'!G48 -> 5.9 | H11: ='Data Sheet'!H48 -> 6.53 | I11: ='Data Sheet'!I48 -> 6.22 | J11: ='Data Sheet'!J48 -> 5.91 | K11: ='Data Sheet'!K48 -> 6.54
A12: Net profit | B12: ='Data Sheet'!B49 -> 8.57 | C12: ='Data Sheet'!C49 -> 11.18 | D12: ='Data Sheet'!D49 -> 12.83 | E12: ='Data Sheet'!E49 -> 14.7 | F12: ='Data Sheet'!F49 -> 13.27 | G12: ='Data Sheet'!G49 -> 17.11 | H12: ='Data Sheet'!H49 -> 18.76 | I12: ='Data Sheet'!I49 -> 18.25 | J12: ='Data Sheet'!J49 -> 18.9 | K12: ='Data Sheet'!K49 -> 20.23
A14: OPM | B14: =IF(B4>0,B6/B4,"") -> 0.1893508824 | C14: =IF(C4>0,C6/C4,"") -> 0.2255724648 | D14: 0.2338974157 | E14: 0.2332917281 | F14: 0.2152933274 | G14: 0.2482342103 | H14: 0.2451606751 | I14: 0.2584154733 | J14: 0.2453464088 | K14: 0.2564782878
A16: EBIT | B16: =B10+B9 -> 12.26 | C16: =C10+C9 -> 15.29 | D16: 17.56 | E16: 20.81 | F16: 18.9 | G16: 24.54 | H16: 27.01 | I16: 26.27 | J16: 26.4 | K16: 27.9
A17: EBITDA | B17: =B16+B8 -> 13.82 | C17: =C16+C8 -> 16.71 | D17: 19.05 | E17: 22.41 | F17: 20.76 | G17: 26.49 | H17: 29.08 | I17: 28.49 | J17: 28.64 | K17: 30.34

Sheet Balance Sheet
A1: ='Profit & Loss'!A1 -> SHIVALIK BIMETAL CONTROLS LTD | E1: =UPDATE ->  | J1: SCREENER.IN
A3: Narration | B3: ='Data Sheet'!B56 -> 2014-03-31 | C3: ='Data Sheet'!C56 -> 2015-03-31 | D3: ='Data Sheet'!D56 -> 2016-03-31 | E3: ='Data Sheet'!E56 -> 2017-03-31 | F3: ='Data Sheet'!F56 -> 2018-03-31 | G3: ='Data Sheet'!G56 -> 2019-03-31 | H3: ='Data Sheet'!H56 -> 2020-03-31 | I3: ='Data Sheet'!I56 -> 2021-03-31 | J3: ='Data Sheet'!J56 -> 2022-03-31 | K3: ='Data Sheet'!K56 -> 2023-03-31 | L3: 2HFY20 | M3: Input data from 2QFY BS
A4: Equity Share Capital | B4: ='Data Sheet'!B57 -> 3.84 | C4: ='Data Sheet'!C57 -> 3.84 | D4: ='Data Sheet'!D57 -> 3.84 | E4: ='Data Sheet'!E57 -> 3.84 | F4: ='Data Sheet'!F57 -> 7.68 | G4: ='Data Sheet'!G57 -> 7.68 | H4: ='Data Sheet'!H57 -> 7.68 | I4: ='Data Sheet'!I57 -> 7.68 | J4: ='Data Sheet'!J57 -> 7.68 | K4: ='Data Sheet'!K57 -> 11.52
A5: Reserves | B5: ='Data Sheet'!B58 -> 52.36 | C5: ='Data Sheet'!C58 -> 57.04 | D5: ='Data Sheet'!D58 -> 61.15 | E5: ='Data Sheet'!E58 -> 67.4 | F5: ='Data Sheet'!F58 -> 77.59 | G5: ='Data Sheet'!G58 -> 97.86 | H5: ='Data Sheet'!H58 -> 107.64 | I5: ='Data Sheet'!I58 -> 130.55 | J5: ='Data Sheet'!J58 -> 179.5 | K5: ='Data Sheet'!K58 -> 243.49
A6: Borrowings | B6: ='Data Sheet'!B59 -> 38.68 | C6: ='Data Sheet'!C59 -> 44.06 | D6: ='Data Sheet'!D59 -> 42.48 | E6: ='Data Sheet'!E59 -> 28.64 | F6: ='Data Sheet'!F59 -> 35.89 | G6: ='Data Sheet'!G59 -> 44.77 | H6: ='Data Sheet'!H59 -> 24.85 | I6: ='Data Sheet'!I59 -> 29.24 | J6: ='Data Sheet'!J59 -> 57.94 | K6: ='Data Sheet'!K59 -> 52.65 | L6: =L8-(L7+L5+L4) -> 0
A7: Other Liabilities | B7: ='Data Sheet'!B60 -> 18.57 | C7: ='Data Sheet'!C60 -> 22.18 | D7: ='Data Sheet'!D60 -> 19.13 | E7: ='Data Sheet'!E60 -> 17.95 | F7: ='Data Sheet'!F60 -> 27.29 | G7: ='Data Sheet'!G60 -> 25.76 | H7: ='Data Sheet'!H60 -> 21.42 | I7: ='Data Sheet'!I60 -> 50.68 | J7: ='Data Sheet'!J60 -> 56.44 | K7: ='Data Sheet'!K60 -> 54.03 | M7: def tax liab+oth long term liab+other current liab
A8: Total | B8: ='Data Sheet'!B61 -> 113.45 | C8: ='Data Sheet'!C61 -> 127.12 | D8: ='Data Sheet'!D61 -> 126.6 | E8: ='Data Sheet'!E61 -> 117.83 | F8: ='Data Sheet'!F61 -> 148.45 | G8: ='Data Sheet'!G61 -> 176.07 | H8: ='Data Sheet'!H61 -> 161.59 | I8: ='Data Sheet'!I61 -> 218.15 | J8: ='Data Sheet'!J61 -> 301.56 | K8: ='Data Sheet'!K61 -> 361.69
A10: Net Block | B10: ='Data Sheet'!B62 -> 20.08 | C10: ='Data Sheet'!C62 -> 34.74 | D10: ='Data Sheet'!D62 -> 32.7 | E10: ='Data Sheet'!E62 -> 43.1 | F10: ='Data Sheet'!F62 -> 45.2 | G10: ='Data Sheet'!G62 -> 45.3 | H10: ='Data Sheet'!H62 -> 45.41 | I10: ='Data Sheet'!I62 -> 45.64 | J10: ='Data Sheet'!J62 -> 78.97 | K10: ='Data Sheet'!K62 -> 102.11 | L10: 54.36
A11: Capital Work in Progress | B11: ='Data Sheet'!B63 -> 17.85 | C11: ='Data Sheet'!C63 -> 3.97 | D11: ='Data Sheet'!D63 -> 4.24 | E11: ='Data Sheet'!E63 -> 4.47 | F11: ='Data Sheet'!F63 -> 4.72 | G11: ='Data Sheet'!G63 -> 5.99 | H11: ='Data Sheet'!H63 -> 17.54 | I11: ='Data Sheet'!I63 -> 24.79 | J11: ='Data Sheet'!J63 -> 7.55 | K11: ='Data Sheet'!K63 -> 2.99 | L11: 19.19
A12: Investments | B12: ='Data Sheet'!B64 -> 17.53 | C12: ='Data Sheet'!C64 -> 17.75 | D12: ='Data Sheet'!D64 -> 17.88 | E12: ='Data Sheet'!E64 -> 9.31 | F12: ='Data Sheet'!F64 -> 9.31 | G12: ='Data Sheet'!G64 -> 10.27 | H12: ='Data Sheet'!H64 -> 10.28 | I12: ='Data Sheet'!I64 -> 10.29 | J12: ='Data Sheet'!J64 -> 10.29 | K12: ='Data Sheet'!K64 -> 23.59
A13: Other Assets | B13: ='Data Sheet'!B65 -> 57.99 | C13: ='Data Sheet'!C65 -> 70.66 | D13: ='Data Sheet'!D65 -> 71.78 | E13: ='Data Sheet'!E65 -> 60.95 | F13: ='Data Sheet'!F65 -> 89.22 | G13: ='Data Sheet'!G65 -> 114.51 | H13: ='Data Sheet'!H65 -> 88.36 | I13: ='Data Sheet'!I65 -> 137.43 | J13: ='Data Sheet'!J65 -> 204.75 | K13: ='Data Sheet'!K65 -> 233 | M13: total current assets+long term loans and advances+other non current assets
A14: Total | B14: ='Data Sheet'!B66 -> 113.45 | C14: ='Data Sheet'!C66 -> 127.12 | D14: ='Data Sheet'!D66 -> 126.6 | E14: ='Data Sheet'!E66 -> 117.83 | F14: ='Data Sheet'!F66 -> 148.45 | G14: ='Data Sheet'!G66 -> 176.07 | H14: ='Data Sheet'!H66 -> 161.59 | I14: ='Data Sheet'!I66 -> 218.15 | J14: ='Data Sheet'!J66 -> 301.56 | K14: ='Data Sheet'!K66 -> 361.69 | L14: =L8 -> 0 | M14: =#REF!+L11+L12+L13 ->  | N14: check TA matching
A16: Working Capital | B16: =B13-B7 -> 39.42 | C16: 48.48 | D16: 52.65 | E16: 43 | F16: 61.93 | G16: 88.75 | H16: 66.94 | I16: 86.75 | J16: 148.31 | K16: 178.97 | L16: =L13-L7 -> 0
A17: Debtors | B17: ='Data Sheet'!B67 -> 21.74 | C17: ='Data Sheet'!C67 -> 24.08 | D17: ='Data Sheet'!D67 -> 24.08 | E17: ='Data Sheet'!E67 -> 26.42 | F17: ='Data Sheet'!F67 -> 33.59 | G17: ='Data Sheet'!G67 -> 34.58 | H17: ='Data Sheet'!H67 -> 30.95 | I17: ='Data Sheet'!I67 -> 42.82 | J17: ='Data Sheet'!J67 -> 59.28 | K17: ='Data Sheet'!K67 -> 79.98
A18: Inventory | B18: ='Data Sheet'!B68 -> 18.61 | C18: ='Data Sheet'!C68 -> 28.8 | D18: ='Data Sheet'!D68 -> 23.38 | E18: ='Data Sheet'!E68 -> 26.07 | F18: ='Data Sheet'!F68 -> 40.6 | G18: ='Data Sheet'!G68 -> 69.27 | H18: ='Data Sheet'!H68 -> 50.52 | I18: ='Data Sheet'!I68 -> 70.14 | J18: ='Data Sheet'!J68 -> 114.88 | K18: ='Data Sheet'!K68 -> 121.88
A19: Payables (Creditors) | B19: 9.74 | C19: 7.17 | D19: 7.96 | E19: 19.21 | F19: 37.43 | G19: 37.86 | H19: 25.62 | I19: 18.77 | J19: 35.37 | K19: 44.57 | M19: input Creditors (Payables) data from Screener/Annual Reports
A21: Inventory Turnover | B21: =IF('Balance Sheet'!B18>0,'Profit & Loss'!B4/'Balance Sheet'!B18,0) -> 4.336378291 | C21: =IF('Balance Sheet'!C18>0,'Profit & Loss'!C4/'Balance Sheet'!C18,0) -> 3.30625 | D21: =IF('Balance Sheet'!D18>0,'Profit & Loss'!D4/'Balance Sheet'!D18,0) -> 4.227972626 | E21: =IF('Balance Sheet'!E18>0,'Profit & Loss'!E4/'Balance Sheet'!E18,0) -> 4.551591868 | F21: =IF('Balance Sheet'!F18>0,'Profit & Loss'!F4/'Balance Sheet'!F18,0) -> 3.88817734 | G21: =IF('Balance Sheet'!G18>0,'Profit & Loss'!G4/'Balance Sheet'!G18,0) -> 2.791829075 | H21: =IF('Balance Sheet'!H18>0,'Profit & Loss'!H4/'Balance Sheet'!H18,0) -> 3.705859066 | I21: =IF('Balance Sheet'!I18>0,'Profit & Loss'!I4/'Balance Sheet'!I18,0) -> 2.904476761 | J21: =IF('Balance Sheet'!J18>0,'Profit & Loss'!J4/'Balance Sheet'!J18,0) -> 2.820247214 | K21: =IF('Balance Sheet'!K18>0,'Profit & Loss'!K4/'Balance Sheet'!K18,0) -> 3.447899573 | L21: =IF('Balance Sheet'!L18>0,'Profit & Loss'!L4/'Balance Sheet'!L18,0) -> 0
A22: Inventory Days | B22: =IF('Profit & Loss'!B4>0,'Balance Sheet'!B18/('Profit & Loss'!B4/365),0) -> 84.1716233 | C22: =IF('Profit & Loss'!C4>0,'Balance Sheet'!C18/('Profit & Loss'!C4/365),0) -> 110.3969754 | D22: =IF('Profit & Loss'!D4>0,'Balance Sheet'!D18/('Profit & Loss'!D4/365),0) -> 86.32979262 | E22: =IF('Profit & Loss'!E4>0,'Balance Sheet'!E18/('Profit & Loss'!E4/365),0) -> 80.19172425 | F22: =IF('Profit & Loss'!F4>0,'Balance Sheet'!F18/('Profit & Loss'!F4/365),0) -> 93.87431902 | G22: =IF('Profit & Loss'!G4>0,'Balance Sheet'!G18/('Profit & Loss'!G4/365),0) -> 130.7386628 | H22: =IF('Profit & Loss'!H4>0,'Balance Sheet'!H18/('Profit & Loss'!H4/365),0) -> 98.49268241 | I22: =IF('Profit & Loss'!I4>0,'Balance Sheet'!I18/('Profit & Loss'!I4/365),0) -> 125.6680738 | J22: =IF('Profit & Loss'!J4>0,'Balance Sheet'!J18/('Profit & Loss'!J4/365),0) -> 129.4212784 | K22: =IF('Profit & Loss'!K4>0,'Balance Sheet'!K18/('Profit & Loss'!K4/365),0) -> 105.861552 | L22: =IF('Profit & Loss'!L4>0,L18/('Profit & Loss'!L4/365),0) -> 0
A23: Debtor Days | B23: =IF('Profit & Loss'!B4>0,'Balance Sheet'!B17/('Profit & Loss'!B4/365),0) -> 98.3283767 | C23: =IF('Profit & Loss'!C4>0,'Balance Sheet'!C17/('Profit & Loss'!C4/365),0) -> 92.30413779 | D23: =IF('Profit & Loss'!D4>0,'Balance Sheet'!D17/('Profit & Loss'!D4/365),0) -> 88.91451694 | E23: =IF('Profit & Loss'!E4>0,'Balance Sheet'!E17/('Profit & Loss'!E4/365),0) -> 81.26832968 | F23: =IF('Profit & Loss'!F4>0,'Balance Sheet'!F17/('Profit & Loss'!F4/365),0) -> 77.66596985 | G23: =IF('Profit & Loss'!G4>0,'Balance Sheet'!G17/('Profit & Loss'!G4/365),0) -> 65.26552562 | H23: =IF('Profit & Loss'!H4>0,'Balance Sheet'!H17/('Profit & Loss'!H4/365),0) -> 60.33944023 | I23: =IF('Profit & Loss'!I4>0,'Balance Sheet'!I17/('Profit & Loss'!I4/365),0) -> 76.71951698 | J23: =IF('Profit & Loss'!J4>0,'Balance Sheet'!J17/('Profit & Loss'!J4/365),0) -> 66.7835427 | K23: =IF('Profit & Loss'!K4>0,'Balance Sheet'!K17/('Profit & Loss'!K4/365),0) -> 69.46838636 | L23: =IF('Profit & Loss'!L4>0, L17/('Profit & Loss'!L4/365),0) -> 0
A24: Creditor Days | B24: =IF('Profit & Loss'!B4>0,B19/('Profit & Loss'!B4/365),0) -> 44.05328377 | C24: =IF('Profit & Loss'!C4>0,C19/('Profit & Loss'!C4/365),0) -> 27.48424701 | D24: =IF('Profit & Loss'!D4>0,D19/('Profit & Loss'!D4/365),0) -> 29.39200809 | E24: =IF('Profit & Loss'!E4>0,E19/('Profit & Loss'!E4/365),0) -> 59.09025788 | F24: =IF('Profit & Loss'!F4>0,F19/('Profit & Loss'!F4/365),0) -> 86.54472317 | G24: =IF('Profit & Loss'!G4>0,G19/('Profit & Loss'!G4/365),0) -> 71.45612493 | H24: =IF('Profit & Loss'!H4>0,H19/('Profit & Loss'!H4/365),0) -> 49.9481893 | I24: =IF('Profit & Loss'!I4>0,I19/('Profit & Loss'!I4/365),0) -> 33.62973689 | J24: =IF('Profit & Loss'!J4>0,J19/('Profit & Loss'!J4/365),0) -> 39.84706318 | K24: =IF('Profit & Loss'!K4>0,K19/('Profit & Loss'!K4/365),0) -> 38.71225281 | L24: =IF('Profit & Loss'!L4>0,L10/('Profit & Loss'!L4/365),0) -> 45.54854113
A25: Cash Conversion Cycle | B25: =IF(B19>0,B22+B23-B24,0) -> 138.4467162 | C25: =IF(C19>0,C22+C23-C24,0) -> 175.2168662 | D25: 145.8523015 | E25: 102.3697961 | F25: 84.99556569 | G25: 124.5480635 | H25: 108.8839333 | I25: 168.7578539 | J25: 156.357758 | K25: 136.6176856 | L25: =IF(L10>0,L22+L23-L24,0) -> -45.54854113
A26: Working Capital/Sales | B26: =B16/'Profit & Loss'!B4 -> 0.4884758364 | C26: =C16/'Profit & Loss'!C4 -> 0.509136736 | D26: =D16/'Profit & Loss'!D4 -> 0.5326251897 | E26: =E16/'Profit & Loss'!E4 -> 0.362379909 | F26: =F16/'Profit & Loss'!F4 -> 0.3923096415 | G26: =G16/'Profit & Loss'!G4 -> 0.4589172139 | H26: =H16/'Profit & Loss'!H4 -> 0.3575472706 | I26: =I16/'Profit & Loss'!I4 -> 0.42582957 | J26: =J16/'Profit & Loss'!J4 -> 0.457761042 | K26: =K16/'Profit & Loss'!K4 -> 0.4258858244
A28: Return on Equity | B28: =IF(SUM('Balance Sheet'!B4:B5)>0,'Profit & Loss'!B12/SUM('Balance Sheet'!B4:B5),"") -> 0.0628113879 | C28: =IF(SUM('Balance Sheet'!C4:C5)>0,'Profit & Loss'!C12/SUM('Balance Sheet'!C4:C5),"") -> 0.08114323259 | D28: =IF(SUM('Balance Sheet'!D4:D5)>0,'Profit & Loss'!D12/SUM('Balance Sheet'!D4:D5),"") -> 0.06324049854 | E28: =IF(SUM('Balance Sheet'!E4:E5)>0,'Profit & Loss'!E12/SUM('Balance Sheet'!E4:E5),"") -> 0.1209994385 | F28: =IF(SUM('Balance Sheet'!F4:F5)>0,'Profit & Loss'!F12/SUM('Balance Sheet'!F4:F5),"") -> 0.187521989 | G28: =IF(SUM('Balance Sheet'!G4:G5)>0,'Profit & Loss'!G12/SUM('Balance Sheet'!G4:G5),"") -> 0.2186848588 | H28: =IF(SUM('Balance Sheet'!H4:H5)>0,'Profit & Loss'!H12/SUM('Balance Sheet'!H4:H5),"") -> 0.1106486299 | I28: =IF(SUM('Balance Sheet'!I4:I5)>0,'Profit & Loss'!I12/SUM('Balance Sheet'!I4:I5),"") -> 0.1747088186 | J28: =IF(SUM('Balance Sheet'!J4:J5)>0,'Profit & Loss'!J12/SUM('Balance Sheet'!J4:J5),"") -> 0.277700609 | K28: =IF(SUM('Balance Sheet'!K4:K5)>0,'Profit & Loss'!K12/SUM('Balance Sheet'!K4:K5),"") -> 0.2863809262 | L28: =IF(SUM('Balance Sheet'!L4:L5)>0,'Profit & Loss'!L12/SUM('Balance Sheet'!L4:L5),"") -> 
A29: Return on Capital Emp | B29: =IF(('Balance Sheet'!B10+'Balance Sheet'!B16)>0,('Profit & Loss'!B6-'Profit & Loss'!B8-'Profit & Loss'!B11)/('Balance Sheet'!B10+'Balance Sheet'!B16),"") -> 0.1351260504 | C29: =IF(('Balance Sheet'!C10+'Balance Sheet'!C16)>0,('Profit & Loss'!C6-'Profit & Loss'!C8-'Profit & Loss'!C11)/('Balance Sheet'!C10+'Balance Sheet'!C16),"") -> 0.1044220139 | D29: =IF(('Balance Sheet'!D10+'Balance Sheet'!D16)>0,('Profit & Loss'!D6-'Profit & Loss'!D8-'Profit & Loss'!D11)/('Balance Sheet'!D10+'Balance Sheet'!D16),"") -> 0.08728763913 | E29: =IF(('Balance Sheet'!E10+'Balance Sheet'!E16)>0,('Profit & Loss'!E6-'Profit & Loss'!E8-'Profit & Loss'!E11)/('Balance Sheet'!E10+'Balance Sheet'!E16),"") -> 0.1058072009 | F29: =IF(('Balance Sheet'!F10+'Balance Sheet'!F16)>0,('Profit & Loss'!F6-'Profit & Loss'!F8-'Profit & Loss'!F11)/('Balance Sheet'!F10+'Balance Sheet'!F16),"") -> 0.14141697 | G29: =IF(('Balance Sheet'!G10+'Balance Sheet'!G16)>0,('Profit & Loss'!G6-'Profit & Loss'!G8-'Profit & Loss'!G11)/('Balance Sheet'!G10+'Balance Sheet'!G16),"") -> 0.1589705334 | H29: =IF(('Balance Sheet'!H10+'Balance Sheet'!H16)>0,('Profit & Loss'!H6-'Profit & Loss'!H8-'Profit & Loss'!H11)/('Balance Sheet'!H10+'Balance Sheet'!H16),"") -> 0.09835336004 | I29: =IF(('Balance Sheet'!I10+'Balance Sheet'!I16)>0,('Profit & Loss'!I6-'Profit & Loss'!I8-'Profit & Loss'!I11)/('Balance Sheet'!I10+'Balance Sheet'!I16),"") -> 0.1641362641 | J29: =IF(('Balance Sheet'!J10+'Balance Sheet'!J16)>0,('Profit & Loss'!J6-'Profit & Loss'!J8-'Profit & Loss'!J11)/('Balance Sheet'!J10+'Balance Sheet'!J16),"") -> 0.2168250616 | K29: =IF(('Balance Sheet'!K10+'Balance Sheet'!K16)>0,('Profit & Loss'!K6-'Profit & Loss'!K8-'Profit & Loss'!K11)/('Balance Sheet'!K10+'Balance Sheet'!K16),"") -> 0.2552298278
A31: Book Value | B31: =B4+B5 -> 56.2 | C31: 60.88 | D31: 64.99 | E31: 71.24 | F31: 85.27 | G31: 105.54 | H31: 115.32 | I31: 138.23 | J31: 187.18 | K31: 255.01 | L31: 0
A32: BVPS | B32: =IF('Data Sheet'!B93>0,B31/'Data Sheet'!B93,0) -> 9.756944444 | C32: =IF('Data Sheet'!C93>0,C31/'Data Sheet'!C93,0) -> 10.56944444 | D32: =IF('Data Sheet'!D93>0,D31/'Data Sheet'!D93,0) -> 11.28298611 | E32: =IF('Data Sheet'!E93>0,E31/'Data Sheet'!E93,0) -> 12.36805556 | F32: =IF('Data Sheet'!F93>0,F31/'Data Sheet'!F93,0) -> 14.80381944 | G32: =IF('Data Sheet'!G93>0,G31/'Data Sheet'!G93,0) -> 18.32291667 | H32: =IF('Data Sheet'!H93>0,H31/'Data Sheet'!H93,0) -> 20.02083333 | I32: =IF('Data Sheet'!I93>0,I31/'Data Sheet'!I93,0) -> 23.99826389 | J32: =IF('Data Sheet'!J93>0,J31/'Data Sheet'!J93,0) -> 32.49652778 | K32: =IF('Data Sheet'!K93>0,K31/'Data Sheet'!K93,0) -> 44.27256944 | L32: =IF('Data Sheet'!K93>0,L31/'Data Sheet'!K93,0) -> 0
A34: Cash & Bank Balances | B34: ='Data Sheet'!B69 -> 0.39 | C34: ='Data Sheet'!C69 -> 0.37 | D34: ='Data Sheet'!D69 -> 8.18 | E34: ='Data Sheet'!E69 -> 1.09 | F34: ='Data Sheet'!F69 -> 0.35 | G34: ='Data Sheet'!G69 -> 0.49 | H34: ='Data Sheet'!H69 -> 0.42 | I34: ='Data Sheet'!I69 -> 15.93 | J34: ='Data Sheet'!J69 -> 11.82 | K34: ='Data Sheet'!K69 -> 17.06
A35: Cash/Sales | B35: =B34/'Data Sheet'!B17 -> 0.004832713755 | C35: =C34/'Data Sheet'!C17 -> 0.00388573829 | D35: =D34/'Data Sheet'!D17 -> 0.0827516439 | E35: =E34/'Data Sheet'!E17 -> 0.009185909321 | F35: =F34/'Data Sheet'!F17 -> 0.002217154441 | G35: =G34/'Data Sheet'!G17 -> 0.002533740111 | H35: =H34/'Data Sheet'!H17 -> 0.002243350069 | I35: =I34/'Data Sheet'!I17 -> 0.07819556254 | J35: =J34/'Data Sheet'!J17 -> 0.03648260749 | K35: =K34/'Data Sheet'!K17 -> 0.04059681603
A36: Gross Block | B36: 20.01 | C36: 41.57 | D36: 34.33 | E36: 159.47 | F36: 184.59 | G36: 196.76 | H36: 212.98 | I36: 224.73 | J36: 256.99 | K36: 275.76
A37: Common Size Balance Sheet | B37: =B3 -> 2014-03-31 | C37: 2015-03-31 | D37: 2016-03-31 | E37: 2017-03-31 | F37: 2018-03-31 | G37: 2019-03-31 | H37: 2020-03-31 | I37: 2021-03-31 | J37: 2022-03-31 | K37: 2023-03-31 | L37: Check back how Assets are being put to use
A38: Net Block/Total Assets | B38: =B10/B$8 -> 0.1769942706 | C38: 0.273285085 | D38: 0.2582938389 | E38: 0.3657812102 | F38: 0.3044796228 | G38: 0.2572840348 | H38: 0.2810198651 | I38: 0.2092138437 | J38: 0.261871601 | K38: 0.2823135835 | L38: high historical Fixed Assets/Total Assets - strong correlation high Op Leverage
A39: Working Capital/Total Assets | B39: =B16/B$8 -> 0.347465844 | C39: 0.381371932 | D39: 0.4158767773 | E39: 0.3649325299 | F39: 0.4171775008 | G39: 0.5040608849 | H39: 0.4142583081 | I39: 0.3976621591 | J39: 0.4918092585 | K39: 0.4948160027
A40: Debtors/Total Assets | B40: =B17/B$8 -> 0.1916262671 | C40: 0.1894273128 | D40: 0.1902053712 | E40: 0.2242213358 | F40: 0.2262714719 | G40: 0.1963991594 | H40: 0.1915341296 | I40: 0.1962869585 | J40: 0.1965777955 | K40: 0.2211285908
A41: Inventory/Total Assets | B41: =B18/B$8 -> 0.1640370207 | C41: 0.2265575834 | D41: 0.1846761453 | E41: 0.2212509548 | F41: 0.2734927585 | G41: 0.3934230704 | H41: 0.3126431091 | I41: 0.3215218886 | J41: 0.380952381 | K41: 0.3369736515
A42: Cash/Total Assets | B42: =B34/B$8 -> 0.003437637726 | C42: =C34/C$8 -> 0.00291063562 | D42: 0.06461295419 | E42: 0.009250615293 | F42: 0.002357696194 | G42: 0.00278298404 | H42: 0.002599170741 | I42: 0.07302314921 | J42: 0.03919617986 | K42: 0.04716746385 | L42: check for excluding excess cash (over and above historical normalised levels)
A44: Borrowings/Total Assets | B44: =B6/B$8 -> 0.3409431468 | C44: 0.3466016362 | D44: 0.3355450237 | E44: 0.2430620385 | F44: 0.241764904 | G44: 0.2542738683 | H44: 0.1537842688 | I44: 0.1340362136 | J44: 0.1921342353 | K44: 0.1455666455

Sheet Cash Flow
A1: ='Balance Sheet'!A1 -> SHIVALIK BIMETAL CONTROLS LTD | E1: =UPDATE ->  | J1: SCREENER.IN
A3: Narration | B3: ='Data Sheet'!B81 -> 2014-03-31 | C3: ='Data Sheet'!C81 -> 2015-03-31 | D3: ='Data Sheet'!D81 -> 2016-03-31 | E3: ='Data Sheet'!E81 -> 2017-03-31 | F3: ='Data Sheet'!F81 -> 2018-03-31 | G3: ='Data Sheet'!G81 -> 2019-03-31 | H3: ='Data Sheet'!H81 -> 2020-03-31 | I3: ='Data Sheet'!I81 -> 2021-03-31 | J3: ='Data Sheet'!J81 -> 2022-03-31 | K3: ='Data Sheet'!K81 -> 2023-03-31
A4: Cash from Operating Activity | B4: ='Data Sheet'!B82 -> 9.61 | C4: ='Data Sheet'!C82 -> 2.74 | D4: ='Data Sheet'!D82 -> 15.48 | E4: ='Data Sheet'!E82 -> 11.73 | F4: ='Data Sheet'!F82 -> 5.64 | G4: ='Data Sheet'!G82 -> 3.76 | H4: ='Data Sheet'!H82 -> 41.24 | I4: ='Data Sheet'!I82 -> 29.49 | J4: ='Data Sheet'!J82 -> -3.48 | K4: ='Data Sheet'!K82 -> 61.22
A5: Cash from Investing Activity | B5: ='Data Sheet'!B83 -> -4.51 | C5: ='Data Sheet'!C83 -> -4.9 | D5: ='Data Sheet'!D83 -> -2.11 | E5: ='Data Sheet'!E83 -> -3.1 | F5: ='Data Sheet'!F83 -> -7.09 | G5: ='Data Sheet'!G83 -> -7.08 | H5: ='Data Sheet'!H83 -> -14.45 | I5: ='Data Sheet'!I83 -> -14.72 | J5: ='Data Sheet'!J83 -> -24.18 | K5: ='Data Sheet'!K83 -> -37.47
A6: Cash from Financing Activity | B6: ='Data Sheet'!B84 -> -5.1 | C6: ='Data Sheet'!C84 -> 2.13 | D6: ='Data Sheet'!D84 -> -5.55 | E6: ='Data Sheet'!E84 -> -16.57 | F6: ='Data Sheet'!F84 -> 1.49 | G6: ='Data Sheet'!G84 -> 3.49 | H6: ='Data Sheet'!H84 -> -26.91 | I6: ='Data Sheet'!I84 -> 0.62 | J6: ='Data Sheet'!J84 -> 22.87 | K6: ='Data Sheet'!K84 -> -17.78
A7: Net Cash Flow | B7: ='Data Sheet'!B85 -> 0 | C7: ='Data Sheet'!C85 -> -0.03 | D7: ='Data Sheet'!D85 -> 7.81 | E7: ='Data Sheet'!E85 -> -7.94 | F7: ='Data Sheet'!F85 -> 0.05 | G7: ='Data Sheet'!G85 -> 0.17 | H7: ='Data Sheet'!H85 -> -0.12 | I7: ='Data Sheet'!I85 -> 15.39 | J7: ='Data Sheet'!J85 -> -4.79 | K7: ='Data Sheet'!K85 -> 5.97

Sheet Customization
A1: ='Data Sheet'!B1 -> SHIVALIK BIMETAL CONTROLS LTD
B4: DELTA NETWORTH | C4: DELTA MKTCAP | D4: IMPACT* | F4: HISTORICAL VALUATIONS | N4: PRE-TAX BOND
A5: 10 YR | B5: ='Calculated Data'!K10-'Calculated Data'!B10 -> 198.81 | C5: ='Calculated Data'!K33-'Calculated Data'!B33 -> 2941.632 | D5: =C5/B5 -> 14.79619737 | G5: P/E | H5: P/B | I5: EV/EBITDA | J5: P/SALES | K5: YIELD | L5: P/CFO | N5: LongTerm Bond | O5: 0.09
A6: 7 YR | B6: ='Calculated Data'!K10-'Calculated Data'!E10 -> 183.77 | C6: ='Calculated Data'!K33-'Calculated Data'!E33 -> 2835.5328 | D6: =C6/B6 -> 15.42979159 | F6: MIN | G6: =MIN('Calculated Data'!B38:K38) -> 4.487252125 | H6: =MIN('Calculated Data'!B39:K39) -> 0.2818505338 | I6: =MIN('Calculated Data'!B42:K42) -> 4.194539732 | J6: =MIN('Calculated Data'!B41:K41) -> 0.1962825279 | K6: =MAX('Calculated Data'!B43:K43) -> 0.01399108464 | L6: =MIN('Calculated Data'!B40:K40) -> -566.7310345 | N6: LTB Quote | O6: =('Profit & Loss'!$L$10/'Data Sheet'!$B$61)/O5 -> 9.924097743
A7: 5 YR | B7: ='Calculated Data'!K10-'Calculated Data'!G10 -> 149.47 | C7: ='Calculated Data'!K33-'Calculated Data'!G33 -> 2426.4 | D7: =C7/B7 -> 16.23335786 | F7: MAX | G7: =MAX('Calculated Data'!B38:K38) -> 40.4966726 | H7: =MAX('Calculated Data'!B39:K39) -> 11.59747461 | I7: =MAX('Calculated Data'!B42:K42) -> 26.55778172 | J7: =MAX('Calculated Data'!B41:K41) -> 7.037745996 | K7: =MIN('Calculated Data'!B43:K43) -> 0 | L7: =MAX('Calculated Data'!B40:K40) -> 141.2425532 | N7: Equity Quoting @ | O7: =('Profit & Loss'!$L$6/'Data Sheet'!$B$6)/'Data Sheet'!$B$8 -> 0.03603923775
A8: 3 YR | B8: ='Calculated Data'!K10-'Calculated Data'!I10 -> 116.78 | C8: ='Calculated Data'!K33-'Calculated Data'!I33 -> 2630.304 | D8: =C8/B8 -> 22.52358281 | F8: TRAILING | G8: ='Data Sheet'!B8/'Profit & Loss'!L13 -> 39.91213554 | H8: ='Calculated Data'!L33/'Calculated Data'!K10 -> 11.91682679 | I8: ='Calculated Data'!K42 -> 26.55778172 | J8: ='Calculated Data'!L33/'Profit & Loss'!L4 -> 6.976217259 | K8: ='Data Sheet'!K31/'Calculated Data'!L33 -> 0.002273841608 | L8: ='Calculated Data'!L33/'Data Sheet'!K82 -> 49.63917021
A9: 1 YR | B9: ='Calculated Data'!K10-'Calculated Data'!J10 -> 67.83 | C9: ='Calculated Data'!K33-'Calculated Data'!J33 -> 985.248 | D9: =C9/B9 -> 14.52525431
A10: * IMPACT – Every Rupee retained added xx.yy in incremental market value
A12: =A1 -> SHIVALIK BIMETAL CONTROLS LTD | B12: SALES | C12: GROSS PROFIT | D12: EBIT | E12: PAT | F12: DIVIDEND | G12: EPA** | H12: MKTCAP | I12: CFO** | J12: FCF** | K12: NETWORTH | L12: TOTAL RETURNS
A13: 10 YR CAGR | B13: =POWER('Data Sheet'!$K17/'Data Sheet'!$B17, 1/9)-1 -> 0.2012232356 | C13: =POWER('Calculated Data'!$K3/'Calculated Data'!$B3, 1/9)-1 -> 0.2241396544 | D13: =POWER('Calculated Data'!$K4/'Calculated Data'!$B4, 1/9)-1 -> 0.3436824755 | E13: =POWER('Calculated Data'!$K7/'Calculated Data'!$B7, 1/9)-1 -> 0.4002057086 | F13: =POWER('Calculated Data'!$K8/'Calculated Data'!$B8, 1/9)-1 ->  | G13: =POWER('Calculated Data'!$K26/'Calculated Data'!$B26, 1/9)-1 -> -2.344421084 | H13: =POWER('Calculated Data'!$K33/'Calculated Data'!$B33, 1/9)-1 -> 0.7879349679 | I13: =POWER('Calculated Data'!$K17/'Calculated Data'!$B17, 1/9)-1 -> 0.2284350951 | J13: =POWER('Calculated Data'!$K19/'Calculated Data'!$C19, 1/8)-1 ->  | K13: =POWER('Calculated Data'!$K10/'Calculated Data'!$B10, 1/9)-1 -> 0.182987347 | L13: =POWER('Calculated Data'!$K34/'Calculated Data'!$B34, 1/9)-1 -> 0.7883986454
A14: 5 YR CAGR | B14: =POWER('Data Sheet'!$K17/'Data Sheet'!$G17, 1/4)-1 -> 0.2141246036 | C14: =POWER('Calculated Data'!$K3/'Calculated Data'!$G3, 1/4)-1 -> 0.2335275296 | D14: =POWER('Calculated Data'!$K4/'Calculated Data'!$G4, 1/4)-1 -> 0.3037116675 | E14: =POWER('Calculated Data'!$K7/'Calculated Data'!$G7, 1/4)-1 -> 0.3337252523 | F14: =POWER('Calculated Data'!$K8/'Calculated Data'!$G8, 1/4)-1 -> 0.3165505924 | G14: =POWER('Calculated Data'!$K26/'Calculated Data'!$G26, 1/4)-1 -> 0.4938438759 | H14: =POWER('Calculated Data'!$K33/'Calculated Data'!$G33, 1/4)-1 -> 0.5361789483 | I14: =POWER('Calculated Data'!$K17/'Calculated Data'!$G17, 1/4)-1 -> 1.008752222 | J14: =POWER('Calculated Data'!$K19/'Calculated Data'!$G19, 1/4)-1 ->  | K14: =POWER('Calculated Data'!$K10/'Calculated Data'!$G10, 1/4)-1 -> 0.2467662298 | L14: =POWER('Calculated Data'!$K34/'Calculated Data'!$G34, 1/4)-1 -> 0.5354157408
A15: 3 YR CAGR | B15: =POWER('Data Sheet'!$K17/'Data Sheet'!$I17, 1/2)-1 -> 0.4362389252 | C15: =POWER('Calculated Data'!$K3/'Calculated Data'!$I3, 1/2)-1 -> 0.469608445 | D15: =POWER('Calculated Data'!$K4/'Calculated Data'!$I4, 1/2)-1 -> 0.7437168419 | E15: =POWER('Calculated Data'!$K7/'Calculated Data'!$I7, 1/2)-1 -> 0.7389699719 | F15: =POWER('Calculated Data'!$K8/'Calculated Data'!$I8, 1/2)-1 -> 0.7333054624 | G15: =POWER('Calculated Data'!$K26/'Calculated Data'!$I26, 1/2)-1 -> 1.600318611 | H15: =POWER('Calculated Data'!$K33/'Calculated Data'!$I33, 1/2)-1 -> 2.006594864 | I15: =POWER('Calculated Data'!$K17/'Calculated Data'!$I17, 1/2)-1 -> 0.4408185007 | J15: =POWER('Calculated Data'!$K19/'Calculated Data'!$I19, 1/2)-1 -> 0.4563800433 | K15: =POWER('Calculated Data'!$K10/'Calculated Data'!$I10, 1/2)-1 -> 0.3582429254 | L15: =POWER('Calculated Data'!$K34/'Calculated Data'!$I34, 1/2)-1 -> 1.999580102
A16: 1 YR GROWTH | B16: =('Data Sheet'!$K17-'Data Sheet'!$J17)/'Data Sheet'!$J17 -> 0.2970462051 | C16: =('Calculated Data'!$K3-'Calculated Data'!$J3)/'Calculated Data'!$J3 -> 0.2911867307 | D16: =('Calculated Data'!$K4-'Calculated Data'!$J4)/'Calculated Data'!$J4 -> 0.4368624207 | E16: =('Calculated Data'!$K7-'Calculated Data'!$J7)/'Calculated Data'!$J7 -> 0.4049634475 | F16: =('Calculated Data'!$K8-'Calculated Data'!$J8)/'Calculated Data'!$J8 -> 0.7994791667 | G16: =('Calculated Data'!$K26-'Calculated Data'!$J26)/'Calculated Data'!$J26 -> 0.6989323711 | H16: =('Calculated Data'!$K33-'Calculated Data'!$J33)/'Calculated Data'!$J33 -> 0.4995619159 | I16: =('Calculated Data'!$K17-'Calculated Data'!$J17)/'Calculated Data'!$J17 -> -18.59195402 | J16: =('Calculated Data'!$K19-'Calculated Data'!$J19)/'Calculated Data'!$J19 -> -2.316763006 | K16: =('Calculated Data'!$K10-'Calculated Data'!$J10)/'Calculated Data'!$J10 -> 0.3623784592 | L16: =('Calculated Data'!$K34-'Calculated Data'!$J34)/'Calculated Data'!$J34 -> 0.5001447322
A17: **modify (if, then) for negative values
A18: =A1 -> SHIVALIK BIMETAL CONTROLS LTD | B18: ='Data Sheet'!B16 -> 2014-03-31 | C18: ='Data Sheet'!C16 -> 2015-03-31 | D18: ='Data Sheet'!D16 -> 2016-03-31 | E18: ='Data Sheet'!E16 -> 2017-03-31 | F18: ='Data Sheet'!F16 -> 2018-03-31 | G18: ='Data Sheet'!G16 -> 2019-03-31 | H18: ='Data Sheet'!H16 -> 2020-03-31 | I18: ='Data Sheet'!I16 -> 2021-03-31 | J18: ='Data Sheet'!J16 -> 2022-03-31 | K18: ='Data Sheet'!K16 -> 2023-03-31 | L18: TTM | M18: input TTM BS data in Balance Sheet from Half yearly results
A19: Total Assets/Networth= Financial Leverage | B19: ='Calculated Data'!B15/'Calculated Data'!B10 -> 2.018683274 | C19: ='Calculated Data'!C15/'Calculated Data'!C10 -> 2.08804205 | D19: ='Calculated Data'!D15/'Calculated Data'!D10 -> 1.947991999 | E19: ='Calculated Data'!E15/'Calculated Data'!E10 -> 1.653986524 | F19: ='Calculated Data'!F15/'Calculated Data'!F10 -> 1.740940542 | G19: ='Calculated Data'!G15/'Calculated Data'!G10 -> 1.66827743 | H19: ='Calculated Data'!H15/'Calculated Data'!H10 -> 1.401231356 | I19: ='Calculated Data'!I15/'Calculated Data'!I10 -> 1.578166823 | J19: ='Calculated Data'!J15/'Calculated Data'!J10 -> 1.611069559 | K19: ='Calculated Data'!K15/'Calculated Data'!K10 -> 1.418336536 | L19: ='Balance Sheet'!L8/'Calculated Data'!L10 -> 
A20: Long term debt/Earning | B20: ='Data Sheet'!B59/'Data Sheet'!B30 -> 10.95750708 | C20: ='Data Sheet'!C59/'Data Sheet'!C30 -> 8.91902834 | D20: ='Data Sheet'!D59/'Data Sheet'!D30 -> 10.33576642 | E20: ='Data Sheet'!E59/'Data Sheet'!E30 -> 3.3225058 | F20: ='Data Sheet'!F59/'Data Sheet'!F30 -> 2.24452783 | G20: ='Data Sheet'!G59/'Data Sheet'!G30 -> 1.939774697 | H20: ='Data Sheet'!H59/'Data Sheet'!H30 -> 1.947492163 | I20: ='Data Sheet'!I59/'Data Sheet'!I30 -> 1.210766046 | J20: ='Data Sheet'!J59/'Data Sheet'!J30 -> 1.114659484 | K20: ='Data Sheet'!K59/'Data Sheet'!K30 -> 0.7209366014
A21: Current liablility/Earning | B21: ='Data Sheet'!B60/'Data Sheet'!B30 -> 5.260623229 | C21: ='Data Sheet'!C60/'Data Sheet'!C30 -> 4.489878543 | D21: ='Data Sheet'!D60/'Data Sheet'!D30 -> 4.654501217 | E21: ='Data Sheet'!E60/'Data Sheet'!E30 -> 2.082366589 | F21: ='Data Sheet'!F60/'Data Sheet'!F30 -> 1.706691682 | G21: ='Data Sheet'!G60/'Data Sheet'!G30 -> 1.116117851 | H21: ='Data Sheet'!H60/'Data Sheet'!H30 -> 1.678683386 | I21: ='Data Sheet'!I60/'Data Sheet'!I30 -> 2.098550725 | J21: ='Data Sheet'!J60/'Data Sheet'!J30 -> 1.085802232 | K21: ='Data Sheet'!K60/'Data Sheet'!K30 -> 0.7398329454
A22: Total liability/Earning | B22: =('Data Sheet'!B59+'Data Sheet'!B60)/'Data Sheet'!B30 -> 16.21813031 | C22: =('Data Sheet'!C59+'Data Sheet'!C60)/'Data Sheet'!C30 -> 13.40890688 | D22: =('Data Sheet'!D59+'Data Sheet'!D60)/'Data Sheet'!D30 -> 14.99026764 | E22: =('Data Sheet'!E59+'Data Sheet'!E60)/'Data Sheet'!E30 -> 5.40487239 | F22: =('Data Sheet'!F59+'Data Sheet'!F60)/'Data Sheet'!F30 -> 3.951219512 | G22: =('Data Sheet'!G59+'Data Sheet'!G60)/'Data Sheet'!G30 -> 3.055892548 | H22: =('Data Sheet'!H59+'Data Sheet'!H60)/'Data Sheet'!H30 -> 3.626175549 | I22: =('Data Sheet'!I59+'Data Sheet'!I60)/'Data Sheet'!I30 -> 3.30931677 | J22: =('Data Sheet'!J59+'Data Sheet'!J60)/'Data Sheet'!J30 -> 2.200461716 | K22: =('Data Sheet'!K59+'Data Sheet'!K60)/'Data Sheet'!K30 -> 1.460769547
A23: Debt/Equity | B23: ='Data Sheet'!B59/'Calculated Data'!B10 -> 0.6882562278 | C23: ='Data Sheet'!C59/'Calculated Data'!C10 -> 0.7237187911 | D23: ='Data Sheet'!D59/'Calculated Data'!D10 -> 0.6536390214 | E23: ='Data Sheet'!E59/'Calculated Data'!E10 -> 0.4020213363 | F23: ='Data Sheet'!F59/'Calculated Data'!F10 -> 0.420898323 | G23: ='Data Sheet'!G59/'Calculated Data'!G10 -> 0.4241993557 | H23: ='Data Sheet'!H59/'Calculated Data'!H10 -> 0.2154873396 | I23: ='Data Sheet'!I59/'Calculated Data'!I10 -> 0.2115315055 | J23: ='Data Sheet'!J59/'Calculated Data'!J10 -> 0.3095416177 | K23: ='Data Sheet'!K59/'Calculated Data'!K10 -> 0.2064624917
A24: Interest Coverage | B24: ='Calculated Data'!B4/'Data Sheet'!B27 -> 2.302839117 | C24: ='Calculated Data'!C4/'Data Sheet'!C27 -> 3.634375 | D24: ='Calculated Data'!D4/'Data Sheet'!D27 -> 2.666666667 | E24: ='Calculated Data'!E4/'Data Sheet'!E27 -> 6.488188976 | F24: ='Calculated Data'!F4/'Data Sheet'!F27 -> 7.604229607 | G24: ='Calculated Data'!G4/'Data Sheet'!G27 -> 10.07821229 | H24: ='Calculated Data'!H4/'Data Sheet'!H27 -> 6.602040816 | I24: ='Calculated Data'!I4/'Data Sheet'!I27 -> 21.03067485 | J24: ='Calculated Data'!J4/'Data Sheet'!J27 -> 26.2826087 | K24: ='Calculated Data'!K4/'Data Sheet'!K27 -> 15.69728916
A25: Working Capital/Sales | B25: ='Calculated Data'!B11/'Data Sheet'!B17 -> 0.4884758364 | C25: ='Calculated Data'!C11/'Data Sheet'!C17 -> 0.509136736 | D25: ='Calculated Data'!D11/'Data Sheet'!D17 -> 0.5326251897 | E25: ='Calculated Data'!E11/'Data Sheet'!E17 -> 0.362379909 | F25: ='Calculated Data'!F11/'Data Sheet'!F17 -> 0.3923096415 | G25: ='Calculated Data'!G11/'Data Sheet'!G17 -> 0.4589172139 | H25: ='Calculated Data'!H11/'Data Sheet'!H17 -> 0.3575472706 | I25: ='Calculated Data'!I11/'Data Sheet'!I17 -> 0.42582957 | J25: ='Calculated Data'!J11/'Data Sheet'!J17 -> 0.457761042 | K25: ='Calculated Data'!K11/'Data Sheet'!K17 -> 0.4258858244 | M25: Check for improving or deteriorating picture
A26: Inventory Turns | B26: =365/B27 -> 4.336378291 | C26: 3.30625 | D26: 4.227972626 | E26: 4.551591868 | F26: 3.88817734 | G26: 2.791829075 | H26: 3.705859066 | I26: 2.904476761 | J26: 2.820247214 | K26: 3.447899573
A27: Inventory Days | B27: ='Balance Sheet'!B22 -> 84.1716233 | C27: ='Balance Sheet'!C22 -> 110.3969754 | D27: ='Balance Sheet'!D22 -> 86.32979262 | E27: ='Balance Sheet'!E22 -> 80.19172425 | F27: ='Balance Sheet'!F22 -> 93.87431902 | G27: ='Balance Sheet'!G22 -> 130.7386628 | H27: ='Balance Sheet'!H22 -> 98.49268241 | I27: ='Balance Sheet'!I22 -> 125.6680738 | J27: ='Balance Sheet'!J22 -> 129.4212784 | K27: ='Balance Sheet'!K22 -> 105.861552
A28: Debtor Days | B28: ='Balance Sheet'!B23 -> 98.3283767 | C28: ='Balance Sheet'!C23 -> 92.30413779 | D28: ='Balance Sheet'!D23 -> 88.91451694 | E28: ='Balance Sheet'!E23 -> 81.26832968 | F28: ='Balance Sheet'!F23 -> 77.66596985 | G28: ='Balance Sheet'!G23 -> 65.26552562 | H28: ='Balance Sheet'!H23 -> 60.33944023 | I28: ='Balance Sheet'!I23 -> 76.71951698 | J28: ='Balance Sheet'!J23 -> 66.7835427 | K28: ='Balance Sheet'!K23 -> 69.46838636
A29: Creditor Days | B29: ='Balance Sheet'!B24 -> 44.05328377 | C29: ='Balance Sheet'!C24 -> 27.48424701 | D29: ='Balance Sheet'!D24 -> 29.39200809 | E29: ='Balance Sheet'!E24 -> 59.09025788 | F29: ='Balance Sheet'!F24 -> 86.54472317 | G29: ='Balance Sheet'!G24 -> 71.45612493 | H29: ='Balance Sheet'!H24 -> 49.9481893 | I29: ='Balance Sheet'!I24 -> 33.62973689 | J29: ='Balance Sheet'!J24 -> 39.84706318 | K29: ='Balance Sheet'!K24 -> 38.71225281 | M29: Check back to see if Creditor policy change is impacting Working Cap cycle
A30: Cash Conversion Cycle | B30: ='Balance Sheet'!B25 -> 138.4467162 | C30: ='Balance Sheet'!C25 -> 175.2168662 | D30: ='Balance Sheet'!D25 -> 145.8523015 | E30: ='Balance Sheet'!E25 -> 102.3697961 | F30: ='Balance Sheet'!F25 -> 84.99556569 | G30: ='Balance Sheet'!G25 -> 124.5480635 | H30: ='Balance Sheet'!H25 -> 108.8839333 | I30: ='Balance Sheet'!I25 -> 168.7578539 | J30: ='Balance Sheet'!J25 -> 156.357758 | K30: ='Balance Sheet'!K25 -> 136.6176856
A31: Cash In/Cash Out Ratio | B31: =('Data Sheet'!B67+'Data Sheet'!B69)/'Data Sheet'!B60 -> 1.191707054 | C31: =('Data Sheet'!C67+'Data Sheet'!C69)/'Data Sheet'!C60 -> 1.102344454 | D31: =('Data Sheet'!D67+'Data Sheet'!D69)/'Data Sheet'!D60 -> 1.686356508 | E31: =('Data Sheet'!E67+'Data Sheet'!E69)/'Data Sheet'!E60 -> 1.532590529 | F31: =('Data Sheet'!F67+'Data Sheet'!F69)/'Data Sheet'!F60 -> 1.243679003 | G31: =('Data Sheet'!G67+'Data Sheet'!G69)/'Data Sheet'!G60 -> 1.361413043 | H31: =('Data Sheet'!H67+'Data Sheet'!H69)/'Data Sheet'!H60 -> 1.464519141 | I31: =('Data Sheet'!I67+'Data Sheet'!I69)/'Data Sheet'!I60 -> 1.159234412 | J31: =('Data Sheet'!J67+'Data Sheet'!J69)/'Data Sheet'!J60 -> 1.259744862 | K31: =('Data Sheet'!K67+'Data Sheet'!K69)/'Data Sheet'!K60 -> 1.796039237
A32: Current Ratio | B32: ='Data Sheet'!B65/'Data Sheet'!B60 -> 3.122778675 | C32: ='Data Sheet'!C65/'Data Sheet'!C60 -> 3.185752931 | D32: ='Data Sheet'!D65/'Data Sheet'!D60 -> 3.752221641 | E32: ='Data Sheet'!E65/'Data Sheet'!E60 -> 3.395543175 | F32: ='Data Sheet'!F65/'Data Sheet'!F60 -> 3.269329425 | G32: ='Data Sheet'!G65/'Data Sheet'!G60 -> 4.445263975 | H32: ='Data Sheet'!H65/'Data Sheet'!H60 -> 4.125116713 | I32: ='Data Sheet'!I65/'Data Sheet'!I60 -> 2.7117206 | J32: ='Data Sheet'!J65/'Data Sheet'!J60 -> 3.627746279 | K32: ='Data Sheet'!K65/'Data Sheet'!K60 -> 4.312419026
A33: CFO/PAT | B33: ='Calculated Data'!B17/'Calculated Data'!B7 -> 2.722379603 | C33: ='Calculated Data'!C17/'Calculated Data'!C7 -> 0.5546558704 | D33: ='Calculated Data'!D17/'Calculated Data'!D7 -> 3.766423358 | E33: ='Calculated Data'!E17/'Calculated Data'!E7 -> 1.360788863 | F33: ='Calculated Data'!F17/'Calculated Data'!F7 -> 0.3527204503 | G33: ='Calculated Data'!G17/'Calculated Data'!G7 -> 0.1629116118 | H33: ='Calculated Data'!H17/'Calculated Data'!H7 -> 3.231974922 | I33: ='Calculated Data'!I17/'Calculated Data'!I7 -> 1.221118012 | J33: ='Calculated Data'!J17/'Calculated Data'!J7 -> -0.06694882647 | K33: ='Calculated Data'!K17/'Calculated Data'!K7 -> 0.838285636
A35: Gross Margin =Gross Profit/Sales | B35: ='Calculated Data'!B3/'Data Sheet'!B17 -> 0.3938042131 | C35: ='Calculated Data'!C3/'Data Sheet'!C17 -> 0.3935097669 | D35: ='Calculated Data'!D3/'Data Sheet'!D17 -> 0.4326757714 | E35: ='Calculated Data'!E3/'Data Sheet'!E17 -> 0.4532277094 | F35: ='Calculated Data'!F3/'Data Sheet'!F17 -> 0.4328518941 | G35: ='Calculated Data'!G3/'Data Sheet'!G17 -> 0.4381302032 | H35: ='Calculated Data'!H3/'Data Sheet'!H17 -> 0.4775130862 | I35: ='Calculated Data'!I3/'Data Sheet'!I17 -> 0.4458570587 | J35: ='Calculated Data'!J3/'Data Sheet'!J17 -> 0.4689342264 | K35: ='Calculated Data'!K3/'Data Sheet'!K17 -> 0.4668157914
A36: EBIT/Sales | B36: ='Calculated Data'!B4/'Data Sheet'!B17 -> 0.09045848823 | C36: ='Calculated Data'!C4/'Data Sheet'!C17 -> 0.1221382063 | D36: ='Calculated Data'!D4/'Data Sheet'!D17 -> 0.105209914 | E36: ='Calculated Data'!E4/'Data Sheet'!E17 -> 0.138884207 | F36: ='Calculated Data'!F4/'Data Sheet'!F17 -> 0.1594450779 | G36: ='Calculated Data'!G4/'Data Sheet'!G17 -> 0.1865660065 | H36: ='Calculated Data'!H4/'Data Sheet'!H17 -> 0.1036748211 | I36: ='Calculated Data'!I4/'Data Sheet'!I17 -> 0.1682701747 | J36: ='Calculated Data'!J4/'Data Sheet'!J17 -> 0.2238957993 | K36: ='Calculated Data'!K4/'Data Sheet'!K17 -> 0.2480308403 | L36: ='Calculated Data'!L4/'Profit & Loss'!L4 -> 0.2469640275
A37: EBITDA/Sales | B37: ='Calculated Data'!B5/'Data Sheet'!B17 -> 0.1195786865 | C37: ='Calculated Data'!C5/'Data Sheet'!C17 -> 0.1554295316 | D37: ='Calculated Data'!D5/'Data Sheet'!D17 -> 0.1425392008 | E37: ='Calculated Data'!E5/'Data Sheet'!E17 -> 0.1771447834 | F37: ='Calculated Data'!F5/'Data Sheet'!F17 -> 0.1887115165 | G37: ='Calculated Data'!G5/'Data Sheet'!G17 -> 0.2116448627 | H37: ='Calculated Data'!H5/'Data Sheet'!H17 -> 0.1357760923 | I37: ='Calculated Data'!I5/'Data Sheet'!I17 -> 0.1972314942 | J37: ='Calculated Data'!J5/'Data Sheet'!J17 -> 0.2435877651 | K37: ='Calculated Data'!K5/'Data Sheet'!K17 -> 0.2681864693
A38: Op Profit (Ex Other Income)/Sales | B38: ='Calculated Data'!B6/'Data Sheet'!B17 -> 0.136307311 | C38: ='Calculated Data'!C6/'Data Sheet'!C17 -> 0.1612056291 | D38: ='Calculated Data'!D6/'Data Sheet'!D17 -> 0.1367728882 | E38: ='Calculated Data'!E6/'Data Sheet'!E17 -> 0.1599528063 | F38: ='Calculated Data'!F6/'Data Sheet'!F17 -> 0.1624223996 | G38: ='Calculated Data'!G6/'Data Sheet'!G17 -> 0.1839805574 | H38: ='Calculated Data'!H6/'Data Sheet'!H17 -> 0.1109390022 | I38: ='Calculated Data'!I6/'Data Sheet'!I17 -> 0.1773512664 | J38: ='Calculated Data'!J6/'Data Sheet'!J17 -> 0.2267662582 | K38: ='Calculated Data'!K6/'Data Sheet'!K17 -> 0.2493158508
A39: Net Margin =PAT/Sales | B39: ='Calculated Data'!B7/'Data Sheet'!B17 -> 0.04374225527 | C39: ='Calculated Data'!C7/'Data Sheet'!C17 -> 0.05187985717 | D39: ='Calculated Data'!D7/'Data Sheet'!D17 -> 0.04157814871 | E39: ='Calculated Data'!E7/'Data Sheet'!E17 -> 0.07264453059 | F39: ='Calculated Data'!F7/'Data Sheet'!F17 -> 0.1012922843 | G39: ='Calculated Data'!G7/'Data Sheet'!G17 -> 0.1193443301 | H39: ='Calculated Data'!H7/'Data Sheet'!H17 -> 0.06815511163 | I39: ='Calculated Data'!I7/'Data Sheet'!I17 -> 0.1185450618 | J39: ='Calculated Data'!J7/'Data Sheet'!J17 -> 0.1604370505 | K39: ='Calculated Data'!K7/'Data Sheet'!K17 -> 0.173785784 | L39: ='Calculated Data'!L7/'Profit & Loss'!L4 -> 0.1747893758
A40: Op Cash Flow/Sales | B40: ='Calculated Data'!B17/'Data Sheet'!B17 -> 0.1190830235 | C40: ='Calculated Data'!C17/'Data Sheet'!C17 -> 0.02877546734 | D40: ='Calculated Data'!D17/'Data Sheet'!D17 -> 0.1566009105 | E40: ='Calculated Data'!E17/'Data Sheet'!E17 -> 0.09885386819 | F40: ='Calculated Data'!F17/'Data Sheet'!F17 -> 0.03572786013 | G40: ='Calculated Data'!G17/'Data Sheet'!G17 -> 0.01944257718 | H40: ='Calculated Data'!H17/'Data Sheet'!H17 -> 0.2202756116 | I40: ='Calculated Data'!I17/'Data Sheet'!I17 -> 0.1447575103 | J40: ='Calculated Data'!J17/'Data Sheet'!J17 -> -0.01074107226 | K40: ='Calculated Data'!K17/'Data Sheet'!K17 -> 0.1456821265
A41: Free Cash Flow/Sales | B41: ='Calculated Data'!B19/'Data Sheet'!B17 -> 0 | C41: ='Calculated Data'!C19/'Data Sheet'!C17 -> -0.01270741441 | D41: ='Calculated Data'!D19/'Data Sheet'!D17 -> 0.1371775417 | E41: ='Calculated Data'!E19/'Data Sheet'!E17 -> -0.02899039272 | F41: ='Calculated Data'!F19/'Data Sheet'!F17 -> -0.008425186874 | G41: ='Calculated Data'!G19/'Data Sheet'!G17 -> -0.01272040954 | H41: ='Calculated Data'!H19/'Data Sheet'!H17 -> 0.1258946694 | I41: ='Calculated Data'!I19/'Data Sheet'!I17 -> 0.07907912822 | J41: ='Calculated Data'!J19/'Data Sheet'!J17 -> -0.08009506466 | K41: ='Calculated Data'!K19/'Data Sheet'!K17 -> 0.08131261452
A42: EPA/Sales | B42: ='Calculated Data'!B26/'Data Sheet'!B17 -> -0.03792079594 | C42: ='Calculated Data'!C26/'Data Sheet'!C17 -> -0.03830699861 | D42: ='Calculated Data'!D26/'Data Sheet'!D17 -> -0.042071826 | E42: ='Calculated Data'!E26/'Data Sheet'!E17 -> -0.005811364155 | F42: ='Calculated Data'!F26/'Data Sheet'!F17 -> 0.03160506565 | G42: ='Calculated Data'!G26/'Data Sheet'!G17 -> 0.04559465727 | H42: ='Calculated Data'!H26/'Data Sheet'!H17 -> -0.002932692298 | I42: ='Calculated Data'!I26/'Data Sheet'!I17 -> 0.03187733577 | J42: ='Calculated Data'!J26/'Data Sheet'!J17 -> 0.07977395351 | K42: ='Calculated Data'!K26/'Data Sheet'!K17 -> 0.1044916915 | L42: ='Calculated Data'!L26/'Profit & Loss'!L4 -> 0.1418045163
A43: EPA/Sales Increase - last 5 Years | F43: =(F42-B42) -> 0.06952586159 | G43: =(G42-C42) -> 0.08390165588 | H43: 0.0391391337 | I43: 0.03768869992 | J43: 0.04816888786 | K43: 0.05889703428
A44: EPA/Sales Increase - last 3 Years | D44: =(D42-B42) -> -0.004151030058 | E44: =(E42-C42) -> 0.03249563446 | F44: 0.07367689165 | G44: 0.05140602142 | H44: -0.03453775795 | I44: -0.0137173215 | J44: 0.08270664581 | K44: 0.07261435578 | L44: `
A45: MktCap Cagr - last 5 years | F45: =POWER('Calculated Data'!F33/'Calculated Data'!B33, 1/4)-1 -> 1.28623134 | G45: =POWER('Calculated Data'!G33/'Calculated Data'!C33, 1/4)-1 -> 0.7549557238 | H45: =POWER('Calculated Data'!H33/'Calculated Data'!D33, 1/4)-1 -> 0.2018270312 | I45: =POWER('Calculated Data'!I33/'Calculated Data'!E33, 1/4)-1 -> 0.2798435068 | J45: =POWER('Calculated Data'!J33/'Calculated Data'!F33, 1/4)-1 -> 0.4611005081 | K45: =POWER('Calculated Data'!K33/'Calculated Data'!G33, 1/4)-1 -> 0.5361789483
A46: MktCap Cagr - last 3 years | D46: =POWER('Calculated Data'!D33/'Calculated Data'!B33, 1/2)-1 -> 0.5771089776 | E46: =POWER('Calculated Data'!E33/'Calculated Data'!C33, 1/2)-1 -> 0.4757992882 | F46: =POWER('Calculated Data'!F33/'Calculated Data'!D33, 1/2)-1 -> 2.31419947 | G46: =POWER('Calculated Data'!G33/'Calculated Data'!E33, 1/2)-1 -> 1.086916302 | H46: =POWER('Calculated Data'!H33/'Calculated Data'!F33, 1/2)-1 -> -0.5641818708 | I46: =POWER('Calculated Data'!I33/'Calculated Data'!G33, 1/2)-1 -> -0.2151101601 | J46: =POWER('Calculated Data'!J33/'Calculated Data'!H33, 1/2)-1 -> 3.898407275 | K46: =POWER('Calculated Data'!K33/'Calculated Data'!I33, 1/2)-1 -> 2.006594864
A49: Sales/Invested Capital =Capital Turns | B49: ='Data Sheet'!B17/'Calculated Data'!B13 -> 1.043309632 | C49: ='Data Sheet'!C17/'Calculated Data'!C13 -> 1.092097718 | D49: ='Data Sheet'!D17/'Calculated Data'!D13 -> 1.10335975 | E49: ='Data Sheet'!E17/'Calculated Data'!E13 -> 1.310146848 | F49: ='Data Sheet'!F17/'Calculated Data'!F13 -> 1.411354493 | G49: ='Data Sheet'!G17/'Calculated Data'!G13 -> 1.380962582 | H49: ='Data Sheet'!H17/'Calculated Data'!H13 -> 1.44137347 | I49: ='Data Sheet'!I17/'Calculated Data'!I13 -> 1.296093651 | J49: ='Data Sheet'!J17/'Calculated Data'!J13 -> 1.379678917 | K49: ='Data Sheet'!K17/'Calculated Data'!K13 -> 1.479318478
A50: Sales/Fixed Assets= Fixed Asset Turns | B50: ='Data Sheet'!B17/'Data Sheet'!B62 -> 4.018924303 | C50: ='Data Sheet'!C17/'Data Sheet'!C62 -> 2.740932642 | D50: ='Data Sheet'!D17/'Data Sheet'!D62 -> 3.02293578 | E50: ='Data Sheet'!E17/'Data Sheet'!E62 -> 2.753132251 | F50: ='Data Sheet'!F17/'Data Sheet'!F62 -> 3.492477876 | G50: ='Data Sheet'!G17/'Data Sheet'!G62 -> 4.269094923 | H50: ='Data Sheet'!H17/'Data Sheet'!H62 -> 4.122880423 | I50: ='Data Sheet'!I17/'Data Sheet'!I62 -> 4.463628396 | J50: ='Data Sheet'!J17/'Data Sheet'!J62 -> 4.102697227 | K50: ='Data Sheet'!K17/'Data Sheet'!K62 -> 4.115463716
A51: Sales/Total Assets= Asset Turns | B51: ='Data Sheet'!B17/'Calculated Data'!B15 -> 0.7113265756 | C51: ='Data Sheet'!C17/'Calculated Data'!C15 -> 0.7490560101 | D51: ='Data Sheet'!D17/'Calculated Data'!D15 -> 0.7808056872 | E51: ='Data Sheet'!E17/'Calculated Data'!E15 -> 1.007044047 | F51: ='Data Sheet'!F17/'Calculated Data'!F15 -> 1.063388346 | G51: ='Data Sheet'!G17/'Calculated Data'!G15 -> 1.098369966 | H51: ='Data Sheet'!H17/'Calculated Data'!H15 -> 1.1586113 | I51: ='Data Sheet'!I17/'Calculated Data'!I15 -> 0.9338528535 | J51: ='Data Sheet'!J17/'Calculated Data'!J15 -> 1.074379891 | K51: ='Data Sheet'!K17/'Calculated Data'!K15 -> 1.161851309 | L51: ='Profit & Loss'!L4/'Balance Sheet'!L8 -> 
A52: Net Margin*Asset Turns= RoA | B52: =B39*B51 -> 0.03111502865 | C52: =C39*C51 -> 0.03886091882 | D52: 0.03246445498 | E52: 0.07315624204 | F52: 0.1077130347 | G52: 0.1310842279 | H52: 0.07896528251 | I52: 0.1107036443 | J52: 0.1723703409 | K52: 0.2019132406 | L52: =L39*L51 ->  | M52: Check back what is really driving RoA (Net Margins or Asset Turns, or both)
A53: Net Margin*Asset Turn*Fin Leverage= RoE | B53: =B39*B51*B19 -> 0.0628113879 | C53: 0.08114323259 | D53: 0.06324049854 | E53: 0.1209994385 | F53: 0.187521989 | G53: 0.2186848588 | H53: 0.1106486299 | I53: 0.1747088186 | J53: 0.277700609 | K53: 0.2863809262 | L53: =L39*L51*L19 ->  | M53: Check back what is really driving RoE (Net Margins, Asset Turns, or Financial Leverage)
A54: RoCE | B54: ='Calculated Data'!B4/'Calculated Data'!B14 -> 0.07693929174 | C54: ='Calculated Data'!C4/'Calculated Data'!C14 -> 0.1108252335 | D54: ='Calculated Data'!D4/'Calculated Data'!D14 -> 0.09677119196 | E54: ='Calculated Data'!E4/'Calculated Data'!E14 -> 0.1649979976 | F54: ='Calculated Data'!F4/'Calculated Data'!F14 -> 0.207741829 | G54: ='Calculated Data'!G4/'Calculated Data'!G14 -> 0.2400372563 | H54: ='Calculated Data'!H4/'Calculated Data'!H14 -> 0.1384747093 | I54: ='Calculated Data'!I4/'Calculated Data'!I14 -> 0.2046933779 | J54: ='Calculated Data'!J4/'Calculated Data'!J14 -> 0.2959366841 | K54: ='Calculated Data'!K4/'Calculated Data'!K14 -> 0.3387830722
A55: EBIT Margin*Cap Turns*(1-Tax rate)= RoIC | B55: =B36*B49*(1-'Calculated Data'!B22) -> 0.08043686836 | C55: =C36*C49*(1-'Calculated Data'!C22) -> 0.07816501424 | D55: =D36*D49*(1-'Calculated Data'!D22) -> 0.07357964058 | E55: =E36*E49*(1-'Calculated Data'!E22) -> 0.1123862596 | F55: =F36*F49*(1-'Calculated Data'!F22) -> 0.1646059514 | G55: =G36*G49*(1-'Calculated Data'!G22) -> 0.1829645156 | H55: =H36*H49*(1-'Calculated Data'!H22) -> 0.1157728951 | I55: =I36*I49*(1-'Calculated Data'!I22) -> 0.1613160125 | J55: =J36*J49*(1-'Calculated Data'!J22) -> 0.2300624418 | K55: =K36*K49*(1-'Calculated Data'!K22) -> 0.2745764901 | L55: ='Business Robustness'!L14*'Business Robustness'!L16*(1-'Calculated Data'!K22) -> 0.5156665729 | M55: Check back what is really driving RoIC (Op Margins or Capital Turns, or both)
A56: Return on Incremental Invested Cap= RoIIC | D56: ='Calculated Data'!D27 -> -0.02268369837 | E56: ='Calculated Data'!E27 -> 1.494509804 | F56: ='Calculated Data'!F27 -> 8.40035932 | G56: ='Calculated Data'!G27 -> 0.3388710106 | H56: ='Calculated Data'!H27 -> -0.3754739064 | I56: ='Calculated Data'!I27 -> -1.016542807 | J56: ='Calculated Data'!J27 -> 1.050564762 | K56: ='Calculated Data'!K27 -> 0.3087363856
A57: ='Calculated Data'!A28 -> 3Yr Rolling RoIIC | G57: ='Calculated Data'!G28 -> 0.7717092769 | H57: ='Calculated Data'!H28 -> 0.0963115524 | I57: ='Calculated Data'!I28 -> 0.176614323 | J57: ='Calculated Data'!J28 -> 0.6265875233 | K57: ='Calculated Data'!K28 -> 0.6642177676 | M57: better to check when NOPLAT and/or Investments are Lumpy
A58: ='Calculated Data'!A29 -> 5Yr Rolling RoIIC | G58: ='Calculated Data'!G29 -> 0 | H58: ='Calculated Data'!H29 -> 0.1311618082 | I58: ='Calculated Data'!I29 -> 0.4394297621 | J58: ='Calculated Data'!J29 -> 0.6487163733 | K58: ='Calculated Data'!K29 -> 0.4130581442 | M58: better to check when NOPLAT and/or Investments are Lumpy
A60: Altman Z-Score | B60: ='Calculated Data'!B50 -> 1.467959454 | C60: ='Calculated Data'!C50 -> 1.82727596 | D60: ='Calculated Data'!D50 -> 1.783120379 | E60: ='Calculated Data'!E50 -> 2.618446236 | F60: ='Calculated Data'!F50 -> 4.001699427 | G60: ='Calculated Data'!G50 -> 4.35445675 | H60: ='Calculated Data'!H50 -> 2.457900365 | I60: ='Calculated Data'!I50 -> 2.969675911 | J60: ='Calculated Data'!J50 -> 6.605897334 | K60: ='Calculated Data'!K50 -> 7.868628383
A61: Dividend Payout | B61: ='Data Sheet'!B31/'Data Sheet'!B30 -> 0 | C61: ='Data Sheet'!C31/'Data Sheet'!C30 -> 0 | D61: ='Data Sheet'!D31/'Data Sheet'!D30 -> 0 | E61: ='Data Sheet'!E31/'Data Sheet'!E30 -> 0.1113689095 | F61: ='Data Sheet'!F31/'Data Sheet'!F30 -> 0.1438398999 | G61: ='Data Sheet'!G31/'Data Sheet'!G30 -> 0.09965337955 | H61: ='Data Sheet'!H31/'Data Sheet'!H30 -> 0.09012539185 | I61: ='Data Sheet'!I31/'Data Sheet'!I30 -> 0.09523809524 | J61: ='Data Sheet'!J31/'Data Sheet'!J30 -> 0.07387456714 | K61: ='Data Sheet'!K31/'Data Sheet'!K30 -> 0.09461864987
A62: Cash/Assets | B62: ='Data Sheet'!B69/'Data Sheet'!B61 -> 0.003437637726 | C62: ='Data Sheet'!C69/'Data Sheet'!C61 -> 0.00291063562 | D62: ='Data Sheet'!D69/'Data Sheet'!D61 -> 0.06461295419 | E62: ='Data Sheet'!E69/'Data Sheet'!E61 -> 0.009250615293 | F62: ='Data Sheet'!F69/'Data Sheet'!F61 -> 0.002357696194 | G62: ='Data Sheet'!G69/'Data Sheet'!G61 -> 0.00278298404 | H62: ='Data Sheet'!H69/'Data Sheet'!H61 -> 0.002599170741 | I62: ='Data Sheet'!I69/'Data Sheet'!I61 -> 0.07302314921 | J62: ='Data Sheet'!J69/'Data Sheet'!J61 -> 0.03919617986 | K62: ='Data Sheet'!K69/'Data Sheet'!K61 -> 0.04716746385
A63: EBIT/Invested Capital | B63: ='Calculated Data'!B4/'Calculated Data'!B13 -> 0.09437621202 | C63: ='Calculated Data'!C4/'Calculated Data'!C13 -> 0.1333868563 | D63: ='Calculated Data'!D4/'Calculated Data'!D13 -> 0.1160843844 | E63: ='Calculated Data'!E4/'Calculated Data'!E13 -> 0.181958706 | F63: ='Calculated Data'!F4/'Calculated Data'!F13 -> 0.225033527 | G63: ='Calculated Data'!G4/'Calculated Data'!G13 -> 0.2576406741 | H63: ='Calculated Data'!H4/'Calculated Data'!H13 -> 0.1494341366 | I63: ='Calculated Data'!I4/'Calculated Data'!I13 -> 0.2180939051 | J63: ='Calculated Data'!J4/'Calculated Data'!J13 -> 0.3089043138 | K63: ='Calculated Data'!K4/'Calculated Data'!K13 -> 0.3669166051 | M63: Check back the significant role of EBIT/Invested Capital
A64: EPA | B64: ='Calculated Data'!B26 -> -3.060208232 | C64: ='Calculated Data'!C26 -> -3.647592408 | D64: ='Calculated Data'!D26 -> -4.1588 | E64: ='Calculated Data'!E26 -> -0.6895764706 | F64: ='Calculated Data'!F26 -> 4.989175663 | G64: ='Calculated Data'!G26 -> 8.817550769 | H64: ='Calculated Data'!H26 -> -0.5490586521 | I64: ='Calculated Data'!I26 -> 6.494050842 | J64: ='Calculated Data'!J26 -> 25.8459632 | K64: ='Calculated Data'!K26 -> 43.91054354 | M64: Check back what is really driving EPA (Invested Capital or RoIC, or both)
A65: MktCap | B65: ='Calculated Data'!B33 -> 15.84 | C65: ='Calculated Data'!C33 -> 55.9872 | D65: ='Calculated Data'!D33 -> 39.3984 | E65: ='Calculated Data'!E33 -> 121.9392 | F65: ='Calculated Data'!F33 -> 432.7488 | G65: ='Calculated Data'!G33 -> 531.072 | H65: ='Calculated Data'!H33 -> 82.1952 | I65: ='Calculated Data'!I33 -> 327.168 | J65: ='Calculated Data'!J33 -> 1972.224 | K65: ='Calculated Data'!K33 -> 2957.472 | L65: ='Data Sheet'!B9 -> 3038.91
A66: MktCap Change | C66: =C65-B65 -> 40.1472 | D66: =D65-C65 -> -16.5888 | E66: 82.5408 | F66: 310.8096 | G66: 98.3232 | H66: -448.8768 | I66: 244.9728 | J66: 1645.056 | K66: 985.248 | L66: 81.438
A67: MktCap Change - EPA | C67: =C66-C64 -> 43.79479241 | D67: -12.43 | E67: 83.23037647 | F67: 305.8204243 | G67: 89.50564923 | H67: -448.3277413 | I67: 238.4787492 | J67: 1619.210037 | K67: 941.3374565 | L67: 81.438
A69: Capex/Net Profits 10 yr | B69: =SUM('Calculated Data'!B$18:K$18)/SUM('Calculated Data'!B$7:K$7) -> 0.5166749179
A70: Capex/Net Profits 7 yr | B70: =SUM('Calculated Data'!E$18:K$18)/SUM('Calculated Data'!E$7:K$7) -> 0.5196794046
A71: Capex/Net Profits 5 yr | B71: =SUM('Calculated Data'!G$18:K$18)/SUM('Calculated Data'!G$7:K$7) -> 0.4691351351
A72: Capex/Net Profits 3 yr | B72: =SUM('Calculated Data'!I$18:K$18)/SUM('Calculated Data'!I$7:K$7) -> 0.4216948243
A73: Capex/Depreciation 10 yr | B73: =SUM('Calculated Data'!B$18:K$18)/SUM('Data Sheet'!B26:K26) -> 2.296918768

Sheet Data Sheet
A1: COMPANY NAME | B1: SHIVALIK BIMETAL CONTROLS LTD | E1: =IF(B2<>B3, "A NEW VERSION OF THE WORKSHEET IS AVAILABLE", "") -> 
A2: LATEST VERSION | B2: 2.1 | E2: PLEASE DO NOT MAKE ANY CHANGES TO THIS SHEET
A3: CURRENT VERSION | B3: 2.1
A5: META
A6: Number of shares | B6: =IF(B9>0, B9/B8, 0) -> 5.760420813
A7: Face Value | B7: 2
A8: Current Price | B8: 527.55
A9: Market Capitalization | B9: 3038.91
A15: PROFIT & LOSS
A16: Report Date | B16: 2014-03-31 | C16: 2015-03-31 | D16: 2016-03-31 | E16: 2017-03-31 | F16: 2018-03-31 | G16: 2019-03-31 | H16: 2020-03-31 | I16: 2021-03-31 | J16: 2022-03-31 | K16: 2023-03-31
A17: Sales | B17: 80.7 | C17: 95.22 | D17: 98.85 | E17: 118.66 | F17: 157.86 | G17: 193.39 | H17: 187.22 | I17: 203.72 | J17: 323.99 | K17: 420.23
A18: Raw Material Cost | B18: 48.92 | C18: 57.75 | D18: 56.08 | E18: 64.88 | F18: 89.53 | G18: 108.66 | H18: 97.82 | I18: 112.89 | J18: 172.06 | K18: 224.06
A19: Change in Inventory | B19: 0.86 | C19: 2.07 | D19: -1.94 | E19: 2.84 | F19: 7.9 | G19: 12.78 | H19: -9.36 | I19: 11.61 | J19: 11 | K19: 18.07
A20: Power and Fuel | B20: 1.2 | C20: 1.29 | D20: 1.65 | E20: 1.91 | F20: 2.02 | G20: 2.04 | H20: 2.06 | I20: 2.16 | J20: 2.9 | K20: 4.03
A21: Other Mfr. Exp | B21: 4.01 | C21: 4.01 | D21: 4.58 | E21: 8.42 | F21: 8.23 | G21: 8 | H21: 7.19 | I21: 13.5 | J21: 15.14 | K21: 19.38
A22: Employee Cost | B22: 8.71 | C22: 10.28 | D22: 11.5 | E22: 12.41 | F22: 14.48 | G22: 16.92 | H22: 20.02 | I22: 22.23 | J22: 27.11 | K22: 33.95
A23: Selling and admin | B23: 7.81 | C23: 8.47 | D23: 8.86 | E23: 14.71 | F23: 25.51 | G23: 33.55 | H23: 28.96 | I23: 27.43 | J23: 43.03 | K23: 50.41
A24: Other Expenses | B24: -0.09 | C24: 0.14 | D24: 0.72 | E24: 0.19 | F24: 0.35 | G24: 1.42 | H24: 1.04 | I24: 0.99 | J24: 1.28 | K24: 1.7
A25: Other Income | B25: -1.35 | C25: -0.55 | D25: 0.57 | E25: 2.04 | F25: 4.15 | G25: 5.35 | H25: 4.65 | I25: 4.05 | J25: 5.45 | K25: 7.93
A26: Depreciation | B26: 2.35 | C26: 3.17 | D26: 3.69 | E26: 4.54 | F26: 4.62 | G26: 4.85 | H26: 6.01 | I26: 5.9 | J26: 6.38 | K26: 8.47
A27: Interest | B27: 3.17 | C27: 3.2 | D27: 3.9 | E27: 2.54 | F27: 3.31 | G27: 3.58 | H27: 2.94 | I27: 1.63 | J27: 2.76 | K27: 6.64
A28: Profit before tax | B28: 4.13 | C28: 8.43 | D28: 6.5 | E28: 13.94 | F28: 21.86 | G28: 32.5 | H28: 16.47 | I28: 32.65 | J28: 69.78 | K28: 97.59
A29: Tax | B29: 0.61 | C29: 3.49 | D29: 2.38 | E29: 5.33 | F29: 5.87 | G29: 9.42 | H29: 3.71 | I29: 8.5 | J29: 17.81 | K29: 24.56
A30: Net profit | B30: 3.53 | C30: 4.94 | D30: 4.11 | E30: 8.62 | F30: 15.99 | G30: 23.08 | H30: 12.76 | I30: 24.15 | J30: 51.98 | K30: 73.03
A31: Dividend Amount | E31: 0.96 | F31: 2.3 | G31: 2.3 | H31: 1.15 | I31: 2.3 | J31: 3.84 | K31: 6.91
A40: Quarters
A41: Report Date | B41: 2021-03-31 | C41: 2021-06-30 | D41: 2021-09-30 | E41: 2021-12-31 | F41: 2022-03-31 | G41: 2022-06-30 | H41: 2022-09-30 | I41: 2022-12-31 | J41: 2023-03-31 | K41: 2023-06-30
A42: Sales | B42: 66.86 | C42: 70.31 | D42: 76.23 | E42: 88.13 | F42: 89.32 | G42: 97.69 | H42: 104.87 | I42: 107.54 | J42: 110.13 | K42: 113.07
A43: Expenses | B43: 54.2 | C43: 54.45 | D43: 58.4 | E43: 67.57 | F43: 70.09 | G43: 73.44 | H43: 79.16 | I43: 79.75 | J43: 83.11 | K43: 84.07
A44: Other Income | B44: 1.16 | C44: 0.85 | D44: 1.22 | E44: 1.85 | F44: 1.53 | G44: 2.24 | H44: 3.37 | I44: 0.7 | J44: 1.62 | K44: 1.34
A45: Depreciation | B45: 1.56 | C45: 1.42 | D45: 1.49 | E45: 1.6 | F45: 1.86 | G45: 1.95 | H45: 2.07 | I45: 2.22 | J45: 2.24 | K45: 2.44
A46: Interest | B46: 0.49 | C46: 0.44 | D46: 0.37 | E46: 0.76 | F46: 1.2 | G46: 1.52 | H46: 1.72 | I46: 1.81 | J46: 1.59 | K46: 1.13
A47: Profit before tax | B47: 11.77 | C47: 14.85 | D47: 17.19 | E47: 20.05 | F47: 17.7 | G47: 23.02 | H47: 25.29 | I47: 24.46 | J47: 24.81 | K47: 26.77
A48: Tax | B48: 3.2 | C48: 3.66 | D48: 4.37 | E48: 5.36 | F48: 4.43 | G48: 5.9 | H48: 6.53 | I48: 6.22 | J48: 5.91 | K48: 6.54
A49: Net profit | B49: 8.57 | C49: 11.18 | D49: 12.83 | E49: 14.7 | F49: 13.27 | G49: 17.11 | H49: 18.76 | I49: 18.25 | J49: 18.9 | K49: 20.23
A50: Operating Profit | B50: 12.66 | C50: 15.86 | D50: 17.83 | E50: 20.56 | F50: 19.23 | G50: 24.25 | H50: 25.71 | I50: 27.79 | J50: 27.02 | K50: 29
A55: BALANCE SHEET
A56: Report Date | B56: 2014-03-31 | C56: 2015-03-31 | D56: 2016-03-31 | E56: 2017-03-31 | F56: 2018-03-31 | G56: 2019-03-31 | H56: 2020-03-31 | I56: 2021-03-31 | J56: 2022-03-31 | K56: 2023-03-31
A57: Equity Share Capital | B57: 3.84 | C57: 3.84 | D57: 3.84 | E57: 3.84 | F57: 7.68 | G57: 7.68 | H57: 7.68 | I57: 7.68 | J57: 7.68 | K57: 11.52
A58: Reserves | B58: 52.36 | C58: 57.04 | D58: 61.15 | E58: 67.4 | F58: 77.59 | G58: 97.86 | H58: 107.64 | I58: 130.55 | J58: 179.5 | K58: 243.49
A59: Borrowings | B59: 38.68 | C59: 44.06 | D59: 42.48 | E59: 28.64 | F59: 35.89 | G59: 44.77 | H59: 24.85 | I59: 29.24 | J59: 57.94 | K59: 52.65
A60: Other Liabilities | B60: 18.57 | C60: 22.18 | D60: 19.13 | E60: 17.95 | F60: 27.29 | G60: 25.76 | H60: 21.42 | I60: 50.68 | J60: 56.44 | K60: 54.03
A61: Total | B61: 113.45 | C61: 127.12 | D61: 126.6 | E61: 117.83 | F61: 148.45 | G61: 176.07 | H61: 161.59 | I61: 218.15 | J61: 301.56 | K61: 361.69
A62: Net Block | B62: 20.08 | C62: 34.74 | D62: 32.7 | E62: 43.1 | F62: 45.2 | G62: 45.3 | H62: 45.41 | I62: 45.64 | J62: 78.97 | K62: 102.11
A63: Capital Work in Progress | B63: 17.85 | C63: 3.97 | D63: 4.24 | E63: 4.47 | F63: 4.72 | G63: 5.99 | H63: 17.54 | I63: 24.79 | J63: 7.55 | K63: 2.99
A64: Investments | B64: 17.53 | C64: 17.75 | D64: 17.88 | E64: 9.31 | F64: 9.31 | G64: 10.27 | H64: 10.28 | I64: 10.29 | J64: 10.29 | K64: 23.59
A65: Other Assets | B65: 57.99 | C65: 70.66 | D65: 71.78 | E65: 60.95 | F65: 89.22 | G65: 114.51 | H65: 88.36 | I65: 137.43 | J65: 204.75 | K65: 233 | L65: 158.24
A66: Total | B66: 113.45 | C66: 127.12 | D66: 126.6 | E66: 117.83 | F66: 148.45 | G66: 176.07 | H66: 161.59 | I66: 218.15 | J66: 301.56 | K66: 361.69
A67: Receivables | B67: 21.74 | C67: 24.08 | D67: 24.08 | E67: 26.42 | F67: 33.59 | G67: 34.58 | H67: 30.95 | I67: 42.82 | J67: 59.28 | K67: 79.98 | L67: 75.67
A68: Inventory | B68: 18.61 | C68: 28.8 | D68: 23.38 | E68: 26.07 | F68: 40.6 | G68: 69.27 | H68: 50.52 | I68: 70.14 | J68: 114.88 | K68: 121.88
A69: Cash & Bank | B69: 0.39 | C69: 0.37 | D69: 8.18 | E69: 1.09 | F69: 0.35 | G69: 0.49 | H69: 0.42 | I69: 15.93 | J69: 11.82 | K69: 17.06
A70: No. of Equity Shares | B70: 19201400 | C70: 19201400 | D70: 19201400 | E70: 19201400 | F70: 38402800 | G70: 38402800 | H70: 38402800 | I70: 38402800 | J70: 38402800 | K70: 57604200
A71: New Bonus Shares
A72: Face value | B72: 2 | C72: 2 | D72: 2 | E72: 2 | F72: 2 | G72: 2 | H72: 2 | I72: 2 | J72: 2 | K72: 2
A80: CASH FLOW:
A81: Report Date | B81: 2014-03-31 | C81: 2015-03-31 | D81: 2016-03-31 | E81: 2017-03-31 | F81: 2018-03-31 | G81: 2019-03-31 | H81: 2020-03-31 | I81: 2021-03-31 | J81: 2022-03-31 | K81: 2023-03-31
A82: Cash from Operating Activity | B82: 9.61 | C82: 2.74 | D82: 15.48 | E82: 11.73 | F82: 5.64 | G82: 3.76 | H82: 41.24 | I82: 29.49 | J82: -3.48 | K82: 61.22
A83: Cash from Investing Activity | B83: -4.51 | C83: -4.9 | D83: -2.11 | E83: -3.1 | F83: -7.09 | G83: -7.08 | H83: -14.45 | I83: -14.72 | J83: -24.18 | K83: -37.47
A84: Cash from Financing Activity | B84: -5.1 | C84: 2.13 | D84: -5.55 | E84: -16.57 | F84: 1.49 | G84: 3.49 | H84: -26.91 | I84: 0.62 | J84: 22.87 | K84: -17.78
A85: Net Cash Flow | C85: -0.03 | D85: 7.81 | E85: -7.94 | F85: 0.05 | G85: 0.17 | H85: -0.12 | I85: 15.39 | J85: -4.79 | K85: 5.97
A90: PRICE: | B90: 2.75 | C90: 9.72 | D90: 6.84 | E90: 21.17 | F90: 75.13 | G90: 92.2 | H90: 14.27 | I90: 56.8 | J90: 342.4 | K90: 513.45
A92: DERIVED:
A93: Adjusted Equity Shares in Cr | B93: 5.76 | C93: 5.76 | D93: 5.76 | E93: 5.76 | F93: 5.76 | G93: 5.76 | H93: 5.76 | I93: 5.76 | J93: 5.76 | K93: 5.76

Sheet Calculated Data
A1: ='Data Sheet'!B1 -> SHIVALIK BIMETAL CONTROLS LTD
A2: =A1 -> SHIVALIK BIMETAL CONTROLS LTD | B2: ='Data Sheet'!B16 -> 2014-03-31 | C2: ='Data Sheet'!C16 -> 2015-03-31 | D2: ='Data Sheet'!D16 -> 2016-03-31 | E2: ='Data Sheet'!E16 -> 2017-03-31 | F2: ='Data Sheet'!F16 -> 2018-03-31 | G2: ='Data Sheet'!G16 -> 2019-03-31 | H2: ='Data Sheet'!H16 -> 2020-03-31 | I2: ='Data Sheet'!I16 -> 2021-03-31 | J2: ='Data Sheet'!J16 -> 2022-03-31 | K2: ='Data Sheet'!K16 -> 2023-03-31 | L2: TTM
A3: Gross Profit | B3: ='Data Sheet'!B17-'Data Sheet'!B18 -> 31.78 | C3: ='Data Sheet'!C17-'Data Sheet'!C18 -> 37.47 | D3: ='Data Sheet'!D17-'Data Sheet'!D18 -> 42.77 | E3: ='Data Sheet'!E17-'Data Sheet'!E18 -> 53.78 | F3: ='Data Sheet'!F17-'Data Sheet'!F18 -> 68.33 | G3: ='Data Sheet'!G17-'Data Sheet'!G18 -> 84.73 | H3: ='Data Sheet'!H17-'Data Sheet'!H18 -> 89.4 | I3: ='Data Sheet'!I17-'Data Sheet'!I18 -> 90.83 | J3: ='Data Sheet'!J17-'Data Sheet'!J18 -> 151.93 | K3: ='Data Sheet'!K17-'Data Sheet'!K18 -> 196.17
A4: EBIT | B4: ='Data Sheet'!B28+'Data Sheet'!B27 -> 7.3 | C4: ='Data Sheet'!C28+'Data Sheet'!C27 -> 11.63 | D4: ='Data Sheet'!D28+'Data Sheet'!D27 -> 10.4 | E4: ='Data Sheet'!E28+'Data Sheet'!E27 -> 16.48 | F4: ='Data Sheet'!F28+'Data Sheet'!F27 -> 25.17 | G4: ='Data Sheet'!G28+'Data Sheet'!G27 -> 36.08 | H4: ='Data Sheet'!H28+'Data Sheet'!H27 -> 19.41 | I4: ='Data Sheet'!I28+'Data Sheet'!I27 -> 34.28 | J4: ='Data Sheet'!J28+'Data Sheet'!J27 -> 72.54 | K4: ='Data Sheet'!K28+'Data Sheet'!K27 -> 104.23 | L4: ='Profit & Loss'!L17 -> 107.58
A5: EBITDA | B5: ='Calculated Data'!B4+'Data Sheet'!B26 -> 9.65 | C5: ='Calculated Data'!C4+'Data Sheet'!C26 -> 14.8 | D5: ='Calculated Data'!D4+'Data Sheet'!D26 -> 14.09 | E5: ='Calculated Data'!E4+'Data Sheet'!E26 -> 21.02 | F5: ='Calculated Data'!F4+'Data Sheet'!F26 -> 29.79 | G5: ='Calculated Data'!G4+'Data Sheet'!G26 -> 40.93 | H5: ='Calculated Data'!H4+'Data Sheet'!H26 -> 25.42 | I5: ='Calculated Data'!I4+'Data Sheet'!I26 -> 40.18 | J5: ='Calculated Data'!J4+'Data Sheet'!J26 -> 78.92 | K5: ='Calculated Data'!K4+'Data Sheet'!K26 -> 112.7 | L5: ='Profit & Loss'!L18 -> 116.55
A6: Operating Profit (excl Other Income) | B6: =B5-'Data Sheet'!B25 -> 11 | C6: =C5-'Data Sheet'!C25 -> 15.35 | D6: =D5-'Data Sheet'!D25 -> 13.52 | E6: =E5-'Data Sheet'!E25 -> 18.98 | F6: =F5-'Data Sheet'!F25 -> 25.64 | G6: =G5-'Data Sheet'!G25 -> 35.58 | H6: =H5-'Data Sheet'!H25 -> 20.77 | I6: =I5-'Data Sheet'!I25 -> 36.13 | J6: =J5-'Data Sheet'!J25 -> 73.47 | K6: =K5-'Data Sheet'!K25 -> 104.77 | L6: ='Profit & Loss'!L19 -> 109.52
A7: PAT | B7: ='Data Sheet'!B30 -> 3.53 | C7: ='Data Sheet'!C30 -> 4.94 | D7: ='Data Sheet'!D30 -> 4.11 | E7: ='Data Sheet'!E30 -> 8.62 | F7: ='Data Sheet'!F30 -> 15.99 | G7: ='Data Sheet'!G30 -> 23.08 | H7: ='Data Sheet'!H30 -> 12.76 | I7: ='Data Sheet'!I30 -> 24.15 | J7: ='Data Sheet'!J30 -> 51.98 | K7: ='Data Sheet'!K30 -> 73.03 | L7: ='Profit & Loss'!L12 -> 76.14
A8: Dividend | B8: ='Data Sheet'!B31 -> 0 | C8: ='Data Sheet'!C31 -> 0 | D8: ='Data Sheet'!D31 -> 0 | E8: ='Data Sheet'!E31 -> 0.96 | F8: ='Data Sheet'!F31 -> 2.3 | G8: ='Data Sheet'!G31 -> 2.3 | H8: ='Data Sheet'!H31 -> 1.15 | I8: ='Data Sheet'!I31 -> 2.3 | J8: ='Data Sheet'!J31 -> 3.84 | K8: ='Data Sheet'!K31 -> 6.91
B9: =B2 -> 2014-03-31 | C9: 2015-03-31 | D9: 2016-03-31 | E9: 2017-03-31 | F9: 2018-03-31 | G9: 2019-03-31 | H9: 2020-03-31 | I9: 2021-03-31 | J9: 2022-03-31 | K9: 2023-03-31 | L9: 1HFY17
A10: Networth | B10: ='Data Sheet'!B57+'Data Sheet'!B58 -> 56.2 | C10: ='Data Sheet'!C57+'Data Sheet'!C58 -> 60.88 | D10: ='Data Sheet'!D57+'Data Sheet'!D58 -> 64.99 | E10: ='Data Sheet'!E57+'Data Sheet'!E58 -> 71.24 | F10: ='Data Sheet'!F57+'Data Sheet'!F58 -> 85.27 | G10: ='Data Sheet'!G57+'Data Sheet'!G58 -> 105.54 | H10: ='Data Sheet'!H57+'Data Sheet'!H58 -> 115.32 | I10: ='Data Sheet'!I57+'Data Sheet'!I58 -> 138.23 | J10: ='Data Sheet'!J57+'Data Sheet'!J58 -> 187.18 | K10: ='Data Sheet'!K57+'Data Sheet'!K58 -> 255.01 | L10: ='Balance Sheet'!L4+'Balance Sheet'!L5 -> 0
A11: Working Capital | B11: ='Data Sheet'!B65-'Data Sheet'!B60 -> 39.42 | C11: ='Data Sheet'!C65-'Data Sheet'!C60 -> 48.48 | D11: ='Data Sheet'!D65-'Data Sheet'!D60 -> 52.65 | E11: ='Data Sheet'!E65-'Data Sheet'!E60 -> 43 | F11: ='Data Sheet'!F65-'Data Sheet'!F60 -> 61.93 | G11: ='Data Sheet'!G65-'Data Sheet'!G60 -> 88.75 | H11: ='Data Sheet'!H65-'Data Sheet'!H60 -> 66.94 | I11: ='Data Sheet'!I65-'Data Sheet'!I60 -> 86.75 | J11: ='Data Sheet'!J65-'Data Sheet'!J60 -> 148.31 | K11: ='Data Sheet'!K65-'Data Sheet'!K60 -> 178.97 | L11: ='Balance Sheet'!L16 -> 0
A12: Exclude one-off excess Cash (if any) | M12: check historical normalised levels of cash/total assets for excluding one-off excess cash for RoIC calculations
A13: Invested Capital | B13: ='Data Sheet'!B62+'Data Sheet'!B63+('Data Sheet'!B65-'Data Sheet'!B60) -> 77.35 | C13: ='Data Sheet'!C62+'Data Sheet'!C63+('Data Sheet'!C65-'Data Sheet'!C60) -> 87.19 | D13: ='Data Sheet'!D62+'Data Sheet'!D63+('Data Sheet'!D65-'Data Sheet'!D60) -> 89.59 | E13: ='Data Sheet'!E62+'Data Sheet'!E63+('Data Sheet'!E65-'Data Sheet'!E60) -> 90.57 | F13: ='Data Sheet'!F62+'Data Sheet'!F63+('Data Sheet'!F65-'Data Sheet'!F60) -> 111.85 | G13: ='Data Sheet'!G62+'Data Sheet'!G63+('Data Sheet'!G65-'Data Sheet'!G60) -> 140.04 | H13: ='Data Sheet'!H62+'Data Sheet'!H63+('Data Sheet'!H65-'Data Sheet'!H60) -> 129.89 | I13: ='Data Sheet'!I62+'Data Sheet'!I63+('Data Sheet'!I65-'Data Sheet'!I60) -> 157.18 | J13: ='Data Sheet'!J62+'Data Sheet'!J63+('Data Sheet'!J65-'Data Sheet'!J60) -> 234.83 | K13: ='Data Sheet'!K62+'Data Sheet'!K63+('Data Sheet'!K65-'Data Sheet'!K60) -> 284.07 | L13: ='Balance Sheet'!L10+'Balance Sheet'!L11+('Data Sheet'!L65-'Data Sheet'!L67) -> 156.12
A14: Capital Employed | B14: =B10+'Data Sheet'!B59 -> 94.88 | C14: =C10+'Data Sheet'!C59 -> 104.94 | D14: =D10+'Data Sheet'!D59 -> 107.47 | E14: =E10+'Data Sheet'!E59 -> 99.88 | F14: =F10+'Data Sheet'!F59 -> 121.16 | G14: =G10+'Data Sheet'!G59 -> 150.31 | H14: =H10+'Data Sheet'!H59 -> 140.17 | I14: =I10+'Data Sheet'!I59 -> 167.47 | J14: =J10+'Data Sheet'!J59 -> 245.12 | K14: =K10+'Data Sheet'!K59 -> 307.66
A15: Total Assets | B15: ='Data Sheet'!B61 -> 113.45 | C15: ='Data Sheet'!C61 -> 127.12 | D15: ='Data Sheet'!D61 -> 126.6 | E15: ='Data Sheet'!E61 -> 117.83 | F15: ='Data Sheet'!F61 -> 148.45 | G15: ='Data Sheet'!G61 -> 176.07 | H15: ='Data Sheet'!H61 -> 161.59 | I15: ='Data Sheet'!I61 -> 218.15 | J15: ='Data Sheet'!J61 -> 301.56 | K15: ='Data Sheet'!K61 -> 361.69 | L15: ='Balance Sheet'!L8 -> 0
B16: =B2 -> 2014-03-31 | C16: 2015-03-31 | D16: 2016-03-31 | E16: 2017-03-31 | F16: 2018-03-31 | G16: 2019-03-31 | H16: 2020-03-31 | I16: 2021-03-31 | J16: 2022-03-31 | K16: 2023-03-31
A17: Operating Cash Flow | B17: ='Data Sheet'!B82 -> 9.61 | C17: ='Data Sheet'!C82 -> 2.74 | D17: ='Data Sheet'!D82 -> 15.48 | E17: ='Data Sheet'!E82 -> 11.73 | F17: ='Data Sheet'!F82 -> 5.64 | G17: ='Data Sheet'!G82 -> 3.76 | H17: ='Data Sheet'!H82 -> 41.24 | I17: ='Data Sheet'!I82 -> 29.49 | J17: ='Data Sheet'!J82 -> -3.48 | K17: ='Data Sheet'!K82 -> 61.22
A18: Capex | C18: =('Data Sheet'!C62-'Data Sheet'!B62)+('Data Sheet'!C63-'Data Sheet'!B63)+'Data Sheet'!C26 -> 3.95 | D18: =('Data Sheet'!D62-'Data Sheet'!C62)+('Data Sheet'!D63-'Data Sheet'!C63)+'Data Sheet'!D26 -> 1.92 | E18: =('Data Sheet'!E62-'Data Sheet'!D62)+('Data Sheet'!E63-'Data Sheet'!D63)+'Data Sheet'!E26 -> 15.17 | F18: =('Data Sheet'!F62-'Data Sheet'!E62)+('Data Sheet'!F63-'Data Sheet'!E63)+'Data Sheet'!F26 -> 6.97 | G18: =('Data Sheet'!G62-'Data Sheet'!F62)+('Data Sheet'!G63-'Data Sheet'!F63)+'Data Sheet'!G26 -> 6.22 | H18: =('Data Sheet'!H62-'Data Sheet'!G62)+('Data Sheet'!H63-'Data Sheet'!G63)+'Data Sheet'!H26 -> 17.67 | I18: =('Data Sheet'!I62-'Data Sheet'!H62)+('Data Sheet'!I63-'Data Sheet'!H63)+'Data Sheet'!I26 -> 13.38 | J18: =('Data Sheet'!J62-'Data Sheet'!I62)+('Data Sheet'!J63-'Data Sheet'!I63)+'Data Sheet'!J26 -> 22.47 | K18: =('Data Sheet'!K62-'Data Sheet'!J62)+('Data Sheet'!K63-'Data Sheet'!J63)+'Data Sheet'!K26 -> 27.05 | M18: CHECK? | N18: derived from BS
A19: Free Cash Flow | C19: =C17-C18 -> -1.21 | D19: =D17-D18 -> 13.56 | E19: -3.44 | F19: -1.33 | G19: -2.46 | H19: 23.57 | I19: 16.11 | J19: -25.95 | K19: 34.17
A20: RoE | B20: =Customization!B53 -> 0.0628113879 | C20: =Customization!C53 -> 0.08114323259 | D20: =Customization!D53 -> 0.06324049854 | E20: =Customization!E53 -> 0.1209994385 | F20: =Customization!F53 -> 0.187521989 | G20: =Customization!G53 -> 0.2186848588 | H20: =Customization!H53 -> 0.1106486299 | I20: =Customization!I53 -> 0.1747088186 | J20: =Customization!J53 -> 0.277700609 | K20: =Customization!K53 -> 0.2863809262
A21: Dividend Payout | B21: ='Profit & Loss'!B23 -> 0 | C21: ='Profit & Loss'!C23 -> 0 | D21: ='Profit & Loss'!D23 -> 0 | E21: ='Profit & Loss'!E23 -> 0.1113689095 | F21: ='Profit & Loss'!F23 -> 0.1438398999 | G21: ='Profit & Loss'!G23 -> 0.09965337955 | H21: ='Profit & Loss'!H23 -> 0.09012539185 | I21: ='Profit & Loss'!I23 -> 0.09523809524 | J21: ='Profit & Loss'!J23 -> 0.07387456714 | K21: ='Profit & Loss'!K23 -> 0.09461864987
A22: Tax Rate | B22: ='Data Sheet'!B29/'Data Sheet'!B28 -> 0.1476997579 | C22: ='Data Sheet'!C29/'Data Sheet'!C28 -> 0.4139976275 | D22: ='Data Sheet'!D29/'Data Sheet'!D28 -> 0.3661538462 | E22: ='Data Sheet'!E29/'Data Sheet'!E28 -> 0.3823529412 | F22: ='Data Sheet'!F29/'Data Sheet'!F28 -> 0.2685269899 | G22: ='Data Sheet'!G29/'Data Sheet'!G28 -> 0.2898461538 | H22: ='Data Sheet'!H29/'Data Sheet'!H28 -> 0.2252580449 | I22: ='Data Sheet'!I29/'Data Sheet'!I28 -> 0.2603369066 | J22: ='Data Sheet'!J29/'Data Sheet'!J28 -> 0.2552307251 | K22: ='Data Sheet'!K29/'Data Sheet'!K28 -> 0.2516651296 | L22: =K22 -> 0.2516651296
A23: NOPLAT | B23: =B4*(1-B22) -> 6.221791768 | C23: 6.815207592 | D23: 6.592 | E23: 10.17882353 | F23: 18.41117566 | G23: 25.62235077 | H23: 15.03774135 | I23: 25.35565084 | J23: 54.0255632 | K23: 77.99894354
A24: RoIC | B24: =(B4/B13)*(1-B22) -> 0.08043686836 | C24: =(C4/C13)*(1-C22) -> 0.07816501424 | D24: 0.07357964058 | E24: 0.1123862596 | F24: 0.1646059514 | G24: 0.1829645156 | H24: 0.1157728951 | I24: 0.1613160125 | J24: 0.2300624418 | K24: 0.2745764901 | L24: 0.5156665729
A25: WACC | B25: 0.12 | C25: 0.12 | D25: 0.12 | E25: 0.12 | F25: 0.12 | G25: 0.12 | H25: 0.12 | I25: 0.12 | J25: 0.12 | K25: 0.12 | L25: =K25 -> 0.12
A26: EPA (Economic Profit Added) | B26: =B13*(B24-B25) -> -3.060208232 | C26: =C13*(C24-C25) -> -3.647592408 | D26: -4.1588 | E26: -0.6895764706 | F26: 4.989175663 | G26: 8.817550769 | H26: -0.5490586521 | I26: 6.494050842 | J26: 25.8459632 | K26: 43.91054354 | L26: 61.77146536
A27: RoIIC | D27: =(D23-C23)/(C13-B13) -> -0.02268369837 | E27: =(E23-D23)/(D13-C13) -> 1.494509804 | F27: 8.40035932 | G27: 0.3388710106 | H27: -0.3754739064 | I27: -1.016542807 | J27: 1.050564762 | K27: 0.3087363856
A28: 3Yr Rolling RoIIC | G28: =(G23-D23)/(F13-C13) -> 0.7717092769 | H28: 0.0963115524 | I28: 0.176614323 | J28: 0.6265875233 | K28: =(K23-H23)/(J13-G13) -> 0.6642177676
A29: 5Yr Rolling RoIIC | H29: =(H23-C23)/(G13-B13) -> 0.1311618082 | I29: =(I23-D23)/(H13-C13) -> 0.4394297621 | J29: 0.6487163733 | K29: =(K23-F23)/(J13-E13) -> 0.4130581442
A30: Operating Leverage | C30: =IF(C4-B4>0,((C4-B4)/B4)/(('Data Sheet'!C17-'Data Sheet'!B17)/'Data Sheet'!B17), "") -> 3.29664327 | D30: =IF(D4-C4>0,((D4-C4)/C4)/(('Data Sheet'!D17-'Data Sheet'!C17)/'Data Sheet'!C17), "") ->  | E30: =IF(E4-D4>0,((E4-D4)/D4)/(('Data Sheet'!E17-'Data Sheet'!D17)/'Data Sheet'!D17), "") -> 2.917174698 | F30: =IF(F4-E4>0,((F4-E4)/E4)/(('Data Sheet'!F17-'Data Sheet'!E17)/'Data Sheet'!E17), "") -> 1.596176256 | G30: =IF(G4-F4>0,((G4-F4)/F4)/(('Data Sheet'!G17-'Data Sheet'!F17)/'Data Sheet'!F17), "") -> 1.925832121 | H30: =IF(H4-G4>0,((H4-G4)/G4)/(('Data Sheet'!H17-'Data Sheet'!G17)/'Data Sheet'!G17), "") ->  | I30: =IF(I4-H4>0,((I4-H4)/H4)/(('Data Sheet'!I17-'Data Sheet'!H17)/'Data Sheet'!H17), "") -> 8.692680749 | J30: =IF(J4-I4>0,((J4-I4)/I4)/(('Data Sheet'!J17-'Data Sheet'!I17)/'Data Sheet'!I17), "") -> 1.89051666 | K30: =IF(K4-J4>0,((K4-J4)/J4)/(('Data Sheet'!K17-'Data Sheet'!J17)/'Data Sheet'!J17), "") -> 1.470688442
A31: Sustainable Growth Rate | B31: =B20*(1-B21) -> 0.0628113879 | C31: =C20*(1-C21) -> 0.08114323259 | D31: 0.06324049854 | E31: 0.107523863 | F31: 0.1605488448 | G31: 0.1968921736 | H31: 0.1006763788 | I31: 0.1580698835 | J31: 0.2571855968 | K31: 0.2592839496 | M31: coy can grow at this rate safely with internal accruals
B32: =B2 -> 2014-03-31 | C32: 2015-03-31 | D32: 2016-03-31 | E32: 2017-03-31 | F32: 2018-03-31 | G32: 2019-03-31 | H32: 2020-03-31 | I32: 2021-03-31 | J32: 2022-03-31 | K32: 2023-03-31 | L32: CURRENT
A33: MktCap | B33: ='Data Sheet'!B90*'Data Sheet'!B93 -> 15.84 | C33: ='Data Sheet'!C90*'Data Sheet'!C93 -> 55.9872 | D33: ='Data Sheet'!D90*'Data Sheet'!D93 -> 39.3984 | E33: ='Data Sheet'!E90*'Data Sheet'!E93 -> 121.9392 | F33: ='Data Sheet'!F90*'Data Sheet'!F93 -> 432.7488 | G33: ='Data Sheet'!G90*'Data Sheet'!G93 -> 531.072 | H33: ='Data Sheet'!H90*'Data Sheet'!H93 -> 82.1952 | I33: ='Data Sheet'!I90*'Data Sheet'!I93 -> 327.168 | J33: ='Data Sheet'!J90*'Data Sheet'!J93 -> 1972.224 | K33: ='Data Sheet'!K90*'Data Sheet'!K93 -> 2957.472 | L33: ='Data Sheet'!B9 -> 3038.91
A34: MktCap+Dividend | B34: =B33+'Data Sheet'!B31 -> 15.84 | C34: =C33+'Data Sheet'!C31 -> 55.9872 | D34: =D33+'Data Sheet'!D31 -> 39.3984 | E34: =E33+'Data Sheet'!E31 -> 122.8992 | F34: =F33+'Data Sheet'!F31 -> 435.0488 | G34: =G33+'Data Sheet'!G31 -> 533.372 | H34: =H33+'Data Sheet'!H31 -> 83.3452 | I34: =I33+'Data Sheet'!I31 -> 329.468 | J34: =J33+'Data Sheet'!J31 -> 1976.064 | K34: =K33+'Data Sheet'!K31 -> 2964.382
A35: Retained Profit | B35: ='Data Sheet'!B30-'Data Sheet'!B31 -> 3.53 | C35: ='Data Sheet'!C30-'Data Sheet'!C31 -> 4.94 | D35: ='Data Sheet'!D30-'Data Sheet'!D31 -> 4.11 | E35: ='Data Sheet'!E30-'Data Sheet'!E31 -> 7.66 | F35: ='Data Sheet'!F30-'Data Sheet'!F31 -> 13.69 | G35: ='Data Sheet'!G30-'Data Sheet'!G31 -> 20.78 | H35: ='Data Sheet'!H30-'Data Sheet'!H31 -> 11.61 | I35: ='Data Sheet'!I30-'Data Sheet'!I31 -> 21.85 | J35: ='Data Sheet'!J30-'Data Sheet'!J31 -> 48.14 | K35: ='Data Sheet'!K30-'Data Sheet'!K31 -> 66.12
A36: EV | B36: =B33+'Data Sheet'!B59-'Data Sheet'!B69 -> 54.13 | C36: =C33+'Data Sheet'!C59-'Data Sheet'!C69 -> 99.6772 | D36: =D33+'Data Sheet'!D59-'Data Sheet'!D69 -> 73.6984 | E36: =E33+'Data Sheet'!E59-'Data Sheet'!E69 -> 149.4892 | F36: =F33+'Data Sheet'!F59-'Data Sheet'!F69 -> 468.2888 | G36: =G33+'Data Sheet'!G59-'Data Sheet'!G69 -> 575.352 | H36: =H33+'Data Sheet'!H59-'Data Sheet'!H69 -> 106.6252 | I36: =I33+'Data Sheet'!I59-'Data Sheet'!I69 -> 340.478 | J36: =J33+'Data Sheet'!J59-'Data Sheet'!J69 -> 2018.344 | K36: =K33+'Data Sheet'!K59-'Data Sheet'!K69 -> 2993.062
B37: =B2 -> 2014-03-31 | C37: 2015-03-31 | D37: 2016-03-31 | E37: 2017-03-31 | F37: 2018-03-31 | G37: 2019-03-31 | H37: 2020-03-31 | I37: 2021-03-31 | J37: 2022-03-31 | K37: 2023-03-31
A38: Price/Earnings | B38: =B33/'Data Sheet'!B30 -> 4.487252125 | C38: =C33/'Data Sheet'!C30 -> 11.3334413 | D38: =D33/'Data Sheet'!D30 -> 9.585985401 | E38: =E33/'Data Sheet'!E30 -> 14.14607889 | F38: =F33/'Data Sheet'!F30 -> 27.06371482 | G38: =G33/'Data Sheet'!G30 -> 23.01005199 | H38: =H33/'Data Sheet'!H30 -> 6.441630094 | I38: =I33/'Data Sheet'!I30 -> 13.54732919 | J38: =J33/'Data Sheet'!J30 -> 37.94197768 | K38: =K33/'Data Sheet'!K30 -> 40.4966726
A39: Price/Book | B39: =B33/B10 -> 0.2818505338 | C39: 0.9196320631 | D39: 0.6062224958 | E39: 1.711667602 | F39: 5.075041632 | G39: 5.031949972 | H39: 0.7127575442 | I39: 2.366837879 | J39: 10.53651031 | K39: 11.59747461
A40: Price/CashFlow | B40: =B33/B17 -> 1.648283039 | C40: 20.43328467 | D40: 2.545116279 | E40: 10.39549872 | F40: 76.72851064 | G40: 141.2425532 | H40: 1.993094083 | I40: 11.09420142 | J40: -566.7310345 | K40: 48.30891865
A41: Price/Sales | B41: =B33/'Data Sheet'!B17 -> 0.1962825279 | C41: =C33/'Data Sheet'!C17 -> 0.5879773157 | D41: =D33/'Data Sheet'!D17 -> 0.3985675266 | E41: =E33/'Data Sheet'!E17 -> 1.02763526 | F41: =F33/'Data Sheet'!F17 -> 2.741345496 | G41: =G33/'Data Sheet'!G17 -> 2.746119241 | H41: =H33/'Data Sheet'!H17 -> 0.4390300182 | I41: =I33/'Data Sheet'!I17 -> 1.605968977 | J41: =J33/'Data Sheet'!J17 -> 6.087298991 | K41: =K33/'Data Sheet'!K17 -> 7.037745996
A42: EV/EBITDA | B42: =B36/B5 -> 5.609326425 | C42: 6.734945946 | D42: 5.230546487 | E42: 7.111760228 | F42: 15.71966432 | G42: 14.05697532 | H42: 4.194539732 | I42: 8.47381782 | J42: 25.57455651 | K42: 26.55778172
A43: Dividend Yield | B43: ='Data Sheet'!B31/'Calculated Data'!B33 -> 0 | C43: ='Data Sheet'!C31/'Calculated Data'!C33 -> 0 | D43: ='Data Sheet'!D31/'Calculated Data'!D33 -> 0 | E43: ='Data Sheet'!E31/'Calculated Data'!E33 -> 0.007872775941 | F43: ='Data Sheet'!F31/'Calculated Data'!F33 -> 0.005314861647 | G43: ='Data Sheet'!G31/'Calculated Data'!G33 -> 0.004330862859 | H43: ='Data Sheet'!H31/'Calculated Data'!H33 -> 0.01399108464 | I43: ='Data Sheet'!I31/'Calculated Data'!I33 -> 0.007030027387 | J43: ='Data Sheet'!J31/'Calculated Data'!J33 -> 0.001947040498 | K43: ='Data Sheet'!K31/'Calculated Data'!K33 -> 0.002336454918
B44: =B2 -> 2014-03-31 | C44: 2015-03-31 | D44: 2016-03-31 | E44: 2017-03-31 | F44: 2018-03-31 | G44: 2019-03-31 | H44: 2020-03-31 | I44: 2021-03-31 | J44: 2022-03-31 | K44: 2023-03-31 | L44: Z-Weights
A45: Working Capital/Total Assets | B45: =B11/B15 -> 0.347465844 | C45: 0.381371932 | D45: 0.4158767773 | E45: 0.3649325299 | F45: 0.4171775008 | G45: 0.5040608849 | H45: 0.4142583081 | I45: 0.3976621591 | J45: 0.4918092585 | K45: 0.4948160027 | L45: 1.2
A46: Retained Profits/Total Assets | B46: =B35/B15 -> 0.03111502865 | C46: 0.03886091882 | D46: 0.03246445498 | E46: 0.06500891114 | F46: 0.09221960256 | G46: 0.1180212416 | H46: 0.07184850548 | I46: 0.1001604401 | J46: 0.1596365566 | K46: 0.1828084824 | L46: 1.4
A47: EBIT/Total Assets | B47: =B4/B15 -> 0.06434552666 | C47: 0.09148835746 | D47: 0.08214849921 | E47: 0.1398625138 | F47: 0.1695520377 | G47: 0.2049184983 | H47: 0.1201188192 | I47: 0.1571395829 | J47: 0.2405491444 | K47: 0.2881749565 | L47: 3.3
A48: Market Cap/Total Liabilities | B48: =B33/B15 -> 0.1396209784 | C48: 0.4404279421 | D48: 0.3112037915 | E48: 1.034873971 | F48: 2.915114853 | G48: 3.016254899 | H48: 0.5086651402 | I48: 1.499738712 | J48: 6.540071628 | K48: 8.176814399 | L48: 0.6
A49: Sales/Total Assets | B49: ='Data Sheet'!B17/'Calculated Data'!B15 -> 0.7113265756 | C49: ='Data Sheet'!C17/'Calculated Data'!C15 -> 0.7490560101 | D49: ='Data Sheet'!D17/'Calculated Data'!D15 -> 0.7808056872 | E49: ='Data Sheet'!E17/'Calculated Data'!E15 -> 1.007044047 | F49: ='Data Sheet'!F17/'Calculated Data'!F15 -> 1.063388346 | G49: ='Data Sheet'!G17/'Calculated Data'!G15 -> 1.098369966 | H49: ='Data Sheet'!H17/'Calculated Data'!H15 -> 1.1586113 | I49: ='Data Sheet'!I17/'Calculated Data'!I15 -> 0.9338528535 | J49: ='Data Sheet'!J17/'Calculated Data'!J15 -> 1.074379891 | K49: ='Data Sheet'!K17/'Calculated Data'!K15 -> 1.161851309 | L49: 1
A50: Altman Z-Score | B50: =$L$45*B45+$L$46*B46+$L$47*B47+$L$48*B48+$L$49*B49 -> 1.467959454 | C50: =$L$45*C45+$L$46*C46+$L$47*C47+$L$48*C48+$L$49*C49 -> 1.82727596 | D50: 1.783120379 | E50: 2.618446236 | F50: 4.001699427 | G50: 4.35445675 | H50: 2.457900365 | I50: 2.969675911 | J50: 6.605897334 | K50: 7.868628383
A51: Z > 2.99 -“Safe” Zones
A52: 1.81 < Z < 2.99 -“Grey” Zones
A53: Z < 1.81 -“Distress” Zones

Sheet Cost Analysis
A1: ='Data Sheet'!B1 -> SHIVALIK BIMETAL CONTROLS LTD | B1: =B7 -> 2014-03-31 | C1: 2015-03-31 | D1: 2016-03-31 | E1: 2017-03-31 | F1: 2018-03-31 | G1: 2019-03-31 | H1: 2020-03-31 | I1: 2021-03-31 | J1: 2022-03-31 | K1: 2023-03-31
A2: ='Data Sheet'!A17 -> Sales | B2: ='Data Sheet'!B17 -> 80.7 | C2: ='Data Sheet'!C17 -> 95.22 | D2: ='Data Sheet'!D17 -> 98.85 | E2: ='Data Sheet'!E17 -> 118.66 | F2: ='Data Sheet'!F17 -> 157.86 | G2: ='Data Sheet'!G17 -> 193.39 | H2: ='Data Sheet'!H17 -> 187.22 | I2: ='Data Sheet'!I17 -> 203.72 | J2: ='Data Sheet'!J17 -> 323.99 | K2: ='Data Sheet'!K17 -> 420.23
A3: ='Data Sheet'!A25 -> Other Income | B3: ='Data Sheet'!B25 -> -1.35 | C3: ='Data Sheet'!C25 -> -0.55 | D3: ='Data Sheet'!D25 -> 0.57 | E3: ='Data Sheet'!E25 -> 2.04 | F3: ='Data Sheet'!F25 -> 4.15 | G3: ='Data Sheet'!G25 -> 5.35 | H3: ='Data Sheet'!H25 -> 4.65 | I3: ='Data Sheet'!I25 -> 4.05 | J3: ='Data Sheet'!J25 -> 5.45 | K3: ='Data Sheet'!K25 -> 7.93
A4: Sales Increase | C4: =(C2-B2)/B2 -> 0.1799256506 | D4: 0.03812224323 | E4: 0.2004046535 | F4: 0.330355638 | G4: 0.2250728494 | H4: -0.0319044418 | I4: 0.08813160987 | J4: 0.5903691341 | K4: 0.2970462051
A5: EBIT | B5: ='Calculated Data'!B4 -> 7.3 | C5: ='Calculated Data'!C4 -> 11.63 | D5: ='Calculated Data'!D4 -> 10.4 | E5: ='Calculated Data'!E4 -> 16.48 | F5: ='Calculated Data'!F4 -> 25.17 | G5: ='Calculated Data'!G4 -> 36.08 | H5: ='Calculated Data'!H4 -> 19.41 | I5: ='Calculated Data'!I4 -> 34.28 | J5: ='Calculated Data'!J4 -> 72.54 | K5: ='Calculated Data'!K4 -> 104.23
A6: EBIT Increase | C6: =(C5-B5)/B5 -> 0.5931506849 | D6: =(D5-C5)/C5 -> -0.105760963 | E6: 0.5846153846 | F6: 0.5273058252 | G6: 0.4334525228 | H6: -0.4620288248 | I6: 0.7660999485 | J6: 1.116102684 | K6: 0.4368624207
A7: Operating Expenses | B7: ='Data Sheet'!B16 -> 2014-03-31 | C7: ='Data Sheet'!C16 -> 2015-03-31 | D7: ='Data Sheet'!D16 -> 2016-03-31 | E7: ='Data Sheet'!E16 -> 2017-03-31 | F7: ='Data Sheet'!F16 -> 2018-03-31 | G7: ='Data Sheet'!G16 -> 2019-03-31 | H7: ='Data Sheet'!H16 -> 2020-03-31 | I7: ='Data Sheet'!I16 -> 2021-03-31 | J7: ='Data Sheet'!J16 -> 2022-03-31 | K7: ='Data Sheet'!K16 -> 2023-03-31
A8: ='Data Sheet'!A18 -> Raw Material Cost | B8: ='Data Sheet'!B18 -> 48.92 | C8: ='Data Sheet'!C18 -> 57.75 | D8: ='Data Sheet'!D18 -> 56.08 | E8: ='Data Sheet'!E18 -> 64.88 | F8: ='Data Sheet'!F18 -> 89.53 | G8: ='Data Sheet'!G18 -> 108.66 | H8: ='Data Sheet'!H18 -> 97.82 | I8: ='Data Sheet'!I18 -> 112.89 | J8: ='Data Sheet'!J18 -> 172.06 | K8: ='Data Sheet'!K18 -> 224.06
A9: ='Data Sheet'!A19 -> Change in Inventory | B9: ='Data Sheet'!B19 -> 0.86 | C9: ='Data Sheet'!C19 -> 2.07 | D9: ='Data Sheet'!D19 -> -1.94 | E9: ='Data Sheet'!E19 -> 2.84 | F9: ='Data Sheet'!F19 -> 7.9 | G9: ='Data Sheet'!G19 -> 12.78 | H9: ='Data Sheet'!H19 -> -9.36 | I9: ='Data Sheet'!I19 -> 11.61 | J9: ='Data Sheet'!J19 -> 11 | K9: ='Data Sheet'!K19 -> 18.07
A10: ='Data Sheet'!A20 -> Power and Fuel | B10: ='Data Sheet'!B20 -> 1.2 | C10: ='Data Sheet'!C20 -> 1.29 | D10: ='Data Sheet'!D20 -> 1.65 | E10: ='Data Sheet'!E20 -> 1.91 | F10: ='Data Sheet'!F20 -> 2.02 | G10: ='Data Sheet'!G20 -> 2.04 | H10: ='Data Sheet'!H20 -> 2.06 | I10: ='Data Sheet'!I20 -> 2.16 | J10: ='Data Sheet'!J20 -> 2.9 | K10: ='Data Sheet'!K20 -> 4.03
A11: ='Data Sheet'!A21 -> Other Mfr. Exp | B11: ='Data Sheet'!B21 -> 4.01 | C11: ='Data Sheet'!C21 -> 4.01 | D11: ='Data Sheet'!D21 -> 4.58 | E11: ='Data Sheet'!E21 -> 8.42 | F11: ='Data Sheet'!F21 -> 8.23 | G11: ='Data Sheet'!G21 -> 8 | H11: ='Data Sheet'!H21 -> 7.19 | I11: ='Data Sheet'!I21 -> 13.5 | J11: ='Data Sheet'!J21 -> 15.14 | K11: ='Data Sheet'!K21 -> 19.38
A12: ='Data Sheet'!A22 -> Employee Cost | B12: ='Data Sheet'!B22 -> 8.71 | C12: ='Data Sheet'!C22 -> 10.28 | D12: ='Data Sheet'!D22 -> 11.5 | E12: ='Data Sheet'!E22 -> 12.41 | F12: ='Data Sheet'!F22 -> 14.48 | G12: ='Data Sheet'!G22 -> 16.92 | H12: ='Data Sheet'!H22 -> 20.02 | I12: ='Data Sheet'!I22 -> 22.23 | J12: ='Data Sheet'!J22 -> 27.11 | K12: ='Data Sheet'!K22 -> 33.95
A13: ='Data Sheet'!A23 -> Selling and admin | B13: ='Data Sheet'!B23 -> 7.81 | C13: ='Data Sheet'!C23 -> 8.47 | D13: ='Data Sheet'!D23 -> 8.86 | E13: ='Data Sheet'!E23 -> 14.71 | F13: ='Data Sheet'!F23 -> 25.51 | G13: ='Data Sheet'!G23 -> 33.55 | H13: ='Data Sheet'!H23 -> 28.96 | I13: ='Data Sheet'!I23 -> 27.43 | J13: ='Data Sheet'!J23 -> 43.03 | K13: ='Data Sheet'!K23 -> 50.41
A14: ='Data Sheet'!A24 -> Other Expenses | B14: ='Data Sheet'!B24 -> -0.09 | C14: ='Data Sheet'!C24 -> 0.14 | D14: ='Data Sheet'!D24 -> 0.72 | E14: ='Data Sheet'!E24 -> 0.19 | F14: ='Data Sheet'!F24 -> 0.35 | G14: ='Data Sheet'!G24 -> 1.42 | H14: ='Data Sheet'!H24 -> 1.04 | I14: ='Data Sheet'!I24 -> 0.99 | J14: ='Data Sheet'!J24 -> 1.28 | K14: ='Data Sheet'!K24 -> 1.7
A15: Interest Expense | B15: ='Profit & Loss'!B9 -> 3.17 | C15: ='Profit & Loss'!C9 -> 3.2 | D15: ='Profit & Loss'!D9 -> 3.9 | E15: ='Profit & Loss'!E9 -> 2.54 | F15: ='Profit & Loss'!F9 -> 3.31 | G15: ='Profit & Loss'!G9 -> 3.58 | H15: ='Profit & Loss'!H9 -> 2.94 | I15: ='Profit & Loss'!I9 -> 1.63 | J15: ='Profit & Loss'!J9 -> 2.76 | K15: ='Profit & Loss'!K9 -> 6.64
A16: Coomon Size Expenses | B16: =B1 -> 2014-03-31 | C16: 2015-03-31 | D16: 2016-03-31 | E16: 2017-03-31 | F16: 2018-03-31 | G16: 2019-03-31 | H16: 2020-03-31 | I16: 2021-03-31 | J16: 2022-03-31 | K16: 2023-03-31
A17: =A8 -> Raw Material Cost | B17: =B8/B$2 -> 0.6061957869 | C17: 0.6064902331 | D17: 0.5673242286 | E17: 0.5467722906 | F17: 0.5671481059 | G17: 0.5618697968 | H17: 0.5224869138 | I17: 0.5541429413 | J17: 0.5310657736 | K17: 0.5331842086 | L17: check lower RM/Sales - high correlation with Op Leverage
A18: Change in Inventory | B18: =B9/B$2 -> 0.01065675341 | C18: 0.02173913043 | D18: -0.0196256955 | E18: 0.02393392887 | F18: 0.05004434309 | G18: 0.0660840788 | H18: -0.04999465869 | I18: 0.05698998626 | J18: 0.03395166517 | K18: 0.04300026176
A19: Power and Fuel | B19: =B10/B$2 -> 0.01486988848 | C19: 0.01354757404 | D19: 0.01669195751 | E19: 0.01609640991 | F19: 0.01279614849 | G19: 0.0105486323 | H19: 0.01100309796 | I19: 0.01060278814 | J19: 0.008950893546 | K19: 0.009589986436
A20: Other Mfr. Exp | B20: =B11/B$2 -> 0.04969021066 | C20: 0.04211300147 | D20: 0.04633282752 | E20: 0.07095904264 | F20: 0.05213480299 | G20: 0.04136718548 | H20: 0.03840401666 | I20: 0.06626742588 | J20: 0.04672983734 | K20: 0.04611760227
A21: Employee Cost | B21: =B12/B$2 -> 0.1079306072 | C21: 0.1079605125 | D21: 0.1163378857 | E21: 0.1045845272 | F21: 0.09172684657 | G21: 0.08749159729 | H21: 0.10693302 | I21: 0.1091203613 | J21: 0.08367542208 | K21: 0.08078909169 | L21: check high Emp Cost/Sales - high correlation with Op Leverage
A22: Selling and admin | B22: =B13/B$2 -> 0.09677819083 | C22: 0.08895190086 | D22: 0.08963075367 | E22: 0.1239676386 | F22: 0.1615988851 | G22: 0.1734836341 | H22: 0.1546843286 | I22: 0.134645592 | J22: 0.1328127411 | K22: 0.1199581182
A23: Other Expenses | B23: =B14/B$2 -> -0.001115241636 | C23: 0.001470279353 | D23: 0.007283763278 | E23: 0.001601213551 | F23: 0.002217154441 | G23: 0.007342675423 | H23: 0.005554962077 | I23: 0.004859611231 | J23: 0.00395073922 | K23: 0.004045403707
A24: Interest Expense | B24: =B15/B2 -> 0.03928128872 | C24: 0.03360638521 | D24: 0.03945371775 | E24: 0.02140569695 | F24: 0.02096794628 | G24: 0.0185118155 | H24: 0.01570345049 | I24: 0.008001178088 | J24: 0.008518781444 | K24: 0.01580087095
A25: Interest Expense Capitalised | L25: Add back from AR - any interest costs capitalised
A26: Depreciation | B26: ='Profit & Loss'!B8/'Profit & Loss'!B4 -> 0.02912019827 | C26: ='Profit & Loss'!C8/'Profit & Loss'!C4 -> 0.03329132535 | D26: ='Profit & Loss'!D8/'Profit & Loss'!D4 -> 0.0373292868 | E26: ='Profit & Loss'!E8/'Profit & Loss'!E4 -> 0.03826057644 | F26: ='Profit & Loss'!F8/'Profit & Loss'!F4 -> 0.02926643862 | G26: ='Profit & Loss'!G8/'Profit & Loss'!G4 -> 0.0250788562 | H26: ='Profit & Loss'!H8/'Profit & Loss'!H4 -> 0.03210127123 | I26: ='Profit & Loss'!I8/'Profit & Loss'!I4 -> 0.02896131946 | J26: ='Profit & Loss'!J8/'Profit & Loss'!J4 -> 0.0196919658 | K26: ='Profit & Loss'!K8/'Profit & Loss'!K4 -> 0.02015562906
A27: Year on Year Escalation | B27: =B16 -> 2014-03-31 | C27: =C16 -> 2015-03-31 | D27: 2016-03-31 | E27: 2017-03-31 | F27: 2018-03-31 | G27: 2019-03-31 | H27: 2020-03-31 | I27: 2021-03-31 | J27: 2022-03-31 | K27: 2023-03-31
A28: Raw Material Increase/Sales Increase | C28: =((C8-B8)/B8)/C$4 -> 1.003185332 | D28: -0.7585531824 | E28: 0.7830092008 | F28: 1.150070224 | G28: 0.9493432712 | H28: 3.126859957 | I28: 1.74805016 | J28: 0.8878149477 | K28: 1.017417999
A29: Change in Inventory Increase/Sales Increase | C29: =((C9-B9)/B9)/C$4 -> 7.819767442 | D29: -50.815427 | E29: -12.29471214 | F29: 5.393248778 | G29: 2.74454036 | H29: 54.29947269 | I29: -25.42089744 | J29: -0.08899671404 | K29: 2.163728274
A30: Power & Fuel Increase/Sales Increase | C30: =((C10-B10)/B10)/C$4 -> 0.416838843 | D30: 7.320392081 | E30: 0.786287917 | F30: 0.1743321936 | G30: 0.04399015753 | H30: -0.307290177 | I30: 0.5508090615 | J30: 0.5803023444 | K30: 1.311766202
A31: Other Mfg Increase/Sales Increase | C31: =((C11-B11)/B11)/C$4 -> 0 | D31: 3.728653573 | E31: 4.183675044 | F31: -0.06830614669 | G31: -0.1241666293 | H31: 3.173539303 | I31: 9.957923041 | J31: 0.2057720746 | K31: 0.9427921829
A32: Employee Cost Increase/Sales Increase | C32: =((C12-B12)/B12)/C$4 -> 1.001817043 | D32: 3.113065569 | E32: 0.3948532801 | F32: 0.5049133352 | G32: 0.7486833164 | H32: -5.742621393 | I32: 1.252554113 | J32: 0.3718405218 | K32: 0.849381066
A33: Selling & Admin Cost Increase/Sales Increase | C33: =((C13-B13)/B13)/C$4 -> 0.4696775695 | D33: 1.20782148 | E33: 3.294688366 | F33: 2.222436493 | G33: 1.400304489 | H33: 4.288140539 | I33: -0.599461326 | J33: 0.9633301375 | K33: 0.5773790309
A34: Other Expenses Increase/Sales Increase | C34: =((C14-B14)/B14)/C$4 -> -14.20339761 | D34: 108.6729634 | E34: -3.673123843 | F34: 2.549087003 | G34: 13.58290378 | H34: 8.387723423 | I34: -0.5455128205 | J34: 0.4961798915 | K34: 1.10462613
A35: Year on Year Escalation | B35: =B27 -> 2014-03-31 | C35: =C27 -> 2015-03-31 | D35: 2016-03-31 | E35: 2017-03-31 | F35: 2018-03-31 | G35: 2019-03-31 | H35: 2020-03-31 | I35: 2021-03-31 | J35: 2022-03-31 | K35: 2023-03-31
A36: Working Capital Increase/Sales Increase | C36: =(('Calculated Data'!C11-'Calculated Data'!B11)/'Calculated Data'!B11)/'Cost Analysis'!C$4 -> 1.277375247 | D36: =(('Calculated Data'!D11-'Calculated Data'!C11)/'Calculated Data'!C11)/'Cost Analysis'!D$4 -> 2.256290402 | E36: =(('Calculated Data'!E11-'Calculated Data'!D11)/'Calculated Data'!D11)/'Cost Analysis'!E$4 -> -0.9145788121 | F36: =(('Calculated Data'!F11-'Calculated Data'!E11)/'Calculated Data'!E11)/'Cost Analysis'!F$4 -> 1.332601922 | G36: =(('Calculated Data'!G11-'Calculated Data'!F11)/'Calculated Data'!F11)/'Cost Analysis'!G$4 -> 1.924130769 | H36: =(('Calculated Data'!H11-'Calculated Data'!G11)/'Calculated Data'!G11)/'Cost Analysis'!H$4 -> 7.702578857 | I36: =(('Calculated Data'!I11-'Calculated Data'!H11)/'Calculated Data'!H11)/'Cost Analysis'!I$4 -> 3.357894632 | J36: =(('Calculated Data'!J11-'Calculated Data'!I11)/'Calculated Data'!I11)/'Cost Analysis'!J$4 -> 1.202002814 | K36: =(('Calculated Data'!K11-'Calculated Data'!J11)/'Calculated Data'!J11)/'Cost Analysis'!K$4 -> 0.6959494679
A37: Debtors Increase/Sales Increase | C37: =('Balance Sheet'!C17-'Balance Sheet'!B17)/'Balance Sheet'!B17/'Cost Analysis'!C$4 -> 0.5982231785 | D37: =('Balance Sheet'!D17-'Balance Sheet'!C17)/'Balance Sheet'!C17/'Cost Analysis'!D$4 -> 0 | E37: =('Balance Sheet'!E17-'Balance Sheet'!D17)/'Balance Sheet'!D17/'Cost Analysis'!E$4 -> 0.4848993176 | F37: =('Balance Sheet'!F17-'Balance Sheet'!E17)/'Balance Sheet'!E17/'Cost Analysis'!F$4 -> 0.8214944229 | G37: =('Balance Sheet'!G17-'Balance Sheet'!F17)/'Balance Sheet'!F17/'Cost Analysis'!G$4 -> 0.1309489685 | H37: =('Balance Sheet'!H17-'Balance Sheet'!G17)/'Balance Sheet'!G17/'Cost Analysis'!H$4 -> 3.290262028 | I37: =('Balance Sheet'!I17-'Balance Sheet'!H17)/'Balance Sheet'!H17/'Cost Analysis'!I$4 -> 4.35169413 | J37: =('Balance Sheet'!J17-'Balance Sheet'!I17)/'Balance Sheet'!I17/'Cost Analysis'!J$4 -> 0.6511177346 | K37: =('Balance Sheet'!K17-'Balance Sheet'!J17)/'Balance Sheet'!J17/'Cost Analysis'!K$4 -> 1.175541978
A38: Inventory Increase/Sales Increase | C38: =(('Balance Sheet'!C18-'Balance Sheet'!B18)/'Balance Sheet'!B18)/'Cost Analysis'!C$4 -> 3.043229669 | D38: =(('Balance Sheet'!D18-'Balance Sheet'!C18)/'Balance Sheet'!C18)/'Cost Analysis'!D$4 -> -4.936604683 | E38: =(('Balance Sheet'!E18-'Balance Sheet'!D18)/'Balance Sheet'!D18)/'Cost Analysis'!E$4 -> 0.5741164243 | F38: =(('Balance Sheet'!F18-'Balance Sheet'!E18)/'Balance Sheet'!E18)/'Cost Analysis'!F$4 -> 1.687107904 | G38: =(('Balance Sheet'!G18-'Balance Sheet'!F18)/'Balance Sheet'!F18)/'Cost Analysis'!G$4 -> 3.137462548 | H38: =(('Balance Sheet'!H18-'Balance Sheet'!G18)/'Balance Sheet'!G18)/'Cost Analysis'!H$4 -> 8.484083493 | I38: =(('Balance Sheet'!I18-'Balance Sheet'!H18)/'Balance Sheet'!H18)/'Cost Analysis'!I$4 -> 4.406603325 | J38: =(('Balance Sheet'!J18-'Balance Sheet'!I18)/'Balance Sheet'!I18)/'Cost Analysis'!J$4 -> 1.080454729 | K38: =(('Balance Sheet'!K18-'Balance Sheet'!J18)/'Balance Sheet'!J18)/'Cost Analysis'!K$4 -> 0.2051302006
A39: Creditors Increase/Sales Increase | C39: =IF('Balance Sheet'!C19>0,(('Balance Sheet'!C19-'Balance Sheet'!B19)/'Balance Sheet'!B19)/'Cost Analysis'!C$4,0) -> -1.466496682 | D39: =IF('Balance Sheet'!D19>0,(('Balance Sheet'!D19-'Balance Sheet'!C19)/'Balance Sheet'!C19)/'Cost Analysis'!D$4,0) -> 2.890210588 | E39: =IF('Balance Sheet'!E19>0,(('Balance Sheet'!E19-'Balance Sheet'!D19)/'Balance Sheet'!D19)/'Cost Analysis'!E$4,0) -> 7.052314196 | F39: =IF('Balance Sheet'!F19>0,(('Balance Sheet'!F19-'Balance Sheet'!E19)/'Balance Sheet'!E19)/'Cost Analysis'!F$4,0) -> 2.871040275 | G39: =IF('Balance Sheet'!G19>0,(('Balance Sheet'!G19-'Balance Sheet'!F19)/'Balance Sheet'!F19)/'Cost Analysis'!G$4,0) -> 0.0510417457 | H39: =IF('Balance Sheet'!H19>0,(('Balance Sheet'!H19-'Balance Sheet'!G19)/'Balance Sheet'!G19)/'Cost Analysis'!H$4,0) -> 10.133271 | I39: =IF('Balance Sheet'!I19>0,(('Balance Sheet'!I19-'Balance Sheet'!H19)/'Balance Sheet'!H19)/'Cost Analysis'!I$4,0) -> -3.033749675 | J39: =IF('Balance Sheet'!J19>0,(('Balance Sheet'!J19-'Balance Sheet'!I19)/'Balance Sheet'!I19)/'Cost Analysis'!J$4,0) -> 1.498028831 | K39: =IF('Balance Sheet'!K19>0,(('Balance Sheet'!K19-'Balance Sheet'!J19)/'Balance Sheet'!J19)/'Cost Analysis'!K$4,0) -> 0.8756463849
A40: Invested Capital Increase/Sales Increase | C40: =(('Calculated Data'!C13-'Calculated Data'!B13)/'Calculated Data'!B13)/'Cost Analysis'!C$4 -> 0.7070362792 | D40: =(('Calculated Data'!D13-'Calculated Data'!C13)/'Calculated Data'!C13)/'Cost Analysis'!D$4 -> 0.7220480778 | E40: =(('Calculated Data'!E13-'Calculated Data'!D13)/'Calculated Data'!D13)/'Cost Analysis'!E$4 -> 0.05458316784 | F40: =(('Calculated Data'!F13-'Calculated Data'!E13)/'Calculated Data'!E13)/'Cost Analysis'!F$4 -> 0.7112225745 | G40: =(('Calculated Data'!G13-'Calculated Data'!F13)/'Calculated Data'!F13)/'Cost Analysis'!G$4 -> 1.119788436 | H40: =(('Calculated Data'!H13-'Calculated Data'!G13)/'Calculated Data'!G13)/'Cost Analysis'!H$4 -> 2.271761784 | I40: =(('Calculated Data'!I13-'Calculated Data'!H13)/'Calculated Data'!H13)/'Cost Analysis'!I$4 -> 2.383944363 | J40: =(('Calculated Data'!J13-'Calculated Data'!I13)/'Calculated Data'!I13)/'Cost Analysis'!J$4 -> 0.8367978047 | K40: =(('Calculated Data'!K13-'Calculated Data'!J13)/'Calculated Data'!J13)/'Cost Analysis'!K$4 -> 0.7058955721
A41: Dilution | B41: =B1 -> 2014-03-31 | C41: 2015-03-31 | D41: 2016-03-31 | E41: 2017-03-31 | F41: 2018-03-31 | G41: 2019-03-31 | H41: 2020-03-31 | I41: 2021-03-31 | J41: 2022-03-31 | K41: 2023-03-31
A42: Equity Capital Increase/Decrease | C42: =('Data Sheet'!C57-'Data Sheet'!B57)/'Data Sheet'!B57 -> 0 | D42: =('Data Sheet'!D57-'Data Sheet'!C57)/'Data Sheet'!C57 -> 0 | E42: =('Data Sheet'!E57-'Data Sheet'!D57)/'Data Sheet'!D57 -> 0 | F42: =('Data Sheet'!F57-'Data Sheet'!E57)/'Data Sheet'!E57 -> 1 | G42: =('Data Sheet'!G57-'Data Sheet'!F57)/'Data Sheet'!F57 -> 0 | H42: =('Data Sheet'!H57-'Data Sheet'!G57)/'Data Sheet'!G57 -> 0 | I42: =('Data Sheet'!I57-'Data Sheet'!H57)/'Data Sheet'!H57 -> 0 | J42: =('Data Sheet'!J57-'Data Sheet'!I57)/'Data Sheet'!I57 -> 0 | K42: =('Data Sheet'!K57-'Data Sheet'!J57)/'Data Sheet'!J57 -> 0.5

Sheet Price Implied Expectations
A1: ='Data Sheet'!B1 -> SHIVALIK BIMETAL CONTROLS LTD
B2: ='Data Sheet'!B16 -> 2014-03-31 | C2: ='Data Sheet'!C16 -> 2015-03-31 | D2: ='Data Sheet'!D16 -> 2016-03-31 | E2: ='Data Sheet'!E16 -> 2017-03-31 | F2: ='Data Sheet'!F16 -> 2018-03-31 | G2: ='Data Sheet'!G16 -> 2019-03-31 | H2: ='Data Sheet'!H16 -> 2020-03-31 | I2: ='Data Sheet'!I16 -> 2021-03-31 | J2: ='Data Sheet'!J16 -> 2022-03-31 | K2: ='Data Sheet'!K16 -> 2023-03-31 | M2: Consensus Forecasts | P2: 5 Yr Avg | Q2: Inputs | R2: TTM
A3: Sales | B3: ='Data Sheet'!B17 -> 80.7 | C3: ='Data Sheet'!C17 -> 95.22 | D3: ='Data Sheet'!D17 -> 98.85 | E3: ='Data Sheet'!E17 -> 118.66 | F3: ='Data Sheet'!F17 -> 157.86 | G3: ='Data Sheet'!G17 -> 193.39 | H3: ='Data Sheet'!H17 -> 187.22 | I3: ='Data Sheet'!I17 -> 203.72 | J3: ='Data Sheet'!J17 -> 323.99 | K3: ='Data Sheet'!K17 -> 420.23 | M3: Sales Growth Rate | P3: =Customization!B14 -> 0.2141246036 | Q3: 0.25 | R3: ='Profit & Loss'!L31 -> 0
A4: Capex | C4: ='Calculated Data'!C18 -> 3.95 | D4: ='Calculated Data'!D18 -> 1.92 | E4: ='Calculated Data'!E18 -> 15.17 | F4: ='Calculated Data'!F18 -> 6.97 | G4: ='Calculated Data'!G18 -> 6.22 | H4: ='Calculated Data'!H18 -> 17.67 | I4: ='Calculated Data'!I18 -> 13.38 | J4: ='Calculated Data'!J18 -> 22.47 | K4: ='Calculated Data'!K18 -> 27.05 | M4: EBIT Margin | P4: =(AVERAGE('Business Robustness'!G14:K14)) -> 0.1860875284 | Q4: 0.24 | R4: ='Calculated Data'!L4/Annual[[#This Row],[Column12]] -> 0.2469640275
A5: Depreciation | C5: ='Data Sheet'!C26 -> 3.17 | D5: ='Data Sheet'!D26 -> 3.69 | E5: ='Data Sheet'!E26 -> 4.54 | F5: ='Data Sheet'!F26 -> 4.62 | G5: ='Data Sheet'!G26 -> 4.85 | H5: ='Data Sheet'!H26 -> 6.01 | I5: ='Data Sheet'!I26 -> 5.9 | J5: ='Data Sheet'!J26 -> 6.38 | K5: ='Data Sheet'!K26 -> 8.47 | M5: Tax Rate | P5: =AVERAGE('Calculated Data'!G22:K22) -> 0.256467392 | Q5: 0.25
A6: Incremental Fixed Capital Investment | C6: =C4-C5 -> 0.78 | D6: =D4-D5 -> -1.77 | E6: 10.63 | F6: 2.35 | G6: 1.37 | H6: 11.66 | I6: 7.48 | J6: 16.09 | K6: 18.58 | M6: Inc Fixed Capital Rate | P6: =AVERAGE(G9:K9) -> 0.2202779341 | Q6: 0.1
A7: Incremental Sales | C7: =C3-B3 -> 14.52 | D7: =D3-C3 -> 3.63 | E7: 19.81 | F7: 39.2 | G7: 35.53 | H7: -6.17 | I7: 16.5 | J7: 120.27 | K7: 96.24 | M7: Inc Working Capital Rate | P7: =AVERAGE(G15:K15) -> 0.3845071061 | Q7: 0.4
A8: Incremental Fixed Capital Investment Rate | C8: =C6/C7 -> 0.05371900826 | D8: =D6/D7 -> -0.4876033058 | E8: 0.5365976779 | F8: 0.05994897959 | G8: 0.03855896426 | H8: -1.889789303 | I8: 0.4533333333 | J8: 0.1337823231 | K8: 0.1930590191 | M8: Cost of Capital | Q8: 0.12
A9: 5 Yr Avg | G9: =SUM(C6:G6)/SUM(C7:G7) -> 0.1185553288 | H9: =SUM(D6:H6)/SUM(D7:H7) -> 0.2634782609 | I9: 0.3193477639 | J9: 0.1896946379 | K9: 0.2103136792 | M9: Inflation Rate | Q9: 0.05
A10: 9 Yr Avg | K10: =SUM(C6:K6)/SUM(C7:K7) -> 0.1978322976 | M10: Cash & Bank Balance | Q10: ='Balance Sheet'!K34 -> 17.06
M11: Investments | Q11: ='Balance Sheet'!K12 -> 23.59
A12: Working Capital | B12: ='Calculated Data'!B11 -> 39.42 | C12: ='Calculated Data'!C11 -> 48.48 | D12: ='Calculated Data'!D11 -> 52.65 | E12: ='Calculated Data'!E11 -> 43 | F12: ='Calculated Data'!F11 -> 61.93 | G12: ='Calculated Data'!G11 -> 88.75 | H12: ='Calculated Data'!H11 -> 66.94 | I12: ='Calculated Data'!I11 -> 86.75 | J12: ='Calculated Data'!J11 -> 148.31 | K12: ='Calculated Data'!K11 -> 178.97 | M12: Non-Operative Assets | Q12: =Q10+Q11 -> 40.65
A13: Incremental Working Capital | C13: =C12-B12 -> 9.06 | D13: =D12-C12 -> 4.17 | E13: -9.65 | F13: 18.93 | G13: 26.82 | H13: -21.81 | I13: 19.81 | J13: 61.56 | K13: 30.66 | M13: Debt | Q13: ='Balance Sheet'!K6 -> 52.65
A14: Incremental Working Capital Investment Rate | C14: =C13/C7 -> 0.6239669421 | D14: =D13/D7 -> 1.148760331 | E14: -0.4871277133 | F14: 0.4829081633 | G14: 0.7548550521 | H14: 3.534846029 | I14: 1.200606061 | J14: 0.5118483412 | K14: 0.3185785536 | M14: # Shares Outstanding | Q14: ='Data Sheet'!B6 -> 5.760420813
A15: 5 Yr Avg | G15: =SUM(C13:G13)/SUM(C7:G7) -> 0.4377495785 | H15: =SUM(D13:H13)/SUM(D7:H7) -> 0.2006521739 | I15: 0.3251644894 | J15: 0.5128817026 | K15: 0.4460875862 | M15: CMP | Q15: ='Data Sheet'!B8 -> 527.55
A16: 9 Yr Avg | K16: =SUM(C13:K13)/SUM(C7:K7) -> 0.4110093364
A17: Years in Future | B17: 0 | C17: 1 | D17: 2 | E17: 3 | F17: 4 | G17: 5 | H17: 6 | I17: 7 | J17: 8 | K17: 9 | L17: 10 | M17: 11 | N17: 12 | O17: 13 | P17: 14 | Q17: 15
A18: Year | B18: 2023-03-01 | C18: 2024-03-01 | D18: 2025-03-01 | E18: 2026-03-01 | F18: 2027-03-01 | G18: 2028-03-01 | H18: 2029-03-01 | I18: 2030-03-01 | J18: 2031-03-01 | K18: 2032-03-01 | L18: 2033-03-01 | M18: 2034-03-01 | N18: 2035-03-01 | O18: 2036-03-01 | P18: 1937-03-01 | Q18: 1938-03-01
A19: Sales | B19: ='Data Sheet'!K17 -> 420.23 | C19: =B19*(1+10%) -> 462.253 | D19: =C19*(1+$Q$3) -> 577.81625 | E19: =D19*(1+$Q$3) -> 722.2703125 | F19: 902.8378906 | G19: 1128.547363 | H19: 1410.684204 | I19: 1763.355255 | J19: 2204.194069 | K19: 2755.242586 | L19: 3444.053233 | M19: 4305.066541 | N19: 5381.333176 | O19: 6726.66647 | P19: 8408.333088 | Q19: 10510.41636
A20: EBIT | B20: ='Calculated Data'!K4 -> 104.23 | C20: =C19*$Q$4 -> 110.94072 | D20: =D19*$Q$4 -> 138.6759 | E20: =E19*$Q$4 -> 173.344875 | F20: 216.6810938 | G20: 270.8513672 | H20: 338.564209 | I20: 423.2052612 | J20: 529.0065765 | K20: 661.2582207 | L20: 826.5727758 | M20: 1033.21597 | N20: 1291.519962 | O20: 1614.399953 | P20: 2017.999941 | Q20: 2522.499926
A21: NOPAT | B21: ='Calculated Data'!K23 -> 77.99894354 | C21: =C20*(1-$Q$5) -> 83.20554 | D21: =D20*(1-$Q$5) -> 104.006925 | E21: 130.0086563 | F21: 162.5108203 | G21: 203.1385254 | H21: 253.9231567 | I21: 317.4039459 | J21: 396.7549324 | K21: 495.9436655 | L21: 619.9295819 | M21: 774.9119774 | N21: 968.6399717 | O21: 1210.799965 | P21: 1513.499956 | Q21: 1891.874945
A22: Incremental Fixed Capital Investment | C22: =(C19-B19)*$Q$6 -> 4.2023 | D22: =(D19-C19)*$Q$6 -> 11.556325 | E22: 14.44540625 | F22: 18.05675781 | G22: 22.57094727 | H22: 28.21368408 | I22: 35.2671051 | J22: 44.08388138 | K22: 55.10485172 | L22: 68.88106465 | M22: 86.10133082 | N22: 107.6266635 | O22: 134.5333294 | P22: 168.1666618 | Q22: 210.2083272
A23: Incremental Working Capital Investment | C23: =(C19-B19)*$Q$7 -> 16.8092 | D23: =(D19-C19)*$Q$7 -> 46.2253 | E23: 57.781625 | F23: 72.22703125 | G23: 90.28378906 | H23: 112.8547363 | I23: 141.0684204 | J23: 176.3355255 | K23: 220.4194069 | L23: 275.5242586 | M23: 344.4053233 | N23: 430.5066541 | O23: 538.1333176 | P23: 672.666647 | Q23: 840.8333088
A24: Free Cash Flow | C24: =C21-(C22+C23) -> 62.19404 | D24: =D21-(D22+D23) -> 46.2253 | E24: 57.781625 | F24: 72.22703125 | G24: 90.28378906 | H24: 112.8547363 | I24: 141.0684204 | J24: 176.3355255 | K24: 220.4194069 | L24: 275.5242586 | M24: 344.4053233 | N24: 430.5066541 | O24: 538.1333176 | P24: 672.666647 | Q24: 840.8333088
A25: Present Value of Free Cash Flow | C25: =C24/((1+$Q$8)^C17) -> 55.53039286 | D25: =D24/((1+$Q$8)^D17) -> 36.85052615 | E25: 41.12781936 | F25: 45.90158411 | G25: 51.22944655 | H25: 57.1757216 | I25: 63.81218928 | J25: 71.21896125 | K25: 79.48544783 | L25: 88.71143731 | M25: 99.00830056 | N25: 110.5003355 | O25: 123.3262672 | P25: 137.6409233 | Q25: 153.6171019
A26: Cumulative Present Value of Free Cash Flow | C26: =C25 -> 55.53039286 | D26: =D25+C26 -> 92.38091901 | E26: =E25+D26 -> 133.5087384 | F26: 179.4103225 | G26: 230.639769 | H26: 287.8154906 | I26: 351.6276799 | J26: 422.8466412 | K26: 502.332089 | L26: 591.0435263 | M26: 690.0518268 | N26: 800.5521623 | O26: 923.8784295 | P26: 1061.519353 | Q26: 1215.136455
A27: Present Value of Residual Value | C27: =((C21*(1+$Q$9))/($Q$8-$Q$9))/((1+$Q$8)^C17) -> 1114.359911 | D27: =((D21*(1+$Q$9))/($Q$8-$Q$9))/((1+$Q$8)^D17) -> 1243.705257 | E27: 1388.063903 | F27: 1549.178464 | G27: 1728.993821 | H27: 1929.680604 | I27: 2153.661388 | J27: 2403.639942 | K27: 2682.633864 | L27: 2994.011009 | M27: 3341.530144 | N27: 3729.386321 | O27: 4162.261519 | P27: 4645.38116 | Q27: 5184.577188
A29: Corporate Value | C29: =C27+C26 -> 1169.890304 | D29: =D27+D26 -> 1336.086176 | E29: 1521.572642 | F29: 1728.588786 | G29: 1959.63359 | H29: 2217.496094 | I29: 2505.289068 | J29: 2826.486583 | K29: 3184.965953 | L29: 3585.054535 | M29: 4031.581971 | N29: 4529.938484 | O29: 5086.139949 | P29: 5706.900513 | Q29: 6399.713642
A30: Add: Non-Operative Assets | C30: =$Q$12 -> 40.65 | D30: =$Q$12 -> 40.65 | E30: 40.65 | F30: 40.65 | G30: 40.65 | H30: 40.65 | I30: 40.65 | J30: 40.65 | K30: 40.65 | L30: 40.65 | M30: 40.65 | N30: 40.65 | O30: 40.65 | P30: 40.65 | Q30: 40.65
A31: Less: Debt | C31: =$Q$13 -> 52.65 | D31: =$Q$13 -> 52.65 | E31: 52.65 | F31: 52.65 | G31: 52.65 | H31: 52.65 | I31: 52.65 | J31: 52.65 | K31: 52.65 | L31: 52.65 | M31: 52.65 | N31: 52.65 | O31: 52.65 | P31: 52.65 | Q31: 52.65
A32: Shareholder Value | C32: =C29+C30-C31 -> 1157.890304 | D32: =D29+D30-D31 -> 1324.086176 | E32: 1509.572642 | F32: 1716.588786 | G32: 1947.63359 | H32: 2205.496094 | I32: 2493.289068 | J32: 2814.486583 | K32: 3172.965953 | L32: 3573.054535 | M32: 4019.581971 | N32: 4517.938484 | O32: 5074.139949 | P32: 5694.900513 | Q32: 6387.713642
A34: Shareholder Value/Share | C34: =C32/$Q$14 -> 201.0079369 | D34: =D32/$Q$14 -> 229.8592793 | E34: 262.0594382 | F34: 297.9971155 | G34: 338.1061303 | H34: 382.8706558 | I34: 432.8310637 | J34: 488.5904476 | K34: 550.8219028 | L34: 620.2766519 | M34: 697.7931129 | N34: 784.3070203 | O34: 880.8627206 | P34: 988.6257788 | Q34: 1108.897049
A35: Market-Implied-Forecast-Period | C35: =IF(Q15>Q34,"15+",IF(Q15<C34,"<1",LOOKUP(Q15,C34:Q34,C17:Q17))) -> 8
A36: Accrued Free Cash Flows | C36: =C24 -> 62.19404 | D36: =D24+C36 -> 108.41934 | E36: =E24+D36 -> 166.200965 | F36: =F24+E36 -> 238.4279963 | G36: 328.7117853 | H36: 441.5665216 | I36: 582.6349421 | J36: 758.9704676 | K36: 979.3898745 | L36: 1254.914133 | M36: 1599.319456 | N36: 2029.82611 | O36: 2567.959428 | P36: 3240.626075 | Q36: 4081.459384
B37: *
A38: Steady State Value* | B38: =C32 -> 1157.890304 | C38: =B21*16 -> 1247.983097 | D38: (as per Rajshekhar Iyer formula)
A39: Future Value* | B39: ='Calculated Data'!K13*('Calculated Data'!K24-'Calculated Data'!K25)*10/('Price Implied Expectations'!Q8)*(1+'Price Implied Expectations'!Q8) -> 4098.317397 | C39: =L32 -> 3573.054535 | D39: (present value of year 10 shareholder future value)
A40: Value | B40: =B38+B39 -> 5256.207701 | C40: =C38+C39 -> 4821.037632
A41: Value/Share * | B41: =B40/'Data Sheet'!B6 -> 912.4693961 | C41: =C40/'Data Sheet'!B6 -> 836.9245561
B42: (* as per Credit Suisse/Mauboussin paper What's captured in P/E)

Sheet Business Robustness
A1: Business Robustness Snapshot (Annual) | B1: Annual Historical Performance
A2: ='Data Sheet'!B1 -> SHIVALIK BIMETAL CONTROLS LTD | B2: ='Data Sheet'!B16 -> 2014-03-31 | C2: ='Data Sheet'!C16 -> 2015-03-31 | D2: ='Data Sheet'!D16 -> 2016-03-31 | E2: ='Data Sheet'!E16 -> 2017-03-31 | F2: ='Data Sheet'!F16 -> 2018-03-31 | G2: ='Data Sheet'!G16 -> 2019-03-31 | H2: ='Data Sheet'!H16 -> 2020-03-31 | I2: ='Data Sheet'!I16 -> 2021-03-31 | J2: ='Data Sheet'!J16 -> 2022-03-31 | K2: ='Data Sheet'!K16 -> 2023-03-31 | L2: TTM
A3: Sales | B3: ='Data Sheet'!B17 -> 80.7 | C3: ='Data Sheet'!C17 -> 95.22 | D3: ='Data Sheet'!D17 -> 98.85 | E3: ='Data Sheet'!E17 -> 118.66 | F3: ='Data Sheet'!F17 -> 157.86 | G3: ='Data Sheet'!G17 -> 193.39 | H3: ='Data Sheet'!H17 -> 187.22 | I3: ='Data Sheet'!I17 -> 203.72 | J3: ='Data Sheet'!J17 -> 323.99 | K3: ='Data Sheet'!K17 -> 420.23 | L3: ='Profit & Loss'!L4 -> 435.61
A4: EBIT | B4: ='Profit & Loss'!B10+'Profit & Loss'!B9 -> 7.3 | C4: ='Profit & Loss'!C10+'Profit & Loss'!C9 -> 11.63 | D4: ='Profit & Loss'!D10+'Profit & Loss'!D9 -> 10.4 | E4: ='Profit & Loss'!E10+'Profit & Loss'!E9 -> 16.48 | F4: ='Profit & Loss'!F10+'Profit & Loss'!F9 -> 25.17 | G4: ='Profit & Loss'!G10+'Profit & Loss'!G9 -> 36.08 | H4: ='Profit & Loss'!H10+'Profit & Loss'!H9 -> 19.41 | I4: ='Profit & Loss'!I10+'Profit & Loss'!I9 -> 34.28 | J4: ='Profit & Loss'!J10+'Profit & Loss'!J9 -> 72.54 | K4: ='Profit & Loss'!K10+'Profit & Loss'!K9 -> 104.23 | L4: ='Profit & Loss'!L10+'Profit & Loss'!L9 -> 107.58
A5: Operating Profit (ex Other Income) | B5: ='Calculated Data'!B6 -> 11 | C5: ='Calculated Data'!C6 -> 15.35 | D5: ='Calculated Data'!D6 -> 13.52 | E5: ='Calculated Data'!E6 -> 18.98 | F5: ='Calculated Data'!F6 -> 25.64 | G5: ='Calculated Data'!G6 -> 35.58 | H5: ='Calculated Data'!H6 -> 20.77 | I5: ='Calculated Data'!I6 -> 36.13 | J5: ='Calculated Data'!J6 -> 73.47 | K5: ='Calculated Data'!K6 -> 104.77 | L5: ='Profit & Loss'!L6 -> 109.52
A6: Operating Profit Margin (ex Other Income) | B6: =B5/B3 -> 0.136307311 | C6: 0.1612056291 | D6: 0.1367728882 | E6: 0.1599528063 | F6: 0.1624223996 | G6: 0.1839805574 | H6: 0.1109390022 | I6: 0.1773512664 | J6: 0.2267662582 | K6: 0.2493158508 | L6: 0.2514175524
A7: 1Yr Sales Increase | C7: =(C3-B3)/B3 -> 0.1799256506 | D7: 0.03812224323 | E7: 0.2004046535 | F7: 0.330355638 | G7: 0.2250728494 | H7: -0.0319044418 | I7: 0.08813160987 | J7: 0.5903691341 | K7: 0.2970462051 | L7: 0.03659900531
A8: 1Yr EBIT Increase | C8: =(C4-B4)/B4 -> 0.5931506849 | D8: -0.105760963 | E8: 0.5846153846 | F8: 0.5273058252 | G8: 0.4334525228 | H8: -0.4620288248 | I8: 0.7660999485 | J8: 1.116102684 | K8: 0.4368624207 | L8: 0.0321404586
A9: 3Yr Sales Increase | E9: =(E3-B3)/B3 -> 0.4703841388 | F9: =(F3-C3)/C3 -> 0.6578449905 | G9: 0.9563985837 | H9: 0.5777852688 | I9: 0.290510579 | J9: 0.675319303 | K9: 1.244578571 | L9: 1.138278029
A10: 3Yr EBIT Increase | E10: =(E4-B4)/B4 -> 1.257534247 | F10: =(F4-C4)/C4 -> 1.164230439 | G10: =(G4-D4)/D4 -> 2.469230769 | H10: =(H4-E4)/E4 -> 0.1777912621 | I10: =(I4-F4)/F4 -> 0.3619388161 | J10: =(J4-G4)/G4 -> 1.010532151 | K10: =(K4-H4)/H4 -> 4.369912416 | L10: =(L4-I4)/I4 -> 2.138273046
A11: Abnormal margin exclusion (RM cycle)
A12: 1 Yr Operating Leverage | C12: =IF((C3-B3)>0,(C8/C7),0) -> 3.29664327 | D12: -2.77425865 | E12: 2.917174698 | F12: 1.596176256 | G12: 1.925832121 | H12: 0 | I12: 8.692680749 | J12: 1.89051666 | K12: 1.470688442 | L12: 0.8781784732
A13: 3Yr Operating Leverage | E13: =IF((E3-B3)>0,E10/E9,0) -> 2.67341975 | F13: =IF((F3-C3)>0,F10/F9,0) -> 1.769764086 | G13: 2.581800947 | H13: 0.3077116564 | I13: 1.24587138 | J13: 1.49637682 | K13: 3.51115833 | L13: 1.87851561
A14: EBIT Margin | B14: =B4/B3 -> 0.09045848823 | C14: 0.1221382063 | D14: 0.105209914 | E14: 0.138884207 | F14: 0.1594450779 | G14: 0.1865660065 | H14: 0.1036748211 | I14: 0.1682701747 | J14: 0.2238957993 | K14: 0.2480308403 | L14: 0.2469640275
A15: Invested Capital | B15: ='Calculated Data'!B13 -> 77.35 | C15: ='Calculated Data'!C13 -> 87.19 | D15: ='Calculated Data'!D13 -> 89.59 | E15: ='Calculated Data'!E13 -> 90.57 | F15: ='Calculated Data'!F13 -> 111.85 | G15: ='Calculated Data'!G13 -> 140.04 | H15: ='Calculated Data'!H13 -> 129.89 | I15: ='Calculated Data'!I13 -> 157.18 | J15: ='Calculated Data'!J13 -> 234.83 | K15: ='Calculated Data'!K13 -> 284.07 | L15: ='Calculated Data'!L13 -> 156.12
A16: Capital Turns | B16: =B3/B15 -> 1.043309632 | C16: 1.092097718 | D16: 1.10335975 | E16: 1.310146848 | F16: 1.411354493 | G16: 1.380962582 | H16: 1.44137347 | I16: 1.296093651 | J16: 1.379678917 | K16: 1.479318478 | L16: 2.790225468
A17: RoIC | B17: ='Calculated Data'!B24 -> 0.08043686836 | C17: ='Calculated Data'!C24 -> 0.07816501424 | D17: ='Calculated Data'!D24 -> 0.07357964058 | E17: ='Calculated Data'!E24 -> 0.1123862596 | F17: ='Calculated Data'!F24 -> 0.1646059514 | G17: ='Calculated Data'!G24 -> 0.1829645156 | H17: ='Calculated Data'!H24 -> 0.1157728951 | I17: ='Calculated Data'!I24 -> 0.1613160125 | J17: ='Calculated Data'!J24 -> 0.2300624418 | K17: ='Calculated Data'!K24 -> 0.2745764901 | L17: =(L4/L15)*(1-'Calculated Data'!K22) -> 0.5156665729
A18: 5Yr Rolling RoIIC | B18: =Customization!B58 -> 0 | C18: =Customization!C58 -> 0 | D18: =Customization!D58 -> 0 | E18: =Customization!E58 -> 0 | F18: =Customization!F58 -> 0 | G18: =Customization!G58 -> 0 | H18: =Customization!H58 -> 0.1311618082 | I18: =Customization!I58 -> 0.4394297621 | J18: =Customization!J58 -> 0.6487163733 | K18: =Customization!K58 -> 0.4130581442
A19: EPA | B19: ='Calculated Data'!B26 -> -3.060208232 | C19: ='Calculated Data'!C26 -> -3.647592408 | D19: ='Calculated Data'!D26 -> -4.1588 | E19: ='Calculated Data'!E26 -> -0.6895764706 | F19: ='Calculated Data'!F26 -> 4.989175663 | G19: ='Calculated Data'!G26 -> 8.817550769 | H19: ='Calculated Data'!H26 -> -0.5490586521 | I19: ='Calculated Data'!I26 -> 6.494050842 | J19: ='Calculated Data'!J26 -> 25.8459632 | K19: ='Calculated Data'!K26 -> 43.91054354 | L19: =L15*(L17-'Calculated Data'!K25) -> 61.77146536
A20: EPA/Sales | B20: =B19/B3 -> -0.03792079594 | C20: -0.03830699861 | D20: -0.042071826 | E20: -0.005811364155 | F20: 0.03160506565 | G20: 0.04559465727 | H20: -0.002932692298 | I20: 0.03187733577 | J20: 0.07977395351 | K20: 0.1044916915 | L20: 0.1418045163
A21: Sustainable Growth Rate (without addl financing?) | B21: ='Calculated Data'!B31 -> 0.0628113879 | C21: ='Calculated Data'!C31 -> 0.08114323259 | D21: ='Calculated Data'!D31 -> 0.06324049854 | E21: ='Calculated Data'!E31 -> 0.107523863 | F21: ='Calculated Data'!F31 -> 0.1605488448 | G21: ='Calculated Data'!G31 -> 0.1968921736 | H21: ='Calculated Data'!H31 -> 0.1006763788 | I21: ='Calculated Data'!I31 -> 0.1580698835 | J21: ='Calculated Data'!J31 -> 0.2571855968 | K21: ='Calculated Data'!K31 -> 0.2592839496
A22: Business Robustness Snapshot (Quarterly) | B22: Latest 10 Quarters Performance
A23: =A2 -> SHIVALIK BIMETAL CONTROLS LTD | B23: ='Data Sheet'!B41 -> 2021-03-31 | C23: ='Data Sheet'!C41 -> 2021-06-30 | D23: ='Data Sheet'!D41 -> 2021-09-30 | E23: ='Data Sheet'!E41 -> 2021-12-31 | F23: ='Data Sheet'!F41 -> 2022-03-31 | G23: ='Data Sheet'!G41 -> 2022-06-30 | H23: ='Data Sheet'!H41 -> 2022-09-30 | I23: ='Data Sheet'!I41 -> 2022-12-31 | J23: ='Data Sheet'!J41 -> 2023-03-31 | K23: ='Data Sheet'!K41 -> 2023-06-30
A24: Sales | B24: ='Data Sheet'!B42 -> 66.86 | C24: ='Data Sheet'!C42 -> 70.31 | D24: ='Data Sheet'!D42 -> 76.23 | E24: ='Data Sheet'!E42 -> 88.13 | F24: ='Data Sheet'!F42 -> 89.32 | G24: ='Data Sheet'!G42 -> 97.69 | H24: ='Data Sheet'!H42 -> 104.87 | I24: ='Data Sheet'!I42 -> 107.54 | J24: ='Data Sheet'!J42 -> 110.13 | K24: ='Data Sheet'!K42 -> 113.07
A25: EBIT | B25: =Quarters!B16 -> 12.26 | C25: =Quarters!C16 -> 15.29 | D25: =Quarters!D16 -> 17.56 | E25: =Quarters!E16 -> 20.81 | F25: =Quarters!F16 -> 18.9 | G25: =Quarters!G16 -> 24.54 | H25: =Quarters!H16 -> 27.01 | I25: =Quarters!I16 -> 26.27 | J25: =Quarters!J16 -> 26.4 | K25: =Quarters!K16 -> 27.9
A26: Operating Profit (ex Other Income) | B26: =Quarters!B6 -> 12.66 | C26: =Quarters!C6 -> 15.86 | D26: =Quarters!D6 -> 17.83 | E26: =Quarters!E6 -> 20.56 | F26: =Quarters!F6 -> 19.23 | G26: =Quarters!G6 -> 24.25 | H26: =Quarters!H6 -> 25.71 | I26: =Quarters!I6 -> 27.79 | J26: =Quarters!J6 -> 27.02 | K26: =Quarters!K6 -> 29
A27: EBIT Margin | B27: =B25/B24 -> 0.1833682321 | C27: =C25/C24 -> 0.2174655099 | D27: 0.2303555031 | E27: 0.2361284466 | F27: 0.2115987461 | G27: 0.2512027843 | H27: 0.2575569753 | I27: 0.2442811977 | J27: 0.2397166984 | K27: 0.246749801
A28: Operating Profit Margin (ex Other Income) | B28: =B26/B24 -> 0.1893508824 | C28: =C26/C24 -> 0.2255724648 | D28: 0.2338974157 | E28: 0.2332917281 | F28: 0.2152933274 | G28: 0.2482342103 | H28: 0.2451606751 | I28: 0.2584154733 | J28: 0.2453464088 | K28: 0.2564782878
A29: Threshold Margin Snapshot | B29: =B2 -> 2014-03-31 | C29: =C2 -> 2015-03-31 | D29: 2016-03-31 | E29: 2017-03-31 | F29: 2018-03-31 | G29: 2019-03-31 | H29: 2020-03-31 | I29: 2021-03-31 | J29: 2022-03-31 | K29: 2023-03-31 | L29: TTM
A30: Incremental Fixed Capital Investment Rate | C30: =('Calculated Data'!C18-'Data Sheet'!C26)/('Business Robustness'!C3-'Business Robustness'!B3) -> 0.05371900826 | D30: =('Calculated Data'!D18-'Data Sheet'!D26)/('Business Robustness'!D3-'Business Robustness'!C3) -> -0.4876033058 | E30: =('Calculated Data'!E18-'Data Sheet'!E26)/('Business Robustness'!E3-'Business Robustness'!D3) -> 0.5365976779 | F30: =('Calculated Data'!F18-'Data Sheet'!F26)/('Business Robustness'!F3-'Business Robustness'!E3) -> 0.05994897959 | G30: =('Calculated Data'!G18-'Data Sheet'!G26)/('Business Robustness'!G3-'Business Robustness'!F3) -> 0.03855896426 | H30: =('Calculated Data'!H18-'Data Sheet'!H26)/('Business Robustness'!H3-'Business Robustness'!G3) -> -1.889789303 | I30: =('Calculated Data'!I18-'Data Sheet'!I26)/('Business Robustness'!I3-'Business Robustness'!H3) -> 0.4533333333 | J30: =('Calculated Data'!J18-'Data Sheet'!J26)/('Business Robustness'!J3-'Business Robustness'!I3) -> 0.1337823231 | K30: =('Calculated Data'!K18-'Data Sheet'!K26)/('Business Robustness'!K3-'Business Robustness'!J3) -> 0.1930590191
A31: Incremental Working Capital Investment Rate | C31: =('Calculated Data'!C11-'Calculated Data'!B11)/('Business Robustness'!C3-'Business Robustness'!B3) -> 0.6239669421 | D31: =('Calculated Data'!D11-'Calculated Data'!C11)/('Business Robustness'!D3-'Business Robustness'!C3) -> 1.148760331 | E31: =('Calculated Data'!E11-'Calculated Data'!D11)/('Business Robustness'!E3-'Business Robustness'!D3) -> -0.4871277133 | F31: =('Calculated Data'!F11-'Calculated Data'!E11)/('Business Robustness'!F3-'Business Robustness'!E3) -> 0.4829081633 | G31: =('Calculated Data'!G11-'Calculated Data'!F11)/('Business Robustness'!G3-'Business Robustness'!F3) -> 0.7548550521 | H31: =('Calculated Data'!H11-'Calculated Data'!G11)/('Business Robustness'!H3-'Business Robustness'!G3) -> 3.534846029 | I31: =('Calculated Data'!I11-'Calculated Data'!H11)/('Business Robustness'!I3-'Business Robustness'!H3) -> 1.200606061 | J31: =('Calculated Data'!J11-'Calculated Data'!I11)/('Business Robustness'!J3-'Business Robustness'!I3) -> 0.5118483412 | K31: =('Calculated Data'!K11-'Calculated Data'!J11)/('Business Robustness'!K3-'Business Robustness'!J3) -> 0.3185785536
A32: Incremental Threshold Margin | C32: =((C30+C31)*'Calculated Data'!C25)/((1+'Calculated Data'!C25)*(1-'Calculated Data'!C22)) -> 0.1239059983 | D32: =((D30+D31)*'Calculated Data'!D25)/((1+'Calculated Data'!D25)*(1-'Calculated Data'!D22)) -> 0.1117593792 | E32: =((E30+E31)*'Calculated Data'!E25)/((1+'Calculated Data'!E25)*(1-'Calculated Data'!E22)) -> 0.008581524483 | F32: =((F30+F31)*'Calculated Data'!F25)/((1+'Calculated Data'!F25)*(1-'Calculated Data'!F22)) -> 0.07951525826 | G32: =((G30+G31)*'Calculated Data'!G25)/((1+'Calculated Data'!G25)*(1-'Calculated Data'!G22)) -> 0.1197045472 | H32: =((H30+H31)*'Calculated Data'!H25)/((1+'Calculated Data'!H25)*(1-'Calculated Data'!H22)) -> 0.2275029468 | I32: =((I30+I31)*'Calculated Data'!I25)/((1+'Calculated Data'!I25)*(1-'Calculated Data'!I22)) -> 0.2395790648 | J32: =((J30+J31)*'Calculated Data'!J25)/((1+'Calculated Data'!J25)*(1-'Calculated Data'!J22)) -> 0.09288073014 | K32: =((K30+K31)*'Calculated Data'!K25)/((1+'Calculated Data'!K25)*(1-'Calculated Data'!K22)) -> 0.07325371773
A33: Threshold Margin (Value Neutral Operating Margin) | C33: =(B4+(C32*(C3-B3)))/C3 -> 0.09555886469 | D33: =(C4+(D32*(D3-C3)))/D3 -> 0.1217570718 | E33: 0.08907803809 | F33: 0.1241416326 | G33: 0.1521438676 | H33: 0.1852168936 | I33: 0.1146821842 | J33: 0.1402844699 | K33: 0.189396135 | L33: higher capital intensity business demands higher threshold margin (to break even) than lower cap intensive
A34: Threshold Exceed Rate | C34: =C14-C33 -> 0.02657934157 | D34: =D14-D33 -> -0.01654715778 | E34: 0.04980616889 | F34: 0.03530344531 | G34: 0.03442213888 | H34: -0.08154207253 | I34: 0.05358799053 | J34: 0.08361132932 | K34: 0.05863470529

Sheet Buffet-Valuation
A1: ='Data Sheet'!B1 -> SHIVALIK BIMETAL CONTROLS LTD | D1: (adapted from the methodology described in the book "Buffetology" by Mary Buffet - using current Visibility aided by Historicals)
A2: Current Data | D2: 10 yr Projected Company data using historical earnings growth rate/current visibility | O2: 10yr Sales Projection
A3: Price | B3: ='Data Sheet'!B8 -> 527.55 | D3: Year | E3: EPS | F3: DPS | O3: Year | P3: Sales
A4: EPS: | B4: ='Profit & Loss'!L13 -> 13.21778434 | D4: Current | E4: =B4 -> 13.21778434 | F4: =B5 -> 1.199652778 | H4: =E14 -> 81.8410367 | I4: Earnings after 10 years | O4: Current | P4: ='Profit & Loss'!K4 -> 420.23
A5: DPS: | B5: ='Profit & Loss'!K22 -> 1.199652778 | D5: Year 1 | E5: =E4*(1+$B$21) -> 15.8613412 | F5: =E5*$B$36 -> 1.58613412 | H5: =SUM(F5:F14) -> 41.17395142 | I5: Dividends paid over 10 years | O5: Year 1 | P5: =P4*(1+$B$14) -> 525.2875
A6: BVPS: | B6: ='Balance Sheet'!K32 -> 44.27256944 | D6: Year 2 | E6: 19.03360945 | F6: 1.903360945 | O6: Year 2 | P6: 656.609375
A7: P/E: | B7: =B3/B4 -> 39.91213554 | D7: Year 3 | E7: 22.84033133 | F7: 2.284033133 | H7: =$B$33*H4 -> 2046.025918 | I7: Projected price [Avg Sustainable P/E*EPS] | O7: Year 3 | P7: 820.7617188
A8: Earnings Yield: | B8: =B4/B3 -> 0.02505503618 | D8: Year 4 | E8: 27.4083976 | F8: 2.74083976 | H8: =H7+H5 -> 2087.199869 | I8: Total Gain [Projected Price+Dividends] | O8: Year 4 | P8: 1025.952148
A9: Dividend Yield: | B9: =B5/B3 -> 0.00227400773 | D9: Year 5 | E9: 32.89007712 | F9: 3.289007712 | O9: Year 5 | P9: 1282.440186
A10: P/BV: | B10: =B3/B6 -> 11.91595624 | D10: Year 6 | E10: 39.46809255 | F10: 3.946809255 | H10: =POWER(H8/$B$3,1/9)-1 -> 0.1651094168 | I10: Projected annual return using current EPS growth visibility | O10: Year 6 | P10: 1603.050232
D11: Year 7 | E11: 47.36171106 | F11: 4.736171106 | I11: [(Total Gain/Current Price)^1/9)-1] | O11: Year 7 | P11: 2003.81279
A12: Input Visibility data | B12: below | D12: Year 8 | E12: 56.83405327 | F12: 5.683405327 | O12: Year 8 | P12: 2504.765987
A13: Sales | D13: Year 9 | E13: 68.20086392 | F13: 6.820086392 | O13: Year 9 | P13: 3130.957484
A14: Med Term Visibility | B14: 0.25 | D14: Year 10 | E14: 81.8410367 | F14: 8.18410367 | O14: Year 10 | P14: 3913.696855
A15: Sales 10 Yr CAGR | B15: =POWER('Profit & Loss'!K4/'Profit & Loss'!B4, 1/9)-1 -> 0.2012232356
A16: Sales 5yr CAGR | B16: =POWER('Profit & Loss'!K4/'Profit & Loss'!G4, 1/4)-1 -> 0.2141246036 | D16: 10 yr Projected Company data using sustainable growth rate based on current visibility
A17: Sales 3yr CAGR | B17: =POWER('Profit & Loss'!K4/'Profit & Loss'!I4, 1/2)-1 -> 0.4362389252 | D17: Year | E17: BVPS | F17: EPS | G17: DPS
A18: Sales Y-o-Y growth | B18: =('Profit & Loss'!K4-'Profit & Loss'!J4)/'Profit & Loss'!J4 -> 0.2970462051 | D18: Current | E18: =B6 -> 44.27256944 | F18: =B4 -> 13.21778434 | G18: =B5 -> 1.199652778 | H18: =F28 -> 48.76104596 | I18: Earnings after 10 years
A19: Sales TTM Growth | B19: =('Profit & Loss'!L4-'Profit & Loss'!K4)/'Profit & Loss'!K4 -> 0.03659900531 | D19: Year 1 | E19: =E18+F18-G18 -> 56.290701 | F19: =E19*$B$37 -> 11.1455588 | G19: =F19*$B$36 -> 1.11455588 | H19: =SUM(G19:G28) -> 25.98468325 | I19: Dividends paid over 10 years
A20: EPS | D20: Year 2 | E20: =E19+F19-G19 -> 66.32170392 | F20: 13.13169738 | G20: 1.313169738
A21: Med Term Visibility | B21: 0.2 | D21: Year 3 | E21: 78.14023156 | F21: 15.47176585 | G21: 1.547176585 | H21: =$B$33*H18 -> 1219.026149 | I21: Projected price [Avg Sustainable P/E*EPS]
A22: EPS 10 Yr CAGR | B22: =POWER('Profit & Loss'!K13/'Profit & Loss'!B13, 1/9)-1 -> 0.4002057086 | D22: Year 4 | E22: 92.06482083 | F22: 18.22883452 | G22: 1.822883452 | H22: =H21+H19 -> 1245.010832 | I22: Total Gain [Projected Price+Dividends]
A23: EPS 5yr CAGR | B23: =POWER('Profit & Loss'!K13/'Profit & Loss'!G13, 1/4)-1 -> 0.3337252523 | D23: Year 5 | E23: 108.4707719 | F23: 21.47721284 | G23: 2.147721284
A24: EPS 3yr CAGR | B24: =POWER('Profit & Loss'!K13/'Profit & Loss'!I13, 1/2)-1 -> 0.7389699719 | D24: Year 6 | E24: 127.8002634 | F24: 25.30445216 | G24: 2.530445216 | H24: =POWER(H22/$B$3,1/9)-1 -> 0.1001056348 | I24: Projected annual return using sustainable growth visbility*
A25: EPS Y-o-Y growth | B25: =('Profit & Loss'!K13-'Profit & Loss'!J13)/'Profit & Loss'!J13 -> 0.4049634475 | D25: Year 7 | E25: =E24+F24-G24 -> 150.5742704 | F25: 29.81370554 | G25: 2.981370554 | I25: [(Total Gain/Current Price)^1/9)-1]
A26: EPS TTM Growth | B26: =('Profit & Loss'!L13-'Profit & Loss'!K13)/'Profit & Loss'!K13 -> 0.04250907548 | D26: Year 8 | E26: =E25+F25-G25 -> 177.4066054 | F26: 35.12650787 | G26: 3.512650787
A27: 5Yr Averages | D27: Year 9 | E27: =E26+F26-G26 -> 209.0204625 | F27: 41.38605157 | G27: 4.138605157
A28: Return on Equity: | B28: =AVERAGE(Customization!G53:K53) -> 0.2136247685 | D28: Year 10 | E28: =E27+F27-G27 -> 246.2679089 | F28: 48.76104596 | G28: 4.876104596
A29: Payout Ratio: | B29: =AVERAGE('Profit & Loss'!G23:K23) -> 0.09070201673 | D29: *Assuming current capital structure is maintained - business's inherent ability to grow with internal accruals from here
A30: P/E Ratio-High: | B30: =MAX('Calculated Data'!G38:K38) -> 40.4966726
A31: P/E Ratio-Low: | B31: =MIN('Calculated Data'!G38:K38) -> 6.441630094
A32: Avg. P/E Ratio: | B32: =AVERAGE('Calculated Data'!G38:K39) -> 15.16831919
A33: Avg Sustainable P/E | B33: 25
A34: RoE/Payout Visibility | C34: 5 Yr Avg
A35: RoE Visibility | B35: 0.22 | C35: =AVERAGE('Calculated Data'!G20:'Calculated Data'!K20) -> 0.2136247685
A36: Payout Visbility | B36: 0.1 | C36: =AVERAGE('Calculated Data'!G21:K21) -> 0.09070201673
A37: Sustainable Growth | B37: =B35*(1-B36) -> 0.198 | C37: =C35*(1-C36) -> 0.1942485712

Sheet Deep Dive
A1: ='Data Sheet'!B1 -> SHIVALIK BIMETAL CONTROLS LTD
E2: Key figures extracted/highlighted automatically from Excel for quick scan that helps tell a more complete story?
E3: TTM Sales | F3: TTM Net Profit | G3: TTM EBIT | H3: ROIC | I3: Invested Cap | J3: EPA /Sales | K3: Mkt Cap | L3: P/B | M3: P/S | N3: P/E | O3: P/CFO | P3: Div Yield | Q3: EV/EBITDA | R3: Earnings Yield
E4: =Annual[[#This Row],[Column12]] -> 435.61 | F4: ='Calculated Data'!L7 -> 76.14 | G4: ='Calculated Data'!L4 -> 107.58 | H4: ='Calculated Data'!K24 -> 0.2745764901 | I4: ='Calculated Data'!K13 -> 284.07 | J4: =Customization!K42 -> 0.1044916915 | K4: ='Calculated Data'!L33 -> 3038.91 | L4: =Customization!H8 -> 11.91682679 | M4: =Customization!J8 -> 6.976217259 | N4: =Customization!G8 -> 39.91213554 | O4: =IF(Customization!L8>0,0) -> 0 | P4: =Customization!K8 -> 0.002273841608 | Q4: =Customization!I8 -> 26.55778172 | R4: =1/N4 -> 0.02505503618
B5: 10Yr Incr FA Invest Rate | C5: Dividend Payout | D5: 5yrAvg Sust. Growth | E5: Retained Earnings / TA | F5: RoE | G5: WCap /TA | H5: Wcap/ Sales | I5: Capital Turns | J5: Net Fixed Asset Turn | K5: Gross Fixed Asset Turn | L5: Cash Eqv | M5: Invest ments | N5: Net Profit | O5: CFO | P5: FCF/ Sales | Q5: Op Leverage
B6: ='Price Implied Expectations'!K10 -> 0.1978322976 | C6: ='Calculated Data'!K21 -> 0.09461864987 | D6: ='Buffet-Valuation'!C37 -> 0.1942485712 | E6: ='Calculated Data'!K46 -> 0.1828084824 | F6: ='Calculated Data'!K20 -> 0.2863809262 | G6: ='Calculated Data'!K45 -> 0.4948160027 | H6: =Customization!K25 -> 0.4258858244 | I6: =Customization!K49 -> 1.479318478 | J6: =Customization!K50 -> 4.115463716 | K6: ='Profit & Loss'!K4/'Balance Sheet'!K36 -> 1.523897592 | L6: ='Balance Sheet'!K34 -> 17.06 | M6: ='Balance Sheet'!K12 -> 23.59 | N6: ='Calculated Data'!K7 -> 73.03 | O6: ='Cash Flow'!K4 -> 61.22 | P6: ='Calculated Data'!K19/'Profit & Loss'!K4 -> 0.08131261452 | Q6: ='Calculated Data'!K30 -> 1.470688442
D7: 10Yr Incr Wcap Invest Rate | E7: Industry FA Turns | F7: Industry WCap /TA | G7: Industry RE /TA | H7: Industry RoE | I7: 5YrAvg WCap /TA | J7: 5YrAvg TA Turns | K7: 5YrAvg FA Turns | L7: Steady State Value | M7: Future Earnings Value | N7: SState Value/ Mcap | O7: Future Value /Mcap
D8: ='Price Implied Expectations'!K16 -> 0.4110093364 | I8: =AVERAGE('Calculated Data'!G45:K45) -> 0.4605213226 | J8: =AVERAGE(Customization!G51:K51) -> 1.085413064 | K8: =AVERAGE(Customization!G50:K50) -> 4.214752937 | L8: ='Price Implied Expectations'!B38 -> 1157.890304 | M8: 0 | N8: =L8/'Data Sheet'!B9 -> 0.3810215846 | O8: =1-N8 -> 0.6189784154
B9: FY 2010 | C9: FY 2011 | D9: FY2012 | E9: FY 2013 | F9: FY 2014 | G9: FY 2015 | H9: FY 2016 | I9: FY 2017 | J9: FY 2018 | K9: FY 2019
A10: RoE | B10: ='Calculated Data'!B20 -> 0.0628113879 | C10: ='Calculated Data'!C20 -> 0.08114323259 | D10: ='Calculated Data'!D20 -> 0.06324049854 | E10: ='Calculated Data'!E20 -> 0.1209994385 | F10: ='Calculated Data'!F20 -> 0.187521989 | G10: ='Calculated Data'!G20 -> 0.2186848588 | H10: ='Calculated Data'!H20 -> 0.1106486299 | I10: ='Calculated Data'!I20 -> 0.1747088186 | J10: ='Calculated Data'!J20 -> 0.277700609 | K10: ='Calculated Data'!K20 -> 0.2863809262
A11: CC Cycle | B11: =Customization!B30 -> 138.4467162 | C11: =Customization!C30 -> 175.2168662 | D11: =Customization!D30 -> 145.8523015 | E11: =Customization!E30 -> 102.3697961 | F11: =Customization!F30 -> 84.99556569 | G11: =Customization!G30 -> 124.5480635 | H11: =Customization!H30 -> 108.8839333 | I11: =Customization!I30 -> 168.7578539 | J11: =Customization!J30 -> 156.357758 | K11: =Customization!K30 -> 136.6176856
A12: Gr Margin | B12: =Customization!B35 -> 0.3938042131 | C12: =Customization!C35 -> 0.3935097669 | D12: =Customization!D35 -> 0.4326757714 | E12: =Customization!E35 -> 0.4532277094 | F12: =Customization!F35 -> 0.4328518941 | G12: =Customization!G35 -> 0.4381302032 | H12: =Customization!H35 -> 0.4775130862 | I12: =Customization!I35 -> 0.4458570587 | J12: =Customization!J35 -> 0.4689342264 | K12: =Customization!K35 -> 0.4668157914
A13: Eq Dilution | B13: ='Cost Analysis'!B42 -> 0 | C13: ='Cost Analysis'!C42 -> 0 | D13: ='Cost Analysis'!D42 -> 0 | E13: ='Cost Analysis'!E42 -> 0 | F13: ='Cost Analysis'!F42 -> 1 | G13: ='Cost Analysis'!G42 -> 0 | H13: ='Cost Analysis'!H42 -> 0 | I13: ='Cost Analysis'!I42 -> 0 | J13: ='Cost Analysis'!J42 -> 0 | K13: ='Cost Analysis'!K42 -> 0.5
A14: CFO | B14: ='Calculated Data'!B17 -> 9.61 | C14: ='Calculated Data'!C17 -> 2.74 | D14: ='Calculated Data'!D17 -> 15.48 | E14: ='Calculated Data'!E17 -> 11.73 | F14: ='Calculated Data'!F17 -> 5.64 | G14: ='Calculated Data'!G17 -> 3.76 | H14: ='Calculated Data'!H17 -> 41.24 | I14: ='Calculated Data'!I17 -> 29.49 | J14: ='Calculated Data'!J17 -> -3.48 | K14: ='Calculated Data'!K17 -> 61.22
A15: FCF/Sales | B15: ='Calculated Data'!B19/'Profit & Loss'!B4 -> 0 | C15: ='Calculated Data'!C19/'Profit & Loss'!C4 -> -0.01270741441 | D15: ='Calculated Data'!D19/'Profit & Loss'!D4 -> 0.1371775417 | E15: ='Calculated Data'!E19/'Profit & Loss'!E4 -> -0.02899039272 | F15: ='Calculated Data'!F19/'Profit & Loss'!F4 -> -0.008425186874 | G15: ='Calculated Data'!G19/'Profit & Loss'!G4 -> -0.01272040954 | H15: ='Calculated Data'!H19/'Profit & Loss'!H4 -> 0.1258946694 | I15: ='Calculated Data'!I19/'Profit & Loss'!I4 -> 0.07907912822 | J15: ='Calculated Data'!J19/'Profit & Loss'!J4 -> -0.08009506466 | K15: ='Calculated Data'!K19/'Profit & Loss'!K4 -> 0.08131261452
